{"text_format":"1","workbook":"xlsx","n_sheets":5,"sheets":["Suivi Interventions","Parc","Menu","GestionLISTE","Feuil1"],"not_rendered":{"charts":0,"images":13,"macros":1,"external_links":1,"defined_names":979,"comments":0,"pivot_tables":0},"unopened":[],"bounds":{"document_bytes":16777216,"sheet_cells":100000,"rows_first":2000,"rows_last":500,"rows_between":2000,"halvings":0,"cell_chars":16384,"cell_head_chars":4096},"cells_cut":0,"cells_raw":0,"read":"whole","date_system":"1900"}

{"sheet":"Suivi Interventions","index":0,"n_rows":3074,"n_cols":15,"rows_kept":3074,"cut":false,"hidden":false,"merged":[[2,0,2,14]]}
[null,null,null,null,null,null,null,null,null,null,null,"NB OK","NB A PLANIFIER","NB EN COURS","NB RETARD"]
[null,null,null,null,null,null,null,null,null,null,null,{"$f":"COUNTIF($M$5:$M$1048576,\"ok\")","v":519},{"$f":"COUNTIF($M$5:$M$1048576,\"A planifier\")","v":3},{"$f":"COUNTIF($M$5:$M$1048576,\"En cours\")","v":0},{"$f":"COUNTIF($M$5:$M$1048576,\"Retard\")","v":0}]
["Réceptions Demandes d'Interventions "]
["N°","Nom du Salarié","Service","Type Maintenance","Machine \\ Lieux","Intervenant","Priorité","Travaux à effectuer","Demande","Prévue","Réalisation","Délais","Suivi","Commentaires","Temps interventions"]
[]
[1,"xx","LV 2","Maintenance Corrective (En Panne)","poubelle/ SDB lv2","yyy",2,"Poubelle salle de bain petit coté cassée.","2019-12-26","2020-01-06","2020-01-06",0,{"$f":"IF(H6=\"\",\"\",IF(J6=\"Annulée\",\"Annulée\",IF(K6<>\"\",\"Ok\",IF(J6<>\"\",IF(J6<TODAY(),\"Retard\",\"En cours\"),IF(I6<>\"\",\"A planifier\",\"A Lancer\")))))","v":"Ok"},"nouvelle poubelle passée en commande",2.0833333333333332E-2]
[2,"xx","LV 4","Maintenance Corrective (En Panne)","Barriere de lit de Meline","yyy",1,"Samedi en effectuant son lit, la barriere est tombée à mes pieds","2020-01-03","2020-01-03","2020-01-03",0,"Ok","vérification barriere OK remise en place par le directeur.",6.9444444444444441E-3]
[3,"xx","LV 4","Maintenance Preventive (Avant panne)"," chambre de Marie Pierre /LV4","yyy",3,"PEUX tu accrocher un cadre photos dans la chambre de Marie Pierre ? ","2020-01-03","2020-01-17","2020-01-17",0,"Ok","Accrochage tableaux ch de Marie pierre OK",1.3888888888888888E-2]
[4,"xx","LV 2","Maintenance Corrective (En Panne)","fauteuil Patrice Darakchan","yyy",1,"Le siège coque de Patrice, coté gauche, n'est plus fixé au fauteuil, \"repare\" ce jour avec du gros scotch marron!!!!!","2020-01-04","2020-02-14","2020-02-14",0,"Ok","vue avec Marie ergo OK",1.3888888888888888E-2]
[5,"xx","LV 4","Maintenance Corrective (En Panne)","fauteuil relax de Valérie Andrieu ","yyy",1,"le fauteuil ne fonctionne plus, voir fil électrique dénudé derrière le fauteuil et télécommande","2020-01-05","2020-01-07","2020-01-07",0,"Ok","reparation cable dénudé OK",2.0833333333333332E-2]
[6,"xx","LV 1","Maintenance Corrective (En Panne)","poignée /salle menage LV1","yyy",1,"popignee de la salle de menage ne marche pas merci","2020-01-06","2020-01-06","2020-01-06",0,"Ok","remplacement de la poignée HS suite désinfection trop importante",2.0833333333333332E-2]
[7,"xx","LV 4","Maintenance Corrective (En Panne)","véranda/LV4","yyy",1,"réparer la véranda du LV4","2020-01-06","2020-01-06","2020-01-06",0,"Ok","remise en conformité de la vérande OK",4.1666666666666664E-2]
[8,"xx","LV 4","Maintenance Corrective (En Panne)","porte de pascal/LV4","yyy",1,"en haut de la porte de la chambre de Pascal ( sur le petit ouvrant ) il y a un vis dévissé .","2020-01-08","2020-01-09","2020-01-09",0,"Ok","remise en conformité de la vis OK",1.3888888888888888E-2]
[9,"xx","LV 1","Maintenance Corrective (En Panne)","Siège coque Laurent MARTIN/LV1","yyy",1,"Peux tu couper les angles arrières du repose-pied du siège coque de Laurent? J'ai dessiné la coupe au feutre. Il faut juste mettre un coup de scie sauteuse mais je n'ai pas assez de force pour maintenir le repose pied et maintenir la scie. Il faut que ce soit fait avant mardi.","2020-01-10","2020-01-14","2020-01-14",0,"Ok","coupe des angles +remontage du cale pied OK",2.0833333333333332E-2]
[10,"xx","LV 1","Maintenance Corrective (En Panne)","Matelas à air","yyy",1,"Le matelas à air a été mis en place dans la chambre de Monique BOUSSAC. Il faudrait accrocher le fil du secteur avec des serflexs car il gêne sous le lit.","2020-01-10","2020-01-14","2020-01-14",0,"Ok","Accroche du cable d'alimentation du matelas OK",6.9444444444444441E-3]
[11,"xx","LV 1","Maintenance Corrective (En Panne)","portable porte d'entrée/LV1","yyy",2,"samedi , le portable pour ouvrir la porte d'entrée n'a jamais fonctionné, il n'a jamis sonné","2020-01-11","2020-01-14","2020-01-14",0,"Ok","Adresse Ip à changé remise en conformité + essai de fonctionnement OK",2.0833333333333332E-2]
[12,"xx","LV 4","Maintenance Preventive (Avant panne)","cuisine/LV4","yyy",1,"La  table haute est bancalle, voir rapidement d'ou vient le problème. MERCI","2020-01-11","2020-01-14","2020-01-14",0,"Ok","Soudures Cassées et table usagée prévoir son remplacement.",6.9444444444444441E-3]
[13,"xx","LV 4","Maintenance Corrective (En Panne)","néon /cuisine LV4","yyy",1,"La lumière au dessus du plan alimentaire ne marche pas. MERCI","2020-01-11","2020-01-14","2020-01-14",0,"Ok","remplacement des tubes OK",1.3888888888888888E-2]
[14,"xx","LV 4","Maintenance Corrective (En Panne)","prise chambre de Myriam","yyy",1,"La prise du matelas à air du lit de Myriam est dénudé, au risque d'électrocution. MERCI","2020-01-11","2020-01-13","2020-01-13",0,"Ok","remplacement de la prise OK",2.0833333333333332E-2]
[15,"xx","LV 4","Maintenance Corrective (En Panne)","Fauteuil confort Myriam","yyy",1,"Son fauteuil confort ne fonctionne pas. Impossible de le monter ou le descendre","2020-01-13","2020-01-13","2020-01-13",0,"Ok","Vérification du fauteuil pb mécanique vue avec coordinatrice pour appeler le Frere de Myriam et voir avec M.Marty",1.3888888888888888E-2]
[16,"xx","LV 3","Maintenance Corrective (En Panne)","WC petit côté/LV3","yyy",1,"Lumière des wc coté garçons ne s'allume pas.","2020-01-14","2020-01-14","2020-01-14",0,"Ok","remplacment ampoule HS OK",1.3888888888888888E-2]
[17,"xx","LV 4","Maintenance Corrective (En Panne)","lumière petit côté/LV4","yyy",1,"dés notre passage la lumière s'allume et séteint aussitôt","2020-01-13","2020-01-14","2020-01-14",0,"Ok","remplacement des tubes fluo OK",2.0833333333333332E-2]
[18,"xx","Directeur","Informatique","PC/Bureau direction","yyy",3,"Remettre logiciel PSI et fonctionnement de XELLIP portier","2020-01-14","2020-01-14","2020-01-14",0,"Ok","Parametrage affichage pour PSI OK + parametrage XELLIP OK",2.0833333333333332E-2]
[19,"xx","Lingerie","Maintenance Corrective (En Panne)","machine à laver côté porte /lingerie","yyy",1,"se met en sécurité défaurt : sécu porte tamb défaut variateur ","2020-01-15","2020-01-17","2020-01-17",0,"Ok","Mdofication d'une piece + essai machine OK ",4.1666666666666664E-2]
[20,"xx","LV 4","Maintenance Corrective (En Panne)","lit de Méline Lacroix/LV4","yyy",1,"les barrières de sécurité se déboitent quand on les descend , il semblerait que la tête de lit soit plus enfoncée d'un que de l'autre ","2020-01-15","2020-01-15","2020-01-15",0,"Ok","remise en conformité de la tête de lit superieure",2.0833333333333332E-2]
[21,"xx","LV 2","Maintenance Preventive (Avant panne)","Lit de Patrice Darakchan","yyy",2,"Peux -tu rattacher correctement les files sous le lit de Patrice car ils nous encombrent +++ pour passer avec le lève-personne. Merci.  ","2020-01-15","2020-01-16","2020-01-16",0,"Ok","Remise en conformité des câbles sous le lit de Patrice OK",2.0833333333333332E-2]
[22,"xx","LV 4","Maintenance Corrective (En Panne)","neon / reserve LV4","yyy",1,"Dans la réserve de la cuisine, les néons en dessus de l'armoire à ttt ne marche pas, merci de le regarder le plus rapidement posssible pour nous éviter les éreurs d ttt dans l'obscurité. MERCI","2020-01-15","2020-01-16","2020-01-16",0,"Ok","remplacement de 2 tubes fluo OK",1.3888888888888888E-2]
[23,"xx","LV 2","Maintenance Corrective (En Panne)","Placards cuisine LV2","yyy",1,"La serrure du placard à coté du four ne fonctionne pas bien, on a du mal à l'ouvrir et à le fermer. Merci","2020-01-15","2020-01-16","2020-01-16",0,"Ok","remise en conformité de la serrure + essai de fonctionnement OK",2.0833333333333332E-2]
[24,"xx","LV 4","Maintenance Preventive (Avant panne)","tablette de Myriam / LV4","yyy",2,"La petite tablette sur lesquel joue Myriam , le plateau est incliné, voir ce que tu peux faire pour l'arrager.MERCI","2020-01-15","2020-01-16","2020-01-16",0,"Ok","vérification de la tablette RAS fonctionnement normal ",1.3888888888888888E-2]
[25,"xx","LV 4","Travaux Neuf","deco de Valérie","yyy",2,"Valérie est revenu de chez elle avec de la décoration\" cadeau de Noël\", serait il^possible de  l'accrocher dans sa chambre au plus tôt. MERCI.","2020-01-15","2020-01-17","2020-01-17",0,"Ok","Mise en place de cadres photos dans la chambre de Valérie et Marie Pierre OK",4.1666666666666664E-2]
[26,"xx","Cuisine","Maintenance Corrective (En Panne)","Blixer 6V.V/Cuisine ","yyy",2,"Acheter Racleurs + couvercle (x2)+joint blixer 6v.v ","2020-01-17","2020-01-30","2020-02-04",5,"Ok","Achat des pieces détrachés OK",2.0833333333333332E-2]
[27,"xx","LV 1","Maintenance Corrective (En Panne)","Eclairage / SDB côté fille LV1","yyy",2,"ampoule du plafonnier de la salle de bain du grand côté grillée+ la porte du lieu qui donnevers le parc qui se referme mal","2020-01-19","2020-01-20","2020-01-20",0,"Ok","remplacement ampoule OK",1.3888888888888888E-2]
[28,"xx","Infirmerie","Informatique","PC / LV5","yyy",1,"Pc tres lent et absences de raccourcis et de PSI","2020-01-20","2020-01-20","2020-01-20",0,"Ok","remise en conformité du PC OK",2.0833333333333332E-2]
[29,"xx","Lingerie","Maintenance Corrective (En Panne)","Divers / ensemble Mas","yyy",2,"Angles de murs endommagé","2020-01-20","2020-01-20","2020-01-20",0,"Ok","Mise en place de renforts d'angle sur l'ensemble de la Mas",2.0833333333333332E-2]
[30,"xx","Ménage","Maintenance Preventive (Avant panne)","revetementde sol angle de mur /ch Sophie Lv1","yyy",3,"revetement de sol  angle placard  chambre sophie endommagé","2020-01-20","2020-01-20","2020-01-20",0,"Ok","remise en conformité de l'angle OK",6.9444444444444441E-3]
[31,"xx","Accompagnant de nuit","Informatique","PC / LV4","yyy",2,"Pas de raccourcis PSI","2020-01-21","2020-01-21","2020-01-21",0,"Ok","Remise en conformité du logiciel PSI OK",1.3888888888888888E-2]
[34,"xx","LV 4","Maintenance Corrective (En Panne)","neon/reserve LV4","yyy",1,"Les néons dans le local de la cuisine ne fonctionne pas. MERCI","2020-01-25","2020-01-27","2020-01-27",0,"Ok","remplacement du tube fluo HS",1.3888888888888888E-2]
[35,"xx","LV 2","Maintenance Corrective (En Panne)","Lit /CH Bernard Maurel LV2","yyy",1,"La tête de lit ne fonctionne plus","2020-01-27","2020-01-27","2020-01-27",0,"Ok","Bloc Moteur HS remplacement par un du LV5 et mise en commande ",2.0833333333333332E-2]
[36,"xx","LV 2","Maintenance Corrective (En Panne)","Fenetre /  SDB Milieu LV2","yyy",1,"la fenêtre de la SDB du milieu ne se ferme plus","2020-01-27","2020-01-27","2020-01-27",0,"Ok","remise en conformité de la fenêtre OK",2.0833333333333332E-2]
[37,"xx","Cuisine","Maintenance Corrective (En Panne)","Pommeau de douche + robinet/Vestiaire personnel","yyy",2,"Pommeau de douche HS + têtes de robinet eau chaude HS","2020-01-27","2020-01-27","2020-01-27",0,"Ok","remplacement du pommeau + des têtes de robinet OK",2.0833333333333332E-2]
[38,"xx","Directeur","Maintenance Corrective (En Panne)","Ballon ECS/ Chaufferie","yyy",1,"Chasse ballon journalière + augmentation des consignes du ballon et du choc legionnelle en attendant le prochain prélèvement de AVL12","2020-01-27","2020-01-27","2020-01-27",0,"Ok","Augmentation des consignes OK + chasse importante  du ballon d'eau chaude OK + relevés des températures sur l'ensemble de la MAS OK",4.1666666666666664E-2]
[39,"xx","LV 3","Travaux Neuf","tableaux /LV3","yyy",3,"Accrocher deux tableaux au mûr du salon la où il y a la télé s'il te plaît. ","2020-01-29","2020-01-30","2020-01-30",0,"Ok","Mise en place des tableaux OK",2.0833333333333332E-2]
[40,"xx","Lingerie","Maintenance Corrective (En Panne)","machines à laver","yyy",2,"vérifier témoins lumineux produits merci","2020-01-31","2020-01-31","2020-01-31",0,"Ok","Voir avec technicien de LEGOFF sonde HS",1.3888888888888888E-2]
[41,"xx","LV 4","Maintenance Corrective (En Panne)","serrure tiroir / Cuisine LV4","yyy",1,"La serrure du tirroir à couvert est cassé.  MERCI URGENT","2020-02-03","2020-02-04","2020-02-04",0,{"$f":"IF(H44=\"\",\"\",IF(J44=\"Annulée\",\"Annulée\",IF(K44<>\"\",\"Ok\",IF(J44<>\"\",IF(J44<TODAY(),\"Retard\",\"En cours\"),IF(I44<>\"\",\"A planifier\",\"A Lancer\")))))","v":"Ok"},"Remise en conformité de la serrure OK",1.3888888888888888E-2]
[42,"xx","LV 1","Maintenance Corrective (En Panne)","Leve personne / LV1","yyy",1,"Pédale de bras cassée","2020-02-07","2020-02-07","2020-02-07",0,"Ok","reparation de la pédale + essai OK",4.1666666666666664E-2]
[43,"xx","LV 1","Maintenance Corrective (En Panne)","leve personne/LV1","yyy",1,"peux-tu regarder le lève-personne sur le lieu 1 (impossible de le faire descendre) STP merci","2020-02-08","2020-02-10","2020-02-10",0,"Ok","Vérification du leve personne OK RAS Fonctionnement normal",6.9444444444444441E-3]
[44,"xx","LV 2","Maintenance Preventive (Avant panne)","PORTE DU FRIGO/LV2","yyy",2,"Bonjour la porte du frigo ne se ferme pas. elle fit que s ouvrir . il n y a rien qui gene (bouteilles ou autre ) si tu peux regarder stp merci ","2020-02-08","2020-02-10","2020-02-10",0,"Ok","remise en conformité de la porte OK",2.0833333333333332E-2]
[45,"xx","LV 1","Maintenance Corrective (En Panne)","toilettes grand côté ","yyy",1,"La lumière des toilettes ne fonctionne plus ","2020-02-10","2020-02-10","2020-02-10",0,"Ok","remplacement de l'ampoule OK",1.3888888888888888E-2]
[46,"xx","LV 1","Maintenance Corrective (En Panne)","chariot douche /SDB LV2","yyy",1,"le tuyau du chariot douche de la salle de bain grand côté est cassé ","2020-02-10","2020-02-14","2020-02-14",0,"Ok","remplacement du tuyau OK",1.3888888888888888E-2]
[47,"xx","Kiné","Maintenance Preventive (Avant panne)","Barriere de lit Nicolas /LV2","yyy",1,"Barriere non conforme au lit","2020-02-11","2020-02-11","2020-02-11",0,"Ok","remplacement des barrieres OK",2.0833333333333332E-2]
[48,"xx","Secrétariat","Siège fondation Opteo","Fondation Opteo","yyy",3,"Divers dépannages \"CF Cahier siege\"","2020-02-11","2020-02-11","2020-02-11",0,"Ok","divers dépannages réalisés \"CF cahier intervention siege\"",0.16666666666666666]
[49,"xx","LV 2","Maintenance Corrective (En Panne)","Fuite d'eau/ plafond petit couloir LV2","yyy",1,"fuite d'eau dans le couloir petit côté du LV2","2020-02-13","2020-02-13","2020-02-13",0,{"$f":"IF(H52=\"\",\"\",IF(J52=\"Annulée\",\"Annulée\",IF(K52<>\"\",\"Ok\",IF(J52<>\"\",IF(J52<TODAY(),\"Retard\",\"En cours\"),IF(I52<>\"\",\"A planifier\",\"A Lancer\")))))","v":"Ok"},"Remise en conformité du purgeur d'air sur réseau d'eau chaude OK",2.0833333333333332E-2]
[50,"xx","Infirmerie","Manutention Materiel ","Lit medicalisé / CH Lionel LV3","yyy",1,"Mettre en place un lit médicalisé dans la CH de Lionel sur le LV3","2020-02-13","2020-02-13","2020-02-13",0,"Ok","Mise en place d'un lit médicalisé et stockage du lit normal sur le LV5",2.0833333333333332E-2]
[51,"xx","Informatique","Informatique","WIFI / MAS BARAQUEVILLE","yyy",2,"Intervention Orange pour test WIFI","2020-02-13","2020-02-13","2020-02-13",0,"Ok","Test OK attente directive ID Fondation Optéo",8.3333333333333329E-2]
[52,"xx","Entretien","Déchetterie","Divers MAS/Déchetterie BQV","yyy",3,"Dechets divers à amener à la dechetterie de BQV ","2020-02-12","2020-02-12","2020-02-12",0,"Ok","Transport des dechets OK",4.1666666666666664E-2]
[53,"xx","LV 4","Informatique","Messagerie Outlook/ bureau LV4","yyy",1,"Probleme de réception des messages sur outlook","2020-02-13","2020-02-13","2020-02-13",0,"Ok","remise en conformité affichage logiciel outllook OK",1.3888888888888888E-2]
[54,"xx","Entretien","Véhicules","traffic blanc aménagé/Sacrispeyre ","yyy",2,"Amener pour réparation au garage Sacrispeyre suite rapport contrôle technique","2020-02-13","2020-02-13","2020-02-13",0,"Ok","transport du véhicule au garage Sacrispeyre OK",2.0833333333333332E-2]
[55,"xx","Kiné","Travaux Neuf","Etagere/ bureau kiné","yyy",3,"Mettre en place une etagere supplémentaire pour mes classeurs avec un arrêt en bout","2020-02-14","2020-02-24","2020-02-24",0,"Ok","Mise en place etagere supplémentaire + mise en place d'un arrêt OK",6.25E-2]
[56,"xx","LV 2","Maintenance Corrective (En Panne)","Clavier ordi/bureau LV2","yyy",2,"Le clavier de l'ordinateur ne fonctionne pas tout le temps. Parfois se bloque et on ne peut plus noté. Merci ","2020-02-14","2020-02-14","2020-02-14",0,"Ok","remplacement du clavier OK",1.3888888888888888E-2]
[57,"xx","LV 4","Maintenance Corrective (En Panne)","LV4 Barre de maintient de la salle de bain (petit côté)","yyy",2,"La barre de maintient se decroche du mur  et l'eau peu penetrer dans le mur.","2020-02-18","2020-02-18","2020-02-18",0,"Ok","retrait de la barre de maintient et réparation du mur OK + collage bas de porte réserve cuisine et entrée Lieu de vie",6.25E-2]
[58,"xx","Coordinatrice","Informatique","Logiciel presence resident/bureau coord","yyy",1,"Ajout d'une nouvelle personne dans la base","2020-02-18","2020-02-18","2020-02-18",0,"Ok","ajout d'une nouvelle personne dans la base + correction d'un bug + essais OK",4.1666666666666664E-2]
[59,"xx","LV 3","Informatique","Outlook / PC LV3","yyy",2,"Pas acces au menu des residents","2020-02-18","2020-02-18","2020-02-18",0,"Ok","verification messagerie RAS onglet messagerie Lieu de vie non ouvert",6.9444444444444441E-3]
[60,"xx","Entretien","Informatique","Regie informatique 3A/ ensemble MAS","yyy",3,"Régie informatique avec 3A tour de l'ensemble des PC de la Mas pour nettoyage et verification du bon fonctionnement.","2020-02-18","2020-02-18","2020-02-18",0,"Ok","RAS",8.3333333333333329E-2]
[61,"xx","Lingerie","Maintenance Preventive (Avant panne)","table à repasser","yyy",2,"sortie anormale de vapeur au trop plein","2020-02-19","2020-03-09","2020-03-06",-3,"Ok","remplacement de la soupape de sécurité OK",4.1666666666666664E-2]
[62,"xx","Lingerie","Maintenance Corrective (En Panne)","lave linge côté fenêtres","yyy",1,"défaut E6: porte ne se verrouille pas","2020-02-19","2020-02-20","2020-02-20",0,"Ok","remplacement de la gache HS + reglage +essais OK + maintenance  seche linge OK",8.3333333333333329E-2]
[63,"xx","LV 1","Maintenance Corrective (En Panne)","tablette fauteuil PIERRON/LV1","yyy",1,"La tablette ne tient plus sur le fauteuil de Nathalie PIERRON","2020-02-20","2020-02-20","2020-02-20",0,"Ok","Réparation de la tablette OK",4.1666666666666664E-2]
[64,"xx","Infirmerie","Travaux Neuf","Porte Entrée/Infirmerie","yyy",3,"Mettre un film opaque sur la vitre de la porte d'entrée de l'infirmerie","2020-02-20","2020-02-20","2020-02-20",0,"Ok","Mise en place d'un film opaque sur la vitre de la porte de l'infirmerie OK",1.3888888888888888E-2]
[65,"xx","LV 2","Maintenance Corrective (En Panne)","Placard/cuisine LV2","yyy",3,"Porte se ferme mal","2020-02-21","2020-02-21","2020-02-21",0,"Ok","remise en conformité verrou + reglage charniere OK",1.3888888888888888E-2]
[66,"xx","LV 4","Maintenance Corrective (En Panne)","fauteuil Maxime/LV4","yyy",1,"bras du fauteuil ne tient plus","2020-02-21","2020-02-21","2020-02-21",0,"Ok","remise en conformité des 2 bras du fauteuil de Maxime",2.0833333333333332E-2]
[67,"xx","Ménage","Maintenance Corrective (En Panne)","Ventouse porte coupe feu/ circulation lingerie","yyy",1,"ventouse de la porte coupe feu circulation lingerie arrachée","2020-02-21","2020-02-21","2020-02-21",0,"Ok","remise en conformité de la ventouse OK",2.0833333333333332E-2]
[68,"xx","Entretien","Véhicules","recuperation vehicules / renault rodez","yyy",3,"Amener et recuperer la zoe pour réparation ventilation Renault RODEZ","2020-02-20","2020-02-24","2020-02-24",0,"Ok","transport et recupération  zoe renault rodez ",0.125]
[69,"xx","LV 1","Maintenance Corrective (En Panne)","etagere radio \\ CH Martin Laurent","yyy",3,"réparer l'étagère de Laurent Martin","2020-02-26","2020-02-26","2020-02-26",0,"Ok","remise en conformité de l'étagère OK",2.0833333333333332E-2]
[70,"xx","Entretien","Travaux Neuf","Baie informatique / Local informatique","yyy",3,"Déplacer baie informatique de la Mas","2020-02-26","2020-02-26","2020-06-17",112,"Ok","déplacement de la baie OK",0.33333333333333331]
[71,"xx","Lingerie","Déchetterie","A droite  du sèche linge","yyy",1,"Prendre les sacs poubelles jaunes à la déchetterie , linge usé  à recycler.Merci.","2020-02-26","2020-03-06","2020-03-06",0,"Ok","transport des dechets OK",6.9444444444444441E-3]
[72,"xx","LV 4","Maintenance Corrective (En Panne)","Fauteuil relax / LV4","yyy",1,"Le fauteuil relax de valérie ne fonctionne pas merci de le regarder.","2020-02-28","2020-03-02","2020-03-02",0,"Ok","reparation de la telecommande + essais OK",4.1666666666666664E-2]
[73,"xx","Entretien","Maintenance Corrective (En Panne)","jumper hydrau/Parking MAS","yyy",1,"Le jumper hydrau à le haïllon bloqué, quand j'ai voulu le descendre, j'ai levé le crochet pas suffisament haut, il s'est bloqué, même en voulant le faire remonter, cela ne fonctionnait pas. Quand tu l'arrangera , si cela t'ai possible de me montrer pour le remettre en marche quand ce problème se présente. MERCI","2020-02-28","2020-03-02","2020-03-02",0,"Ok","deblocage du hayon OK rappel du fonctionnement du hayon à GOMBERT Colette OK",1.3888888888888888E-2]
[74,"xx","LV 3","Maintenance Corrective (En Panne)","radiateur /LV3","yyy",1,"coucou Régis! il fait froid sur le lv3 , serait il possible de \"débloquer\" certains radiateurs et/ou mettre un rideau \"thermique\" à la baie vitrée car Fabrice est souvent frais!!   merci      Stef LV3","2020-03-02","2020-03-06","2020-03-06",0,"Ok","impossible de mettre rideaux car issue de secours et le radiateur fonctionne correctement",6.9444444444444441E-3]
[75,"xx","Entretien","Véhicules","Zoe/Deckra CT BQV","yyy",3,"Passage de la Zoe au contrôle technique deckra BQV","2020-03-02","2020-03-02","2020-03-02",0,"Ok","Passage de la Zoé au CT Deckra BQV OK",6.25E-2]
[76,"xx","LV 2","Maintenance Corrective (En Panne)","Tuyau ecoulement pluvial / bureau","yyy",1,"Le tuyau d'évacuation de l'eau extérieure est moisi (champignons). Plaque du plafond taché à cause de l'humidité. Merci ","2020-03-03","2020-03-03","2020-03-03",0,"Ok","prise des mesures pour réalisation d'un coffre OK",1.3888888888888888E-2]
[77,"xx","LV 4","Maintenance Corrective (En Panne)","rampe + extincteur / LV4","yyy",1,"remettre en place les extincteurs et la stabilité des rampes arrachées par Maxime","2020-03-04","2020-03-04","2020-03-04",0,"Ok","remise en conformité des rampes et remise en place des crochets et extincteur arrachés.",8.3333333333333329E-2]
[78,"xx","Entretien","Déchetterie","dechets divers / Ensemble Mas","yyy",3,"Transport des divers dechets à la dechetterie de BQV","2020-03-05","2020-03-05","2020-03-05",0,"Ok","transport des dechets OK",6.25E-2]
[79,"xx","Directeur","Administratif","Réunion COVID-19/ LV5","yyy",2,"Reunion cellule de crise COVID-19 sur le LV5","2020-03-04","2020-03-04","2020-03-04",0,"Ok","Reunion cellule de crise COVID-19 sur le LV5",4.1666666666666664E-2]
[80,"xx","LV 3","Maintenance Corrective (En Panne)","ToiletteSDB / lv3","yyy",1,"Peux tu stp, réparer la chasse d'eau des WC salle de bains côté filles? Thanks !!","2020-03-05","2020-03-06","2020-03-06",0,"Ok","remplacement du mécanisme de chasse OK",2.0833333333333332E-2]
[81,"xx","LV 2","Maintenance Corrective (En Panne)","Toilettes residents/ LV2","yyy",1,"Chasse d'eau toilettes grand coté ne fonctionne plus!","2020-03-07","2020-03-10","2020-03-10",0,"Ok","remplacement du mecanisme de chasse HS",1.3888888888888888E-2]
[82,"xx","Lingerie","Manutention Materiel ","lave linge côté droit / lingerie","yyy",2,"fuite à la machine à laver côté fenêtre","2020-03-09","2020-03-10","2020-03-10",0,"Ok","redressage porte de la machine côté sale + essai OK",4.1666666666666664E-2]
[83,"xx","Infirmerie","Informatique","PC/Infirmerie","yyy",2,"Pb de connection medimail","2020-03-10","2020-03-10","2020-03-10",0,"Ok","remise en conformité de medimail+ essai OK",1.3888888888888888E-2]
[84,"xx","Chef de service","Maintenance Corrective (En Panne)","fax/secretariat","yyy",1,"le fax ne fonctionne plus","2020-03-10","2020-03-10","2020-03-10",0,"Ok","recherche panne RAS de notre côté appel SAV Orange + test OK + remise en conformité doc technique",8.3333333333333329E-2]
[85,"xx","Entretien","Maintenance Corrective (En Panne)","roue dégonflé fauteuil/LV2","yyy",1,"La roue drte du fauteuil de Sophie est a plat . merci","2020-03-11","2020-03-12","2020-03-12",0,"Ok","remise en conformité de la pression et verification de l'ensemble des fauteuils sur le LV2",1.3888888888888888E-2]
[86,"xx","LV 4","Maintenance Preventive (Avant panne)","Lave vaisselle/LV4","yyy",1,"A la fin du cycle, le lave vaisselle bippe plusieurs fois( inhabituel), marque E24 et ne sèche pas la vaisselle.","2020-03-11","2020-03-12","2020-03-12",0,"Ok","nettoyage du filtre d'evacuation et retrait de divers debris de verre obstruants",2.0833333333333332E-2]
[87,"xx","LV 3","Maintenance Corrective (En Panne)","téléphone et thermometre ","yyy",1,"changer piles téléphone et thermometre vert ! stp , merci !!!","2020-03-12","2020-03-18","2020-03-18",0,"Ok","remplacement des piles de l'ensemble des thermometres OK + pile telephonne",1.3888888888888888E-2]
[88,"xx","LV 3","Manutention Materiel ","tableau à accrocher /LV3","yyy",3,"accrocher les 2 tableaux \"photos\" à droite de la télé stp merci ! ","2020-03-12","2020-03-26","2020-03-26",0,"Ok","accrochage des 2 tableausx OK",1.3888888888888888E-2]
[89,"xx","Directeur","Administratif","Reunion COVID-19 /LV5","yyy",1,"Reunion COVID-19 mise en place signalisation et barrieres","2020-03-12","2020-03-12","2020-03-12",0,"Ok","mise en place signalisation OK",8.3333333333333329E-2]
[90,"xx","Kiné","Maintenance Corrective (En Panne)","thermometre / ensemble MAS","yyy",1,"verifier fonctionnement et remplacement de piles","2020-03-12","2020-03-12","2020-03-12",0,"Ok","remplacement de piles OK + test de fonctionnement OK mise en stock Covd-19 5 thermometres",2.0833333333333332E-2]
[91,"xx","Directeur","Informatique","gestion de stock/ Covid-19","yyy",1,"Mettre en place la gestion du stock de secours Covid-19","2020-03-12","2020-03-12","2020-03-12",0,"Ok","Mise en place d'une gestion de Stock OK",0.125]
[92,"xx","LV 2","Maintenance Corrective (En Panne)","poignee auto/ porte reserve LV2","yyy",1,"La porte de la réserve est bloquée, la touche 2 ne fonctionne plus. Plus d'accès aux tenues, protections, magimix,... Peux-tu la réparer très rapidement, merci.","2020-03-15","2020-03-18","2020-03-18",0,"Ok","remise en conformité de la touche + essais de fonctionnement OK",1.3888888888888888E-2]
[93,"xx","LV 5","Maintenance Corrective (En Panne)","porte SDB /LV5","yyy",1,"porte s de b ( aile droite) et première à droite ne ferme plus ( Maxime étant sur le lv5, il serait préférable qu'elle soit vérouillée) Merci","2020-03-17","2020-03-18","2020-03-18",0,"Ok","remplacement des pile et remise en conformité de la ferrure de porte OK",4.1666666666666664E-2]
[94,"xx","Accompagnant de nuit","Maintenance Corrective (En Panne)","poignée de porte auto/ piscine","yyy",1,"trouvé porte piscine ouverte, elle ne se vérouille pas automatiquement ( il faut appuyer sur verrou) . Piles ? Merci","2020-03-17","2020-03-18","2020-03-18",0,"Ok","essais de la poignée OK verrouillage auto fonctionne porte certainement mal refermée",6.9444444444444441E-3]
[95,"xx","LV 2","Maintenance Corrective (En Panne)","Placard /cuisine","yyy",1,"La serrure du placard à gâteaux de la cuisine (sous le micro onde), est tomber dans le placard. On ne peut plus l'ouvrir. Merci ","2020-03-17","2020-03-18","2020-03-18",0,"Ok","remise en conformité OK",1.3888888888888888E-2]
[96,"xx","LV 5","Maintenance Corrective (En Panne)","plaque plafond salon/ lv5","yyy",3,"la plaque du plafond s'est légèrement cassée en jouant au ballon avec Maxime, remise en place mais manque un petit morceau.","2020-03-17","2020-03-20","2020-03-20",0,"Ok","remplacement de la plaque une fois le lieu de vie vide",6.9444444444444441E-3]
[97,"xx","LV 3","Maintenance Corrective (En Panne)","gonflé les pneus du velo/LV3","yyy",1,"peut- tu stp gonflé les pneus du velo qui se trouve sur le lv3+  les ballons pour que les residents puissent jouer ds le parc .merci pour eux","2020-03-18","2020-03-20","2020-03-20",0,{"$f":"IF(H100=\"\",\"\",IF(J100=\"Annulée\",\"Annulée\",IF(K100<>\"\",\"Ok\",IF(J100<>\"\",IF(J100<TODAY(),\"Retard\",\"En cours\"),IF(I100<>\"\",\"A planifier\",\"A Lancer\")))))","v":"Ok"},"gonflage des velos et des ballons OK",2.0833333333333332E-2]
[98,"xx","LV 5","Maintenance Corrective (En Panne)","WC personnel bouché/LV5","yyy",1,"Wc vestiaire personnel bouché","2020-03-20","2020-03-20","2020-03-20",0,"Ok","remise en conformité du WC OK",2.0833333333333332E-2]
[99,"xx","Ménage","Maintenance Corrective (En Panne)","distributeur papier / cuisine LV5","yyy",3,"changement de distributeur de savon cassé  sur LV3 et changement de distributeur a papier sur LV5 ","2020-03-20","2020-04-30","2020-04-30",0,"Ok","remplacement du distributeur OK",1.3888888888888888E-2]
[100,"xx","LV 5","Maintenance Corrective (En Panne)","Chambre Amélie /LV5","yyy",2,"Le volet de sa chambre ne fonctionne pas (ouverture)","2020-03-22","2020-03-31","2020-03-31",0,"Ok","réparation et reglage des fins de courses OK",4.1666666666666664E-2]
[101,"xx","Accompagnant de nuit","Maintenance Corrective (En Panne)","PSI PC/ bureau LV3","yyy",1,"je n'ai plus sur ma session le psi","2020-03-25","2020-03-25","2020-03-30",5,"Ok","remise en conformité session PSI sur poste LV3",6.9444444444444441E-3]
[102,"xx","LV 3","Maintenance Corrective (En Panne)","Poignée SDB / LV3","yyy",1,"porte salle de bain grand côté ne s'ouvre plus ( la touche du 1 ne fonctionne pas) essaie de changer piles mais ne s'ouvre tjs pas merci","2020-03-27","2020-03-27","2020-03-27",0,"Ok","remplacement poignée car HS",4.1666666666666664E-2]
[103,"xx","LV 4","Maintenance Corrective (En Panne)","porte véranda lieu coté gauche /LV4","yyy",1,"la porte verrouillée ne tient pas , Pascal arrive à l'ouvrir en s'appuyant contre","2020-03-29","2020-04-01","2020-04-01",0,"Ok","reparation crochet de fermeture porte OK",2.0833333333333332E-2]
[104,"xx","LV 5","Maintenance Corrective (En Panne)","porte SDB/LV5","yyy",1,"La porte de la 1ere SDB couloir de droite ne se vérouille pas ","2020-03-29","2020-03-30","2020-03-30",0,"Ok","remise en conformité de la poignée de la SDB OK",4.1666666666666664E-2]
[105,"xx","LV 1","Maintenance Corrective (En Panne)","Pendule / Salon LV1","yyy",3,"Pendule du salon ne fonctionne plus","2020-03-30","2020-03-30","2020-03-30",0,"Ok","remise en conformité de la pendule OK",1.3888888888888888E-2]
[106,"xx","Entretien","Maintenance Corrective (En Panne)","fuite tuyau d'eau chaude/ chaufferie","yyy",1,"fuite sur un tuyau d'eau chaude en chaufferie","2020-03-31","2020-03-31","2020-03-31",0,"Ok","réparation de la fuite OK",8.3333333333333329E-2]
[107,"xx","LV 3","Informatique","Parametrages informatique/PC LV3","yyy",2,"Problème PSI et messagerie","2020-03-31","2020-04-01","2020-04-01",0,"Ok","Paramétrages PSI OK + messagerie OK",4.1666666666666664E-2]
[108,"xx","Ergothérapeute","Informatique","PC/BIP","yyy",2,"Mettre en place TEAMS + micro+haut parleur","2020-04-01","2020-04-01","2020-04-01",0,"Ok","Mise en place micro + haut parleur + parametrage TEAMS+ ONE DRIVE OK",2.0833333333333332E-2]
[109,"xx","Directeur","Travaux Neuf","aménagement / Zone COVID","yyy",1,"Réaménagement de la Zone COVID avec reseau informatique + eclairage exterieur+mise en place de TV + aménagement extérieur","2020-04-03","2020-04-03","2020-04-03",0,"Ok","ensemble des travaux réalisés",0.66666666666666663]
[110,"xx","LV 4","Maintenance Preventive (Avant panne)","prise électrique.","yyy",2,"La prise du lit de Myriam sort un peu du mur, te serait -il possible de la regarder pour la sécurité de tous. MERCI","2020-04-04","2020-04-06","2020-04-06",0,"Ok","remise en conformité de la prise OK",6.9444444444444441E-3]
[111,"xx","LV 4","Maintenance Corrective (En Panne)","Vélo de Pascal","yyy",1,"Le vélo de Pascal a les pneus dégonflé ou crevé, peut tu le regarder. MERCI","2020-04-04","2020-06-09","2020-06-09",0,"Ok","remise en conformité du vélo OK",2.0833333333333332E-2]
[112,"xx","LV 5","Maintenance Corrective (En Panne)","fauteuil Redoules/Lv5","yyy",1,"gonfler les roues du fauteuil de Redoules LV5","2020-04-07","2020-04-07","2020-04-07",0,"Ok","gonflage des roues OK",6.9444444444444441E-3]
[113,"xx","LV 1","Maintenance Corrective (En Panne)","Barriere coté fenetre chambre Marie helene ","yyy",1,"La barriere du lit coté fenetre chez marie helene actuellement occupé par vanessa est instable . ","2020-04-08","2020-04-07","2020-04-07",0,"Ok","remplacmenent barriere par une du LV5",1.3888888888888888E-2]
[114,"xx","LV 5","Maintenance Corrective (En Panne)","poignnée DASRI/LV5","yyy",2,"Porte de la reserve menage ne fonctionne pas. Difficulté à la verrouiller","2020-04-09","2020-04-09","2020-04-09",0,"Ok","remise en conformité de la poignée OK",2.0833333333333332E-2]
[115,"xx","LV 2","Maintenance Corrective (En Panne)","chasse d'eau WC/LV2","yyy",1,"fuite sur chasse d'eau WC grand côté LV2","2020-04-10","2020-04-10","2020-04-10",0,"Ok","remplacement systeme d'arrivée d'eau + reglage OK",2.0833333333333332E-2]
[116,"xx","Chef de service","Maintenance Corrective (En Panne)","Groom/LV3","yyy",2,"Groom porte LV3 HS","2020-04-14","2020-04-14","2020-04-14",0,"Ok","Remplacement + réglage du groom OK",2.0833333333333332E-2]
[117,"xx","LV 2","Maintenance Corrective (En Panne)","Fauteuil Darakchan/ LV2","yyy",1,"Absence de vis sur patte de maintient coque ","2020-04-14","2020-04-14","2020-04-14",0,"Ok","Remise en conformité et vérification de l'ensemble du fauteuil OK",2.0833333333333332E-2]
[118,"xx","LV 2","Maintenance Corrective (En Panne)","Cale pied Fauteuil Alain/ LV2","yyy",1,"Cale pied droit du fauteuil d'Alain cassé","2020-04-14","2020-04-14","2020-04-14",0,"Ok","remplacement de l'ensemble de la plaque de maintient du siege coque",4.1666666666666664E-2]
[119,"xx","Coordinatrice","Manutention Materiel ","Achat postes CD Résidents","yyy",2,"Acheter 6 postes CD aux résidents chez Pro et Compagnie","2020-04-14","2020-04-14","2020-04-14",0,"Ok","Achat de 4 postes CD aux résidents chez PRO et Compagnie",4.1666666666666664E-2]
[120,"xx","LV 1","Maintenance Corrective (En Panne)","Tétière de Vanessa LELAIT","yyy",1,"Hello!! Vanessa demande si on peut lui rapprocher l'appui-tête . Je n'y arrive pas. Je pense qu'il faut dévisser. STP Peux-tu le faire ce matin ? MERCI MERCI MERCI!!!!!!! Marie-M","2020-04-16","2020-04-16","2020-04-16",0,"Ok","réglage tétière du fauteuil de Vanessa OK",1.3888888888888888E-2]
[121,"xx","LV 5","Maintenance Corrective (En Panne)","douchette  /SDB LV5","yyy",1,"la douchette de la premiere SDB à droite est HS","2020-04-16","2020-04-16","2020-04-16",0,"Ok","remplacement de la douchette anti legionelle car fuit de tous les côté OK",1.3888888888888888E-2]
[122,"xx","LV 3","Maintenance Corrective (En Panne)","Moteur matelas a air brigitte S ","yyy",2,"Le moteur du matelas a air de brigitte Sorrel  sonne et clignotte ","2020-04-17","2020-04-17","2020-04-17",0,"Ok","remplacement du  compresseur endommagé + reglage + test OK",6.25E-2]
[123,"xx","LV 1","Maintenance Corrective (En Panne)","evier /LV1","yyy",1,"fuite évacuation","2020-04-20","2020-04-20","2020-04-20",0,"Ok","réparation de l'ensemble de l'évacuation OK",2.0833333333333332E-2]
[124,"xx","LV 2","Maintenance Corrective (En Panne)","évier du lieu","yyy",1,"évier bouché","2020-04-20","2020-04-24","2020-04-24",0,"Ok","debouchage et réparation siphon OK",2.0833333333333332E-2]
[125,"xx","LV 4","Maintenance Corrective (En Panne)","TRANSAT ","yyy",2,"le transat est \"bancal \" et nous ne pouvons revisser la tige filetée ...","2020-04-20","2020-04-24","2020-04-24",0,"Ok","remise en conformité du transat OK",2.0833333333333332E-2]
[126,"xx","LV 3","Manutention Materiel ","Lit et matelas morpho / CH Brigitte SORREL","yyy",2,"Pourrais tu enlever le lit et le matelas de la chambre de Brigitte SORREL","2020-04-27","2020-04-27","2020-04-27",0,"Ok","Retrait du lit et du matelas de Brigitte et stockage dans la reserve du LV5",2.0833333333333332E-2]
[127,"xx","LV 5","Maintenance Corrective (En Panne)","Pommeau / SDB LV5 ","yyy",1," fuite de la poire de la douche de la première sdb ","2020-04-27","2020-04-28","2020-04-28",0,"Ok","remplacement du pommeau de douche OK",1.0416666666666666E-2]
[128,"xx","Coordinatrice","Informatique","PC/Bureau coord","yyy",2,"Paramétrage du PC ","2020-04-27","2020-04-27","2020-04-27",0,"Ok","Paramétrage PC",4.1666666666666664E-2]
[129,"xx","Coordinatrice","Informatique","PC Portable/BIP","yyy",2,"Mise en place et parametrage logiciel montage video + logiciel montage photo ","2020-04-28","2020-04-28","2020-04-28",0,"Ok","Paramétrage pc portable OK",4.1666666666666664E-2]
[130,"xx","LV 2","Maintenance Preventive (Avant panne)","pommeau de douche salles de bain petit coté","yyy",2,"manque de pression","2020-04-28","2020-04-28","2020-04-28",0,"Ok","remplacement pommeau de douche + essais OK",1.3888888888888888E-2]
[131,"xx","LV 5","Maintenance Corrective (En Panne)","Pommeau de douche / SDB Droite LV5","yyy",2,"Pommeau de douche SDB HS","2020-04-29","2020-04-29","2020-04-29",0,"Ok","remplacement du pommeau de douche OK",1.0416666666666666E-2]
[132,"xx","LV 3","Maintenance Corrective (En Panne)","Distributeur savon / cuisine + WC perso LV5","yyy",2,"Remplacer les distributeurs savon cuisine + WC personnel ","2020-04-30","2020-04-30","2020-04-30",0,"Ok","remplacement des distributeur OK",2.0833333333333332E-2]
[133,"xx","LV 4","Maintenance Corrective (En Panne)","Porte veranda / LV4","yyy",1,"Bonjour régis la porte de la véranda côté cuisine ne ferme plus.cordialement régis","2020-05-01","2020-05-04","2020-05-04",0,"Ok","remise en conformité du verouillage de la porte OK",2.0833333333333332E-2]
[134,"xx","LV 3","Maintenance Corrective (En Panne)","Poubelle coté Garçons LV3 ","yyy",2,"La poubelle de la salle de bain coté garçons est cassé ","2020-05-03","2020-05-04","2020-05-04",0,"Ok","remplacement de la poubelle OK",1.3888888888888888E-2]
[135,"xx","Infirmerie","Informatique","Imprante/Infirmerie","yyy",1,"Imprimante en erreur papier et cartouche","2020-05-04","2020-05-04","2020-05-04",0,"Ok","Retrait et remise en place de la cartouche OK + ajout feuille dans bac papier OK + test de fonctionnement OK",2.0833333333333332E-2]
[136,"xx","LV 4","Maintenance Corrective (En Panne)","neon/ local cuisine","yyy",1,"Les neons sur l'armoire a tt dans le local cuisine ne fonctionne pas , merci.","2020-05-04","2020-05-05","2020-05-05",0,"Ok","remplacement des tubes néons OK",1.3888888888888888E-2]
[137,"xx","LV 2","Maintenance Corrective (En Panne)","poubelle salle de bain ","yyy",3,"poubelle cassée voir si réparable merci","2020-05-05","2020-06-04","2020-06-04",0,"Ok","réparation de la poubelle endommagée OK",2.0833333333333332E-2]
[138,"xx","LV 5","Maintenance Corrective (En Panne)","Main courante","yyy",3,"La main courante du couloir direction les chambres est decrochée du mur mis dans le bureau LV5","2020-05-12","2020-05-12","2020-05-12",0,{"$f":"IF(H141=\"\",\"\",IF(J141=\"Annulée\",\"Annulée\",IF(K141<>\"\",\"Ok\",IF(J141<>\"\",IF(J141<TODAY(),\"Retard\",\"En cours\"),IF(I141<>\"\",\"A planifier\",\"A Lancer\")))))","v":"Ok"},"retrait de la main courante OK",2.0833333333333332E-2]
[139,"xx","LV 2","Maintenance Corrective (En Panne)","bureau lieu 2","yyy",1,"flaque d'eau au niveau de la canalisation dans le bureau ainsi que la canalisation rempli de moisissure depuis plusieurs mois ","2020-05-14","2020-06-04","2020-06-04",0,"Ok","ouverture du robinet OK plus de fuite ",1.3888888888888888E-2]
[140,"xx","LV 4","Maintenance Corrective (En Panne)","Pommeau de douche/Sdb côté garcon LV4","yyy",1,"changer le joint du pommeau de douche car jet .","2020-05-27","2020-05-27","2020-05-27",0,"Ok","remplacement du pommeau de douche OK",1.3888888888888888E-2]
[141,"xx","LV 4","Maintenance Corrective (En Panne)","porte de PASCAL Chambre + gache porte Maxime / LV4","yyy",1,"LE battant de la chambre de Pascal est ABIME  : difficile de fermer la porte à clé ... + gache de la porte de Maxime à remplacer.","2020-05-23","2020-05-29","2020-05-29",0,"Ok","remise en conformité de la porte de Pascal + remplacement gache de porte de Maxime OK",4.1666666666666664E-2]
[142,"xx","Lingerie","Maintenance Corrective (En Panne)","lave linge","yyy",1,"probleme arrivée d'eau lave linge N° 1","2020-05-25","2020-05-25","2020-05-25",0,"Ok","Demontage et nettoyage electrovanne de rejet d'eau",4.1666666666666664E-2]
[143,"xx","LV 3","Maintenance Corrective (En Panne)","verrou de porte / Ch Bernard lv3","yyy",1,"bernard a arraché le verrou de la porte de sa chambre .","2020-05-27","2020-05-27","2020-05-27",0,"Ok","remise en conformité du verrou de la chambre de Bernard OK",1.3888888888888888E-2]
[144,"xx","LV 3","Manutention Materiel ","salon de jardin","yyy",3,"regis peux- tu nettoyer le salon de jardin qui se trouve sous les arbres devant le lieu de vie3 les residents aiment bien s'y installer il fait bon vivre sous les arbres ","2020-05-27","2020-05-27","2020-05-27",0,"Ok","poncage des 2 salons de jardin OK",8.3333333333333329E-2]
[145,"xx","LV 4","Maintenance Corrective (En Panne)","fauteuil Nathalie / LV4","yyy",2,"réparation du frein du fauteuil de Nathalie Porro","2020-05-27","2020-05-27","2020-05-27",0,"Ok","réparation des freins du fauteuil de Nathalie OK",2.0833333333333332E-2]
[146,"xx","LV 1","Maintenance Corrective (En Panne)","cale pieds fauteuil Laurent/LV2 ","yyy",1,"cale pieds du fauteuil de Laurent cassé","2020-05-28","2020-05-28","2020-05-28",0,"Ok","remise en conformité du cale pieds et réglages OK",4.1666666666666664E-2]
[147,"xx","Infirmerie","Informatique","PC 2 / Infirmerie","yyy",2,"Mise en place du PC zone COVID vers Infirmerie et parametrage de ma session Merci.","2020-05-28","2020-05-28","2020-05-28",0,"Ok","remise en place du PC zone covid vers infirmerie + parametrage session OK",4.1666666666666664E-2]
[148,"xx","LV 2","Maintenance Corrective (En Panne)","chauffe plat/ cuisine lv2","yyy",1,"thermostat defectueux","2020-06-02","2020-06-09","2020-06-09",0,"Ok","remplacement du thermostat + essais OK",4.1666666666666664E-2]
[149,"xx","LV 2","Maintenance Corrective (En Panne)","salle de bains grd côté","yyy",2,"bonjour il faudrait voir pour changer le pommeau douche stp merci ","2020-06-09","2020-06-09","2020-06-09",0,"Ok","remplacement du pommeau de douche OK",1.3888888888888888E-2]
[150,"xx","LV 2","Maintenance Corrective (En Panne)","Bureaux","yyy",2,"bonjour pourrais tu voir pour traiter le tuyau d'evacuation qui est tout \"moisi\" car cela peut avoir des consequences sur la santé Merci","2020-07-02","2020-07-02","2020-07-02",0,"Ok","Agencement coffre autour du tuyau OK",0.125]
[151,"xx","Infirmerie","Manutention Materiel ","Table cuisine / LV 4","yyy",1,"remplacer la table de la cuisine du LV4 en récupérant la table du LV2 et mettre une table jaune du LV5 sur le LV2 s'il te plaît","2020-06-04","2020-06-04","2020-06-04",0,"Ok","mise en place des tables OK",3.125E-2]
[152,"xx","Coordinatrice","Informatique","divers informatiques / PC coord","yyy",2,"problème divers informatique création film + nettoyage ordinateur + installation de programmes....","2020-06-04","2020-06-04","2020-06-04",0,"Ok","divers difficultées en informatique résolues",4.1666666666666664E-2]
[153,"xx","Entretien","Maintenance Corrective (En Panne)","CTA / PISCINE","yyy",1,"Moteur Soufflage  CTA Piscine HS","2020-06-04","2020-06-30","2020-06-09",-21,"Ok","remplacement du moteur cf bon de livraison du 05.06.2020 EM DISTRIBUTION moteur triphasé WEG B3 2.2 kw, 1500tr/min, IE3 Alu",8.3333333333333329E-2]
[154,"xx","LV 2","Maintenance Corrective (En Panne)","WC PERSONNEL/LV2","yyy",2,"Merci de réparer les WC du personnel car il y a des fuites. Bonne journée!","2020-06-05","2020-06-05","2020-06-05",0,"Ok","remplacment du système d'arrivé d'eau OK",4.1666666666666664E-2]
[155,"xx","LV 3","Maintenance Corrective (En Panne)","Telephone DECT / Lv3 ","yyy",1,"Le telephone ne fonctionne casiment plus , soit il ne sonne pas , soit il coupe , soit on entend pas , la conversation est entrecoupé, a voir .. ","2020-06-06","2020-06-30","2020-06-30",0,"Ok","remplacement du DECT + parametrage OK",2.0833333333333332E-2]
[156,"xx","LV 3","Manutention Materiel ","Jardinieres / Terrasse LV3 ","yyy",1,"coucou ! il faut visser le dessous du \"jardin\" , il peut tomber à tout moment ! stp merci!! ","2020-06-08","2020-06-09","2020-06-09",0,"Ok","renforcement des jardinieres du LV3",6.25E-2]
[157,"xx","LV 4","Maintenance Corrective (En Panne)","Distributeur de savon de la cuisine","yyy",2,"remplacement du distributeur de savon de la cuisine en te remerçiant","2020-06-08","2020-06-11","2020-06-11",0,"Ok","remplacement du distributeur de savon OK",1.0416666666666666E-2]
[158,"xx","LV 3","Maintenance Corrective (En Panne)","chasse d'eau / WC LV3","yyy",2," Coucou!!! Bernard a encore cassé la chasse ! Merci !!!","2020-06-08","2020-06-09","2020-06-09",0,"Ok","remplacement du bati chasse OK",2.0833333333333332E-2]
[159,"xx","LV 3","Déchetterie","chaise jardin orange + adaptable ","yyy",3,"Coucou qd tu iras à la déchetterie si tu peux passer au 3 récupérer chaise orange de jardin + adaptable , les 2 sont cassés ! Merci ","2020-06-09","2020-06-17","2020-06-17",0,"Ok","Récupération des dechets OK",2.0833333333333332E-2]
[160,"xx","LV 4","Maintenance Corrective (En Panne)","fauteuil de Valérie","yyy",1,"Le fauteuil de Valérie  ne fonctionne pas, voir la panne et nous en informer. MERCI.","2020-06-10","2020-06-16","2020-06-16",0,"Ok","réparation de la télécommande + bloc secteur essais OK",6.25E-2]
[161,"xx","LV 4","Maintenance Preventive (Avant panne)","digicode de la réserve de la cuisine","yyy",1,"Vérifier le digicode de la réserve de la cuisine, il ne ferme pas si on ne vérifie pas, au risque que Maxime rentre pour se servir . Merci.","2020-06-10","2020-06-11","2020-06-11",0,"Ok","vérification du digicode OK fonctionnement normal",6.9444444444444441E-3]
[162,"xx","LV 1","Manutention Materiel ","Lit Stephane / LV5","yyy",2,"Transferer L'OTN vers le lieu de vie 5 et son lit du secteur COVID vers la chambre N°6 côté droit LV5","2020-06-11","2020-06-11","2020-06-11",0,"Ok","Transfert du matériel vers la Chambre 6 OK",2.0833333333333332E-2]
[163,"xx","LV 4","Manutention Materiel ","Frigo / LV4","yyy",2,"Remplacer le frigo de la cuisine car les temperatures sont mauvaises","2020-06-11","2020-06-11","2020-06-11",0,"Ok","frigo en place fonctionne correctement température à mon arrivé 5 C°, remplacement avec celui de la cuisine du lieu OK",2.0833333333333332E-2]
[164,"xx","Coordinatrice","Informatique","Facebook / bureau coord","yyy",3,"Probleme de son sur video diffusé sur Facebook","2020-06-11","2020-06-11","2020-06-11",0,"Ok","son inactif car droit SACEM sur musique choisie",6.9444444444444441E-3]
[165,"xx","LV 4","Maintenance Corrective (En Panne)","Réserve cuisine/LV4","yyy",2,"L'étagère de la réserve de la cuisine est tombée et une barre est tordue.","2020-06-11","2020-06-16","2020-06-16",0,"Ok","réparation de l'étagère  OK",2.0833333333333332E-2]
[166,"xx","LV 4","Maintenance Corrective (En Panne)","table cuisine / LV4","yyy",2,"reparer pieds de la table demi ronde","2020-06-16","2020-06-16","2020-06-16",0,"Ok","remise en conformité des pieds OK",1.3888888888888888E-2]
[167,"xx","Coordinatrice","Informatique","PC/Bureau Coord","yyy",1,"Mon PC ne démarre plus","2020-06-16","2020-06-16","2020-06-16",0,"Ok","remise en conformité du PC lancement par port USB au démarrage avec appareil photo connecté.retait + relance PC démarrage OK",3.125E-2]
[168,"xx","Directeur","Maintenance Preventive (Avant panne)","Coffre / Bureau coord","yyy",1,"scellé le coffre du bureau des coords","2020-06-16","2020-06-16","2020-06-16",0,"Ok","Scellement du coffre OK",4.1666666666666664E-2]
[169,"xx","LV 4","Maintenance Corrective (En Panne)","meuble vert bureau LV4","yyy",3,"Bonjour Régis, merci de venir réparer la porte du meuble vert dans notre bureau. Bonne journée! ","2020-06-16","2020-06-18","2020-06-18",0,"Ok","réparation charniere de la porte du meuble OK",2.0833333333333332E-2]
[170,"xx","Entretien","Déchetterie","divers / Tous","yyy",3,"recupérer les dechets sur l'ensemble des lieux","2020-06-17","2020-06-17","2020-06-17",0,"Ok","transport des déchets à la dechetterie de BQV",6.25E-2]
[171,"xx","Coordinatrice","Informatique","PC/Bureau coord","yyy",2,"Probleme d'affichage feuille semaine de repas au moment de l'impression","2020-06-18","2020-06-18","2020-06-18",0,"Ok","Parametrage de la zone d'impression de la feuille semaine OK",6.9444444444444441E-3]
[172,"xx","LV 4","Maintenance Corrective (En Panne)","instecteur","yyy",1,"Pourrait tu remettre l'instincteur petit côté, Maxime la arracher du mur, il se trouve dans le bureau avec son support. MERCI.","2020-06-21","2020-06-22","2020-06-22",0,"Ok","remise en conformité de l'extincteur OK",1.3888888888888888E-2]
[173,"xx","LV 2","Manutention Materiel ","Fauteuil Alain Cazottes","yyy",2,"L'accoudoir gauche d'Alain Cazottes s'est dévisser. Merci","2020-06-23","2020-06-26","2020-06-26",0,"Ok","réparation de l'accoudoir d'Alain Cazottes OK",2.0833333333333332E-2]
[174,"xx","LV 2","Maintenance Corrective (En Panne)","Véranda côté extérieur","yyy",1,"Nous avons un nid de guêpe à l'extérieur de la véranda au niveau de la manivelle en haut dans l'angle au dessus du store. Merci","2020-06-23","2020-06-25","2020-06-25",0,"Ok","Destruction du nid avec bombe anti guêpe OK",1.3888888888888888E-2]
[175,"xx","LV 4","Maintenance Corrective (En Panne)","cadre photo Marie pierre / LV4","yyy",2,"Peux tu reparer le cadre photo qui est a la chambre de Marie Pierre Rigal stp (actuellement dans le bureau du personnel)","2020-06-23","2020-07-07","2020-07-07",0,"Ok","réparation du cadre phot OK",1.3888888888888888E-2]
[176,"xx","LV 2","Informatique","PSI / bureau","yyy",1,"PSI ne fonctionne pas","2020-06-24","2020-06-24","2020-06-24",0,"Ok","Réparation de la base logicielle + essais OK",1.3888888888888888E-2]
[177,"xx","Directeur","Siège fondation Opteo","Remise au propre sous sol / Siege fondation Opteo","yyy",3,"Remise au propre du sous sol + réparation gache porte sous sol","2020-06-23","2020-06-23","2020-06-23",0,"Ok","remise au propre OK + réparation gache sous sol OK",0.33333333333333331]
[178,"xx","Entretien","Déchetterie","divers dechets / ensemble MAS","yyy",3,"Divers dechets ensemble MAS","2020-06-24","2020-06-24","2020-06-24",0,"Ok","vidage des dechets OK",4.1666666666666664E-2]
[179,"xx","Entretien","Informatique","Autocom / Local informatique","yyy",3,"Reinitialiser les bornes de l'autocom + mise en place musique d'accueil + parametrage DECT LV3","2020-06-24","2020-06-24","2020-06-24",0,"Ok","reinitialisation OK + parametrage DECT + mise en place musique d'attente et de predecrochage OK",4.1666666666666664E-2]
[180,"xx","Directeur","Administratif","denrées / College Albert CAMUS","yyy",1,"récupérer des denrées au college de BQV","2020-06-24","2020-06-24","2020-06-24",0,"Ok","récupération des denrées OK",3.125E-2]
[181,"xx","LV 4","Maintenance Corrective (En Panne)","LV4 / CH Laurent","yyy",2,"Porte de la chambre de Laurent cassée.","2020-06-24","2020-06-25","2020-06-25",0,"Ok","réparation de la porte de Laurent OK",4.1666666666666664E-2]
[182,"xx","LV 2","Maintenance Corrective (En Panne)","plate forme pese personne","yyy",2,"En panne.","2020-06-25","2020-06-25","2020-06-25",0,"Ok","vérification de la plate forme de pesée + essais OK RAS",6.9444444444444441E-3]
[183,"xx","LV 4","Maintenance Corrective (En Panne)","salle de bain","yyy",2,"joint de la porte de la salle de bain décollé.merci d'avance.","2020-06-26","2020-06-26","2020-06-26",0,"Ok","remise en conformité du joint OK",2.0833333333333332E-2]
[184,"xx","LV 4","Maintenance Corrective (En Panne)","SDB","yyy",2,"grille de la bonde de la douche cassée sdb côté filles","2020-06-29","2020-06-30","2020-06-30",0,"Ok","modification et remplacement de la grille OK",1.3888888888888888E-2]
[185,"xx","LV 5","Maintenance Corrective (En Panne)","evier bouché / cuisine LV5","yyy",1,"evier cuisine LV5 bouché et innondation ","2020-06-30","2020-06-30","2020-06-30",0,"Ok","remise en conformité de l'évier et nettoyage innondation OK",4.1666666666666664E-2]
[186,"xx","Directeur","Maintenance Corrective (En Panne)","Serigraphieuse /Ceignac","yyy",1,"Serigraphieuse de Ceignac en panne","2020-06-26","2020-06-26","2020-06-26",0,"Ok","remplacement du bouton 2 positions de demarrage de L ' IHM + réparation fil endommagé sur contact de position barre d'arrêt d'urgence",0.16666666666666666]
[187,"xx","Coordinatrice","Informatique","Logiciel commande repas / bureau coord","yyy",1,"Problême pour commander les piques niques du personnel en fonction","2020-06-30","2020-06-30","2020-06-30",0,"Ok","amélioration du programme pour la commande des piques niques pour le personnel en fonction OK",8.3333333333333329E-2]
[188,"xx","LV 3","Maintenance Preventive (Avant panne)","Lavabo chambre brigitte sorrel ","yyy",1,"Serait il possible de \" camouffler\" le lavabo dans la chambre de  brigitte sorrel car elle se jette en arriere et risque de se blesser ","2020-07-01","2020-07-03","2020-07-03",0,"Ok","camoufflage lavabo avec matelas OK",1.3888888888888888E-2]
[189,"xx","LV 1","Manutention Materiel ","Tv / CH Laurent","yyy",3,"remettre en lieu et place la télé de Laurent MARTIN","2020-07-02","2020-07-02","2020-07-02",0,"Ok","remise en place de la TV OK",1.3888888888888888E-2]
[190,"xx","Directeur","Manutention Materiel ","Préparation CVS / Salle animation","yyy",3,"Mise en place des tables et chaises salle animation pour CVS","2020-07-02","2020-07-02","2020-07-02",0,"Ok","Installation OK",2.0833333333333332E-2]
[191,"xx","Coordinatrice","Informatique","pb informatique / PC Coord","yyy",1,"Divers problemes informatiques excel","2020-07-02","2020-07-02","2020-07-02",0,"Ok","formation excel sur les difficultées rencontrées",4.1666666666666664E-2]
[192,"xx","LV 4","Maintenance Preventive (Avant panne)","lève-personne/LV4","yyy",2,"le lève-personne fait du bruit au niveau des roues","2020-07-08","2020-07-08","2020-07-08",0,"Ok","lubrification des roues et contrôle de l'ensemble du leve personne OK",1.3888888888888888E-2]
[193,"xx","LV 2","Maintenance Corrective (En Panne)","sapin/ terrasse lv2","yyy",1,"regis s t p pourrais tu tailler les branches du sapin qui sont trop basses car gaelle s est pris une branche dans l oeil avant que ca arrive a un resident merci","2020-07-08","2020-07-10","2020-07-10",0,"Ok","taille des branches basses du sapin du LV2 OK",4.1666666666666664E-2]
[194,"xx","LV 1","Maintenance Preventive (Avant panne)","Batterie Leve personne praxis / LV1","yyy",2,"la batterie du leve personne praxis ne tient plus bien la charge","2020-07-10","2020-07-10","2020-07-10",0,"Ok","remplacement du bloc batterie et mise en charge OK",2.0833333333333332E-2]
[195,"xx","LV 4","Maintenance Preventive (Avant panne)","batterie leve personne praxis / LV4","yyy",2,"la batterie du leve personne Praxis ne tient plus correctement la charge","2020-07-10","2020-07-10","2020-07-10",0,"Ok","remplacement du bloc batterie + mise en charge OK",2.0833333333333332E-2]
[196,"xx","LV 1","Maintenance Corrective (En Panne)","Chasse d'eau WC/ SDB de gauche","yyy",2,"La chasse d'eau ne se remplie pas vite","2020-07-10","2020-07-10","2020-07-10",0,"Ok","remplacement de l'ensemble du robinet plongeur HS OK",1.3888888888888888E-2]
[197,"xx","Coordinatrice","Informatique","PSI / bureau coord","yyy",1,"Problème de visualisation sur PSI","2020-07-10","2020-07-10","2020-07-10",0,"Ok","mauvais paramétrage des filtres OK",6.9444444444444441E-3]
[198,"xx","Coordinatrice","Maintenance Corrective (En Panne)","Store/porte fenêtre bureau coord","yyy",1,"store cassé","2020-07-10","2020-07-10","2020-07-10",0,"Ok","remise en conformité du store + essai de fonctionnement OK",1.3888888888888888E-2]
[199,"xx","Entretien","Manutention Materiel ","Canapés / Sebazac But/Confo LV2 et LV3","yyy",2,"Récupérer les 2 canapés un à But et l'autre à Confo pour le LV3 et le LV2","2020-07-09","2020-07-09","2020-07-09",0,{"$f":"IF(H202=\"\",\"\",IF(J202=\"Annulée\",\"Annulée\",IF(K202<>\"\",\"Ok\",IF(J202<>\"\",IF(J202<TODAY(),\"Retard\",\"En cours\"),IF(I202<>\"\",\"A planifier\",\"A Lancer\")))))","v":"Ok"},"recupération des 2 canapés + mise en place sur chaque lieu de vie OK",0.125]
[200,"xx","Lingerie","Maintenance Corrective (En Panne)","telephone DECT / Lingerie","yyy",1,"impossible de passer des appels, possible de recevoir des appels.Même problème avec essais d'autres téléphones.","2020-07-27","2020-07-27","2020-07-27",0,"Ok","réinitialisation de la borne DECT Lingerie + test de fonctionnement OK",2.0833333333333332E-2]
[201,"xx","LV 4","Maintenance Corrective (En Panne)","porte d'accès à la cour de Pascal","yyy",1,"le digicode ne fonctionne plus et la porte s'ouvre quand on s'y appuie ","2020-07-18","2020-08-30","2020-08-30",0,"Ok","recherche panne OK gache HS mise en commande",2.0833333333333332E-2]
[202,"xx","LV 4","Maintenance Corrective (En Panne)","lève-personne Praxis / LV4","yyy",1,"le lève-personne continue de descendre alors que l'on appuie sur le bouton pour le faire monter","2020-07-20","2020-07-20","2020-07-20",0,"Ok","remplacement bouton de descente + essais de fonctionnement",2.0833333333333332E-2]
[203,"xx","LV 1","Maintenance Corrective (En Panne)","Probleme DECT/ LV1","yyy",2,"Bouton central du DECT ne fonctionne plus","2020-07-20","2020-07-20","2020-07-20",0,"Ok","remplacement du clavier silicone + essais de fonctionnement OK",4.1666666666666664E-2]
[204,"xx","Accompagnant de nuit","Maintenance Corrective (En Panne)","DECT Veilleur / LV3","yyy",1,"Dect tombé et ne fonctionne plus","2020-07-20","2020-07-20","2020-07-20",0,"Ok","remplacement de l'écran HS + essais de fonctionnement OK",4.1666666666666664E-2]
[205,"xx","Entretien","Informatique","Mise en place de 4 nouveaux PC/Kiné,coord,infirmerie","yyy",3,"Mise en place avec 3A de 4 PC pour les 2 coords + infirmerie + Kiné","2020-07-23","2020-07-24","2020-07-24",0,"Ok","remplacement des 4 PC OK",0.25]
[206,"xx","Entretien","Déchetterie","divers dechets / Dechetterie BQV","yyy",3,"Divers dechets à amener à la déchetterie de Baraqueville","2020-07-22","2020-07-22","2020-07-22",0,"Ok","évacuation des dechets OK",4.1666666666666664E-2]
[207,"xx","Chef de service","Maintenance Corrective (En Panne)","Fuite d'eau / circulation LV 1","yyy",1,"Fuite d'eau dans la circulation de gauche du LV 1","2020-07-23","2020-07-23","2020-07-23",0,"Ok","Fermeture du purgeur défectueux + démontage des éléments électriques Bloc secours + detecteur de mouvement + mise hors service du detecteur incendie avec CMS + Fermeture de l'ensemble des purgeurs sur chaque lieu de vie pour éviter un autre sinistre",0.16666666666666666]
[208,"xx","Chef de service","Maintenance Corrective (En Panne)","Fuite d'eau plafond / circulation gauche LV5","yyy",1,"Fuite d'eau au plafond dans la circulation du LV5 côté gauche","2020-07-23","2020-07-23","2020-07-23",0,"Ok","Arrêt du purgeur defectueux et de l'ensemble des purgeurs du LV5",2.0833333333333332E-2]
[209,"xx","Entretien","Maintenance Corrective (En Panne)","Salle de bain côté garçon/LV4","yyy",2,"Le néon de la salle de bain au dessus de l'évier est grillé. ","2020-07-26","2020-07-27","2020-07-27",0,"Ok","Néon non grillé simplement éteint avec bouton sur l'appareil.",6.9444444444444441E-3]
[210,"xx","Entretien","Informatique","PSI / LV 1","yyy",1,"Logiciel PSI ne fonctionne plus","2020-07-27","2020-07-28","2020-07-29",1,"Ok","Plus de droit pour reinstaller PSI ouverture ticket 3A, Création session Administrateur/Installateur Impossibilité de réinstaller PSI réouverture d'un ticket 3A attente déblocage\r\nRéinstallation PSI OK",8.3333333333333329E-2]
[211,"xx","LV 3","Maintenance Corrective (En Panne)","Tue mouche / Salon LV3","yyy",2,"Tue mouche ne fonctionne plus","2020-07-27","2020-07-27","2020-07-27",0,"Ok","remplacement des 2 tubes fluo + 2 starters + essais OK",2.0833333333333332E-2]
[212,"xx","Entretien","Véhicules","C3 / Sacrispeyre","yyy",1,"Pneus avant gauche crevé ","2020-07-28","2020-07-28","2020-07-28",0,"Ok","Dépannage d'Isabelle au garage Sacrispeyre + recupération du véhicule suite remplacement des 2 Pneus avant",3.125E-2]
[213,"xx","Lingerie","Maintenance Corrective (En Panne)","LAVE LINGE/Lingerie","yyy",1,"E0  Sécurité porte tambour défaut variateur AU LAVAGE :  E1 présence d'eau dans la cuve AU RINCAGE : E2 manque d'eau  Clé pour ouvrir le dessous de la machine ?","2020-07-29","2020-09-14","2020-09-14",0,"Ok","Modification du detecteur de balourd + essais de fonctionnement OK",4.1666666666666664E-2]
[214,"xx","LV 4","Maintenance Corrective (En Panne)","adaptable de Myriam","yyy",1,"la tablette est cassée elle ne tient plus","2020-08-01","2020-09-01","2020-09-01",0,"Ok","remise en conformité OK",2.0833333333333332E-2]
[215,"xx","LV 4","Maintenance Corrective (En Panne)","SALLE DE BAIN","yyy",3,"CHANGEMENT DU TUYAU DE LA DOUCHE.","2020-08-04","2020-09-11","2020-09-11",0,"Ok","remplacement du tuyau de douche OK",2.0833333333333332E-2]
[216,"xx","LV 2","Maintenance Corrective (En Panne)","salle de bains petit côté","yyy",3,"Bonjourtrou dans le mur salle de bains petit côté","2020-08-10","2020-09-30","2022-09-30",730,"Ok","réparation provisoire du trous avant rénovation du lieu de vie",2.0833333333333332E-2]
[217,"xx","LV 4","Maintenance Corrective (En Panne)","porte patio /LV4","yyy",1,"La porte fenêtre côté jardin s'ouvre qans qu'on est a appuyer sur le bouton ouverture.","2020-08-12","2020-09-29","2020-09-11",-18,"Ok","remplacement de la gache electrique OK",2.0833333333333332E-2]
[218,"xx","LV 4","Maintenance Corrective (En Panne)","TELEPHONE PORTABLE/ LV4 ","yyy",2,"Certaines touches du téléphone ne fonctionnent pas ... nous nous servons du téléphone du LV5 en attendant ...MERCI ","2020-08-25","2020-08-25","2020-08-25",0,"Ok","commande DECT en cours pour remplacement",2.0833333333333332E-2]
[219,"xx","LV 3","Maintenance Corrective (En Panne)","armoire/ ch Jacque","yyy",1,"La porte de son armoire ne s'ouvre plus","2020-08-24","2020-08-24","2020-08-24",0,"Ok","Fil de pantalon coincé dans la serrure remise en conformité OK ",2.0833333333333332E-2]
[220,"xx","LV 2","Maintenance Corrective (En Panne)","lit / CH  sophie A ","yyy",1,"bonjour pourrais tu venir scotcher les mousses aux barrieres de Sophie pour qu'on puisse finir d'insataller les proteges barriere pour son arrivée lundi merci","2020-08-26","2020-08-28","2020-08-28",0,"Ok","remise en conformité des mousses du lit de sophie OK",2.0833333333333332E-2]
[221,"xx","LV 2","Maintenance Preventive (Avant panne)","barrieres lit / CH Patrice D","yyy",1,"la barriere du lit  côte fenêtre s'enclenche difficilement","2020-08-26","2020-08-28","2020-08-28",0,"Ok","remise en conformité du verrouillage de la barriere + essais OK",2.0833333333333332E-2]
[222,"xx","LV 1","Maintenance Corrective (En Panne)","rideaux / Ch christophe","yyy",1,"rideaux de la porte fenetre cassé","2020-08-28","2020-08-28","2020-08-28",0,"Ok","remise en conformité des fixations du rideaux de la porte fenetre de la CH de Christophe OK",1.3888888888888888E-2]
[223,"xx","Coordinatrice","Informatique","Logiciel de repas / bureau coord","yyy",2,"Modification du logiciel des presences repas pour accueillir le sejour du LV 5 en Septembre et deplacement de lieu de Rosy MARTY vers le LV2","2020-08-28","2020-08-28","2020-08-28",0,"Ok","modifications réalisées et testées en présence de Nadine. OK programme fonctionnel",8.3333333333333329E-2]
[224,"xx","Coordinatrice","Manutention Materiel ","parc ou salle d'animation ","yyy",3,"installer tables et chaises pour le goûter de la fête des famille du 25/9/20. S'il fait beau: dans le parc devant lv3 et s'il pleut dans la grande salle. A voir si on le fait la veille ou le jour même ","2020-09-02","2020-09-21","2020-09-21",0,"Ok","Fête des familles Annulée ",0]
[225,"xx","LV 4","Maintenance Corrective (En Panne)","grille-mouches","yyy",2,"le grille-mouches au-dessus du fauteuil ne fonctionne plus","2020-09-03","2020-09-11","2020-09-11",0,"Ok","remplacement du tubes fluo OK",1.3888888888888888E-2]
[226,"xx","LV 3","Déchetterie","table + fauteuil / Reserve lv3","yyy",3,"Recuperer pour la dechetterie la table en bois + le fauteuil gris.","2020-09-02","2020-09-02","2020-09-02",0,"Ok","Recupération des dechets et transport des dechets divers de la mas à la dechetterie de BQV OK",6.25E-2]
[227,"xx","LV 2","Maintenance Corrective (En Panne)","Porte savon / cuisine LV2","yyy",2,"remplacer le porte savon HS de la cuisine","2020-09-02","2020-09-02","2020-09-02",0,"Ok","remplacement du porte savon OK",2.0833333333333332E-2]
[228,"xx","LV 4","Maintenance Corrective (En Panne)","plastron de douche de Fabien","yyy",1,"la boucle du plastron est cassée","2020-09-03","2020-09-03","2020-09-03",0,"Ok","réparation de la boucle du plastron OK",2.0833333333333332E-2]
[229,"xx","Directeur","Manutention Materiel ","remise en place de lit / LV5","yyy",2,"remettre en fonctionnement le LV5 avec lits médicaliés et déplacer le stock de la salle Snoezelen.","2020-09-02","2020-09-02","2020-09-02",0,"Ok","Mise en place de 2 lits médicalisés sur le LV5 et déménagement du stock COVID de la salle snoezelen vers placard couloir.",0.125]
[230,"xx","Infirmerie","Maintenance Corrective (En Panne)","porte d'entree/infirmerie","yyy",2,"la serrure de la porte fonctionne mal","2020-09-07","2020-09-09","2020-09-09",0,"Ok","graissage du cylindre + essais OK",1.3888888888888888E-2]
[231,"xx","Entretien","Manutention Materiel ","Instalation Réunion / Salle animation","yyy",3,"Instaler dans la salle d'animation les chaises et tables en U pour la réunion générale","2020-09-09","2020-09-10","2020-09-10",0,"Ok","Installation des tables et chaises OK",2.0833333333333332E-2]
[232,"xx","Accompagnant de nuit","Travaux Neuf","Mettre en place distributeur de savon/Lingerie","yyy",1,"Mettre en place un distributeur de savon à la lingerie au dessus de l'evier côté sale","2020-09-08","2020-09-09","2020-09-09",0,"Ok","Mise en place du distributeur de savon à la lingerie OK",1.3888888888888888E-2]
[233,"xx","LV 4","Maintenance Corrective (En Panne)","RADIATEUR CONTRE LA VERANDA ","yyy",2,"Refixer les attaches du radiateur ","2020-09-11","2020-09-11","2020-09-11",0,"Ok","remise en conformité des attaches OK",2.0833333333333332E-2]
[234,"xx","LV 4","Maintenance Corrective (En Panne)","Main courante /Circulation  Coté droit LV4","yyy",1,"Retirer la main courante arrachée dans la circulation droite ","2020-09-11","2020-09-11","2020-09-11",0,"Ok","retrait de la main courante OK",2.0833333333333332E-2]
[235,"xx","Coordinatrice","Maintenance Corrective (En Panne)","logiciel commande repas ","yyy",1,"une formule a sauté: les repas des professionnels lv2 ne se reportent plus sur la feuille cuisine","2020-09-16","2020-09-16","2020-09-16",0,"Ok","Remise en conformité du logiciel + reimpressions des feuilles erronées",2.0833333333333332E-2]
[236,"xx","Entretien","Maintenance Preventive (Avant panne)","digicode / Salle des familles","yyy",1,"Hier mercredi , j'ai trouvé 2 fois Maxime avec du pain dans la main et dans la bouche proche de la piscine, ce pain ce trouvait dans le couloir qui mène à la salle des familles,( c'est Sylvie la Kiné qui m'a dit qu'il y avait du pain). Peut tu regarder si le digicode fonctionne bien, surtout que Maxime n'oubliera pas d'aller voir. MERCI.","2020-09-16","2020-09-16","2020-09-16",0,"Ok","Vérification des poignées et reprogrammation OK",1.3888888888888888E-2]
[237,"xx","Entretien","Siège fondation Opteo","Pose Cimaises / Ensemble Fondation","yyy",2,"Pose des cimaises dans les circulations de la fondation","2020-09-16","2020-09-16","2020-09-16",0,"Ok","Pose de 34 m  de Cimaises dans les circulations + devis pour reste à faire",0.20833333333333334]
[238,"xx","LV 4","Informatique","DECT / Chef de service + LV4","yyy",2,"DECT LV4 + Chef de service HS","2020-09-14","2020-09-14","2020-09-14",0,"Ok","Commande DECT + Programmation + Test OK",4.1666666666666664E-2]
[239,"xx","Directeur","Administratif","Remplacement/ Secretariat","yyy",2,"Remplacement de Marc au secretariat le temps de la réunion ","2020-09-14","2020-09-14","2020-09-14",0,"Ok","remplacement OK",8.3333333333333329E-2]
[240,"xx","Lingerie","Déchetterie","divers dechets / decheterie BQV","yyy",2,"Bidons produits entretien et sacs vêtements à recycler sous le préau porte grillagée + chaise haute marron et rouge + chariot linge sale très très abîmé.Merci.","2020-09-18","2020-09-23","2020-09-23",0,"Ok","transport des dechets à la déchèterie OK",4.1666666666666664E-2]
[241,"xx","LV 4","Maintenance Corrective (En Panne)","neons / Cuisine LV4","yyy",1,"Les néons de la cuisine sur les tables ne marche pas. MERCI","2020-09-21","2020-09-21","2020-09-21",0,"Ok","remplacement de 4 tubes Fluo OK",1.3888888888888888E-2]
[242,"xx","LV 4","Maintenance Corrective (En Panne)","Porte cuisine / Lv4","yyy",2,"La serrure du placard à serviettes de table est dévissé. MERCI de l'arranger.","2020-09-21","2020-09-28","2020-09-28",0,"Ok","remise en conformité de la serrure et de la porte OK",4.1666666666666664E-2]
[243,"xx","Coordinatrice","Informatique","PC / Bureau coord","yyy",3,"Probleme sur le correcteur orthographique","2020-09-22","2020-09-22","2020-09-22",0,"Ok","Remise en conformité de la langue par defaut + test OK",1.3888888888888888E-2]
[244,"xx","Directeur","Manutention Materiel ","Creation d'un vestiaire / LV5","yyy",1,"Création d'un vestiaire sur le LV5 pour permettre le changement des tenues des professionnels en dehors des lieux de vie","2020-09-21","2020-09-21","2020-09-21",0,"Ok","création du vestiaire sur le LV5 en partenariat avec Nadine OK",8.3333333333333329E-2]
[245,"xx","Chef de service","Maintenance Corrective (En Panne)","Piscine / Local Piscine","yyy",1,"Niveau d'eau anormalement haut dans la piscine","2020-09-22","2020-09-22","2020-09-22",0,"Ok","Remise en conformité et reglage sonde de niveau + remise en conformité et réglage du volet de fermeture + nettoyage complet de la piscine.",8.3333333333333329E-2]
[246,"xx","Directeur","Manutention Materiel ","Reception palettes Masques + blouses / Garage","yyy",2,"Receptionner palettes de masques et blouses","2020-09-22","2020-09-22","2020-09-22",0,"Ok","Réception des palettes dans le garage N+1 en attendant la livraison vers l'esat.",2.0833333333333332E-2]
[247,"xx","LV 4","Maintenance Corrective (En Panne)","barrière de lit de Méline/LV4","yyy",1,"la barrière ne tient pas","2020-09-25","2020-09-25","2020-09-25",0,"Ok","Remise en conformité de la barriere plus essais de fonctionnement OK",2.0833333333333332E-2]
[248,"xx","LV 4","Maintenance Corrective (En Panne)","fauteuil  de Myriam ( celui ou elle fait sa sieste ) ","yyy",1,"le fauteuil de Myriam ne fonctionne pas .","2020-10-02","2020-10-02","2020-10-02",0,"Ok","vérification du cablage OK fiche mal enfoncée",1.3888888888888888E-2]
[249,"xx","LV 4","Manutention matériel","PENDULE cuisine/LV4","yyy",3,"Peux tu nous déplacer la pendule de la cuisine sur le lieu de vie ( à coté du \"tue mouche \" électrique .MERCI ","2020-09-29","2020-10-02","2020-10-02",0,"Ok","deplacement de  la pendule OK",1.3888888888888888E-2]
[250,"xx","LV 4","Maintenance Preventive (Avant panne)","Fauteuil Nathalie / LV4","yyy",1,"Roue avant gauche du fauteuil bouge","2020-10-02","2020-10-02","2020-10-02",0,"Ok","Remise en conformité de la roue et vérification de l'ensemble du fauteuil OK",2.7777777777777776E-2]
[251,"xx","LV 4","Maintenance Corrective (En Panne)","Fauteil relax de Myriam Fraysse","yyy",1,"Malgré toutes les vérifications des différents branchements le fauteil de Myriam ne répond pas aux commandes ","2020-10-04","2020-10-16","2020-10-16",0,"Ok","Vérification du fauteuil, Vérin HS + faux contact retour en garantie M.Marty",1.3888888888888888E-2]
[252,"xx","Coordinatrice","Formation Personnel","PC/ Bureau coord","yyy",1,"demande information tableau excel + messagerie Outlook","2020-10-06","2020-10-06","2020-10-06",0,"Ok","formation sur outlook et excel",2.0833333333333332E-2]
[253,"xx","LV 3","Formation Personnel","PC / LV3","yyy",3,"Problème sur messagerie outlook","2020-10-06","2020-10-06","2020-10-06",0,"Ok","formation sur outlook",2.0833333333333332E-2]
[254,"xx","Lingerie","Déchetterie","Divers bidons + linge / déchetterie","yyy",3,"prendre les bidons vide et le linge à la déchetterie","2020-10-07","2020-10-07","2020-10-07",0,"Ok","transport des dechets divers à la déchetterie OK",8.3333333333333329E-2]
[255,"xx","LV 2","Maintenance Corrective (En Panne)","fenetre circulation /LV2","yyy",2,"Poignée de la fenetre de la circulation HS","2020-10-09","2020-10-23","2020-10-15",-8,"Ok","remplacement de la poignée + réglage OK",2.0833333333333332E-2]
[256,"xx","Coordinatrice","Informatique","Messagerie/bureau coord","yyy",2,"Messagerie ne fonctionne pas","2020-10-09","2020-10-09","2020-10-09",0,"Ok","Verification de la messagerie + mise à jour outlook OK",2.0833333333333332E-2]
[257,"xx","LV 4","Maintenance Corrective (En Panne)","cuisine lv4","yyy",3,"Maxime a cassé le placard sous l'évier de la cuisine.","2021-01-07","2021-01-07","2021-01-07",0,"Ok","remise en conformité du placard OK",2.0833333333333332E-2]
[258,"xx","LV 4","Maintenance Corrective (En Panne)","fauteuil relax de Valérie  ","yyy",3,"Tu peux mettre le fauteuil de Valérie qui est dans notre bureau du LV4 à la déchetterie STP .","2020-10-14","2020-10-14","2020-10-14",0,"Ok","remise en conformité connexion OK",2.0833333333333332E-2]
[259,"xx","LV 4","Maintenance Corrective (En Panne)","AMPOULE du lampadaire du parking des salariés : 1er lampadaire .","yyy",1,"Changer l ampoule du lampadaire parking .","2020-10-14","2020-10-16","2020-10-16",0,"Ok","remplacement de l'ampoule du luminaire exterieur OK",2.0833333333333332E-2]
[260,"xx","LV 4","Maintenance Corrective (En Panne)","digicode de notre bureau/LV4 ","yyy",1,"Le digicode de la porte de notre bureau LV4 ne fonctionne pas .Impossible de garder la porte fermée .MERCI .","2020-10-14","2020-10-15","2020-10-15",0,"Ok","Porte forcée par remplacement piece défectueuse + essais de fonctionnement OK",2.0833333333333332E-2]
[261,"xx","Directeur","Siège fondation Opteo","Divers / siege Fondation Opteo","yyy",2,"Relampage + réparations diverses + pose des cimaises","2020-10-12","2020-10-12","2020-10-14",2,"Ok","relampage OK + réparation armoire secretariat + pose des cimaises + commande fixation ecran Mme DOUCET",0.54166666666666663]
[262,"xx","LV 2","Travaux Neuf","Tableau / Salon LV2","yyy",3,"Nous aimerions que tu installes la plaque de contre-plaquet ( avec les photos des résidents) sur le grand mur blanc du lv. Merci.","2020-10-16","2020-10-28","2020-10-28",0,{"$f":"IF(H265=\"\",\"\",IF(J265=\"Annulée\",\"Annulée\",IF(K265<>\"\",\"Ok\",IF(J265<>\"\",IF(J265<TODAY(),\"Retard\",\"En cours\"),IF(I265<>\"\",\"A planifier\",\"A Lancer\")))))","v":"Ok"},"Mise en place du tableau OK",2.0833333333333332E-2]
[263,"xx","Chef de service","Maintenance Preventive (Avant panne)","poignée de porte /salle des familles","yyy",2,"Poignée automatique de la salle des familles fonctionne aleatoirement","2020-10-16","2020-10-16","2020-10-16",0,"Ok","remise en conformité + essais de fonctionnement ok",1.3888888888888888E-2]
[264,"xx","LV 2","Maintenance Corrective (En Panne)","lumiere/WC côté garcon","yyy",1,"La lumière des wc, petit côté, ne marche plus.","2020-10-21","2020-10-27","2020-10-27",0,"Ok","remplacement lumiere OK ",1.3888888888888888E-2]
[265,"xx","LV 2","Maintenance Corrective (En Panne)","TV/ Salon LV2","yyy",1,"La télé du lv2 ne marche pas, elle fait que couper. Nous ne pouvons pas l'utiliser pour les résidents en journée ni pour les soirées tv.","2020-10-21","2020-10-26","2020-10-26",0,"Ok","vérification et reprogramation chaine TV OK",2.0833333333333332E-2]
[266,"xx","Infirmerie","Maintenance Corrective (En Panne)","Lampe / infirmerie","yyy",2,"Lampe ne fonctionne plus devant l'infirmerie","2020-10-26","2020-10-26","2020-10-26",0,"Ok","relampage des  circulations OK",4.1666666666666664E-2]
[267,"xx","Entretien","Déchetterie","divers dechets / dechetterie BQV","yyy",2,"Transport des dechets à la déchetterie de BQV","2020-10-26","2020-10-26","2020-10-26",0,"Ok","Transport des dechets OK",4.1666666666666664E-2]
[268,"xx","Accompagnant de nuit","Maintenance Corrective (En Panne)","Plafond circulation/ Lingerie","yyy",1,"Skydom ouvert par un resident et la pluie est rentrée sur le faux plafond","2020-10-26","2020-10-26","2020-10-26",0,"Ok","remise en conformité de la fixation et du boitier d'urgence du skydom et remplacment des plaques défectueuses OK",4.1666666666666664E-2]
[269,"xx","LV 2","Maintenance Corrective (En Panne)","Télécommande lit Laurent Martin / CH Laurent Martin","yyy",1,"La télécommande ne fonctionne plus","2020-10-27","2020-10-27","2020-10-27",0,"Ok","remise en conformité de la télécommande plus essais OK",4.1666666666666664E-2]
[270,"xx","Accompagnant de nuit","Maintenance Preventive (Avant panne)","DECT charge plus / LV1 Veilleur","yyy",2,"Le DECT veilleur LV1 ne charge plus","2020-10-28","2020-10-28","2020-10-28",0,"Ok","remplacement du jeu de piles OK",6.9444444444444441E-3]
[271,"xx","LV 3","Maintenance Corrective (En Panne)","tous les néons du bureau","yyy",1,"Coucou !!!! Tous les néons du bureau sont grillés !!!  Merciiiiii ","2020-11-01","2020-11-02","2020-11-02",0,"Ok","remplacement de 3 tubes fluo  + essai OK",2.0833333333333332E-2]
[272,"xx","Infirmerie","Informatique","DECT/ Infirmerie","yyy",1,"DECT Ne fonctionne pas","2020-11-02","2020-11-02","2020-11-02",0,"Ok","Retrait du mode silencieux plus essai OK",6.9444444444444441E-3]
[273,"xx","LV 4","Déchetterie","FAUTEUIL DE valérie /Déchetterie","yyy",3,"Le fauteuil de Valérie est à mettre à la déchetterie .Il est dans notre bureau du LV4.MERCI !!!","2020-11-10","2020-11-25","2020-11-25",0,"Ok","Mise à la dechettertie du fauteuil + transport des dechets divers",4.1666666666666664E-2]
[274,"xx","LV 4","Maintenance Corrective (En Panne)","LV4/SDB","yyy",1,"flexible de douche de la salle de bain des garçons cassé.merci de le changer le plus rapidement possible.","2020-11-11","2020-11-12","2020-11-12",0,"Ok","remplacement du flexible de douche + pommeau sur les deux salle de bain.",2.0833333333333332E-2]
[275,"xx","LV 4","Maintenance Corrective (En Panne)","digicode du vestiaire/ LV4","yyy",1,"le digicode est bloqué la porte ne s'ouvre plus","2020-11-11","2020-11-12","2020-11-12",0,"Ok","Ouverture de la porte et retrait de la poignée HS ouverture avec carré en attendant les nouvelles poignées",2.0833333333333332E-2]
[276,"xx","LV 3","Maintenance Corrective (En Panne)","Etuve / cuisine lv3","yyy",1,"Le bonton de mise en marche de l'étuve ne tient plus","2020-11-10","2020-11-10","2020-11-10",0,"Ok","remplacement du bouton de l'etuve  + essai OK",4.1666666666666664E-2]
[277,"xx","Infirmerie","Maintenance Corrective (En Panne)","porte entree/infirmerie","yyy",1,"ossature porte d'entree infirmerie ne tient plus","2020-11-12","2020-11-12","2020-11-12",0,"Ok","remise en conformité de l'ossature OK ",4.1666666666666664E-2]
[278,"xx","LV 2","Informatique","PSI/Bureau LV2","yyy",1,"Le PSI ne fonctionne plus ","2020-11-12","2020-11-12","2020-11-12",0,"Ok","réinstallation du logiciel + essai OK",4.1666666666666664E-2]
[279,"xx","Directeur","Travaux Neuf","Barriere plexi / Salle des familles","yyy",1,"fabriquer et mettre en place une barriere de plexi à la salle des familles","2020-11-16","2020-11-16","2020-11-16",0,"Ok","fabrication et mise en place de la barriere plexi OK",4.1666666666666664E-2]
[280,"xx","LV 2","Maintenance Corrective (En Panne)","Fenetre CH Laurent /LV2","yyy",1,"La fenêtre ne se referme plus","2020-11-24","2020-11-24","2020-11-24",0,"Ok","Remise en conformité de l'ouverture de la fenêtre OK",2.0833333333333332E-2]
[281,"xx","Directeur","Siège fondation Opteo","Ecran Mme DOUCET/divers dépannages","yyy",2,"Mise en place d'un ecran dans le bureau de M.DOUCET + raccordement + Mise en place d'un ecran bureau DRH + dépannages divers","2020-11-24","2020-11-24","2020-11-24",0,"Ok","Mise en place et raccordement des 2 ecrans ok + réparation store M.COULON+ remplacement tube fluo Compta OK",0.20833333333333334]
[282,"xx","LV 4","Maintenance Corrective (En Panne)","Poignée de porte reserve / LV4","yyy",1,"La poignée ne fonctionne plus","2020-11-23","2020-11-23","2020-11-23",0,"Ok","Poignée HS, retrait de la poignée et fabrication de clées  pour permettre ouverture ",4.1666666666666664E-2]
[283,"xx","Directeur","Laboratoire","transport test PCR/Labo baraqueville","yyy",1,"Amener les tests PCR au labo de BQV","2020-11-24","2020-11-24","2020-11-24",0,"Ok","Transport des test PCR OK",1.3888888888888888E-2]
[284,"xx","Entretien","Véhicules","JUMPER / MAS BQV","yyy",2,"Entretien général du véhicule","2020-11-24","2020-11-24","2020-11-24",0,"Ok","Lavage,nettoyage,pression des pneus et vérification des niveaux OK",6.25E-2]
[285,"xx","LV 4","Maintenance Preventive (Avant panne)","barre d'appui sdb côté garçon","yyy",1,"la barre se décolle du mur avec le revêtement","2020-11-26","2020-11-27","2020-11-27",0,"Ok","remise en conformité de la barre dans la salle de bain",4.1666666666666664E-2]
[286,"xx","LV 4","Maintenance Corrective (En Panne)","table salon/  LV4","yyy",3,"Le plateau de la petite table basse ne tient plus, merci de le fixé sur le cadre.","2020-11-26","2020-11-27","2020-11-27",0,"Ok","remise en conformité de la table OK",2.0833333333333332E-2]
[287,"xx","LV 4","Maintenance Corrective (En Panne)","la serrure du placard des bavoirds est cassé.","yyy",1,"Merci de réparer la serrure","2020-11-30","2020-12-01","2020-12-01",0,"Ok","réparation de la serrure + réglage porte OK",3.125E-2]
[288,"xx","LV 1","Maintenance Corrective (En Panne)","Fauteuil Marie-Hélène Fontagne/ LV1","yyy",1,"Inclinaison du fauteuil de Marie hélène ne fonctionne plus","2020-12-01","2020-12-01","2020-12-01",0,"Ok","Remplacment du cable HS et reglage du verin + essais OK",2.0833333333333332E-2]
[289,"xx","LV 1","Informatique","Outlook / Bureau LV1","yyy",2,"Je ne reçois pas les messages du groupe MasdeBaraqueville","2020-12-01","2020-12-01","2020-12-01",0,"Ok","remise en conformité de la réception des messages par office 365",1.3888888888888888E-2]
[290,"xx","LV 4","Maintenance Corrective (En Panne)","porte chambre Laurent HS / LV4","yyy",1,"Maxime à cassé la poignée de porte de Laurent DOUZIECH","2020-12-01","2020-12-01","2020-12-01",0,"Ok","remplacement de la gache + reparation porte endommagée OK",4.1666666666666664E-2]
[291,"xx","LV 1","Informatique","Outlook /LV1","yyy",3,"aide pour visualisation des mails sur telephone portable","2020-12-01","2020-12-01","2020-12-01",0,"Ok","paramétrage outlook sur smartphone OK",1.0416666666666666E-2]
[292,"xx","LV 2","Manutention matériel","TV / Ch Patrice","yyy",2,"Il faudrait ramener la tv de Patrice dans sa chambre, elle est actuellement sur le lv5. Merci.","2020-12-08","2020-12-08","2020-12-08",0,"Ok","déplacement de la TV du LV5 au LV2 OK",2.0833333333333332E-2]
[293,"xx","LV 4","Maintenance Corrective (En Panne)","ordi lv4","yyy",1,"la musique de l'ordi ne fonctionne plus. MERCI","2020-12-07","2020-12-10","2020-12-10",0,"Ok","remise en conformité du branchement + test OK",6.9444444444444441E-3]
[294,"xx","LV 4","Maintenance Corrective (En Panne)","Murs / LV4","yyy",2,"Pascal a mis des coups de marteau dans le mur du salon","2020-12-08","2020-12-08","2020-12-08",0,"Ok","réparation du mur du salon + couloirs+chambre Maxime avec enduit OK",4.1666666666666664E-2]
[295,"xx","Directeur","Véhicules","Nettoyer C3 / Mas BQV","yyy",3,"Nettoyer la C3 pour restitution le 12/12/2020 C12 automobile Rodez","2020-12-10","2020-12-10","2020-12-10",0,"Ok","Nettoyage OK",8.3333333333333329E-2]
[296,"xx","Ergothérapeute","Maintenance Preventive (Avant panne)","gonfler Pneus /Mélany","yyy",1,"Gonfler les pneus de melany sur le LV2","2020-12-15","2020-12-15","2020-12-15",0,"Ok","Gonflage des pneus du fauteuil de Mélany OK",6.9444444444444441E-3]
[297,"xx","Kiné","Maintenance Corrective (En Panne)","evier bouché / toilette coord","yyy",2,"L'evier est bouché","2020-12-15","2020-12-15","2020-12-15",0,"Ok","remise en conformité de l'évier OK",1.0416666666666666E-2]
[298,"xx","Directeur","Maintenance Corrective (En Panne)","Robinet evier / Salle des familles","yyy",2,"Robinet evier salle des familles HS","2020-12-15","2020-12-15","2020-12-15",0,"Ok","remplacement du robinet + essai OK",2.0833333333333332E-2]
[299,"xx","LV 2","Travaux Neuf","Meuble/salon","yyy",3,"Monter le meuble du salon commandé pour noel","2020-12-17","2020-12-17","2020-12-17",0,"Ok","montage du meuble OK",4.1666666666666664E-2]
[300,"xx","LV 1","Maintenance Corrective (En Panne)","Carter protection / fauteuil Laurent","yyy",3,"Un carter de protection est tombé du fauteuil de Laurent","2020-12-22","2020-12-22","2020-12-22",0,"Ok","Remise en conformité du carter de protection OK",1.0416666666666666E-2]
[301,"xx","LV 5","Maintenance Corrective (En Panne)","serrure meuble / cuisine LV5","yyy",1,"la clée est cassée dans la serrure du placard à gateau de la cuisine et le pommeau de douche fuit","2020-12-22","2020-12-22","2020-12-22",0,"Ok","retrait de la clée coincée + reproduction de clées pour les tiroirs de la cuisine + remplacement du pommeau de douche OK",4.1666666666666664E-2]
[302,"xx","LV 2","Maintenance Corrective (En Panne)","Lumiere bureau en panne. Néons","yyy",1,"Réparation relai je pense ou néons grillés","2020-12-31","2021-01-04","2021-01-04",0,"Ok","remplacement des tubes OK",1.3888888888888888E-2]
[303,"xx","LV 1","Travaux Neuf","tv/chambre Marie Helene","yyy",2,"tv marie helene à mettre en place","2021-01-05","2021-01-07","2021-01-07",0,"Ok","Mise en place de la nouvelle TV OK",4.1666666666666664E-2]
[304,"xx","LV 5","Maintenance Corrective (En Panne)","Chariot de douche de la salle de bain coté DROIT, Salle de bain du fond .","yyy",2,"Le chariot de douche ne freine pas bien .","2021-01-06","2021-01-15","2021-01-15",0,"Ok","nettoyage des 4 roues + graissage OK",4.1666666666666664E-2]
[305,"xx","LV 4","Maintenance Corrective (En Panne)","porte de la salle de bain","yyy",1,"La porte de la salle de bain est cassé, elle ne se ferme plus. MERCI","2021-01-07","2021-01-14","2021-01-14",0,"Ok","remise en conformité de la chambre OK",8.3333333333333329E-2]
[306,"xx","LV 4","Maintenance Preventive (Avant panne)","chambre de Maxime","yyy",2,"Arranger le platre sur les murs dans la chambre de Maxime .","2021-01-07","2021-01-08","2021-01-08",0,"Ok","rebouchagedetrous dans le mur OK  ",0.16666666666666666]
[307,"xx","LV 5","Maintenance Corrective (En Panne)","Toilette/ LV5 ","yyy",1,"Toilettes du LV5 Bouché .situéé a l'entrée du lieu sur la gauche.","2021-01-07","2021-01-08","2021-01-08",0,"Ok","débouchage du toilette OK",2.0833333333333332E-2]
[308,"xx","LV 2","Maintenance Corrective (En Panne)","salle de bain de droite lumiere poignée du leve a viser","yyy",1,"verifier lumiere visser poigneé leve personne ","2021-01-08","2021-01-12","2021-01-12",0,"Ok","remplacement ampoules HS + remise en conformité du lève personne OK",4.1666666666666664E-2]
[309,"xx","LV 2","Maintenance Corrective (En Panne)","Rideau fenêtre/chambre patrice","yyy",2,"tringle a rideau a remettre le petit loquet s est casse de droite.","2021-01-08","2021-01-11","2021-01-11",0,"Ok","remplacement tringle OK",6.9444444444444441E-3]
[310,"xx","Directeur","Manutention matériel","Friteuse / Mas MOISSAC","yyy",3,"Recupérer friteuse Mas Moissac","2021-01-11","2021-01-11","2021-01-11",0,"Ok","recupération Friteuse Mas de MOISSAC OK",0.20833333333333334]
[311,"xx","Entretien","Déchetterie","divers / dechetterie","yyy",3,"Transport des dechets à la dechetterie de BQV","2021-01-06","2021-01-06","2021-01-06",0,"Ok","Transport des dechets OK",8.3333333333333329E-2]
[312,"xx","Entretien","Manutention matériel","cuisine","yyy",2,"débarrassez cuisine pour démarrage des travaux de réfection","2021-01-07","2021-01-07","2021-01-07",0,"Ok","rangement de la cuisine pour debut des travaux de réfection",0.16666666666666666]
[313,"xx","LV 2","Maintenance Preventive (Avant panne)","lève-personne/LV2","yyy",1,"Poignet du lève-personne dévissé.","2021-01-13","2021-01-26","2021-01-26",0,"Ok","remise en conformité de la poignée + vérification de l'ensemble du lève personne OK",2.0833333333333332E-2]
[314,"xx","LV 2","Maintenance Corrective (En Panne)","Télé/LV2","yyy",2,"La télé ne marche pas, signal complètement brouillé. Cela commence vraiment à devenir gênant pour les résidents, surtout le soir où ils sont censés avoir \"soirée télé\" sur le lieu, sans télé ... Merci de voir ce que tu peux faire.","2021-01-13","2021-01-21","2021-01-21",0,"Ok","reglage antenne + essais OK",1.3888888888888888E-2]
[315,"xx","LV 4","Maintenance Corrective (En Panne)","CHAMBRE DE MAXIME/LV4","yyy",2,"Peux tu mettre de l'enduit sur les murs de la chambre de Maxime afin de reboucher les trous. Merci","2021-01-19","2021-01-19","2021-01-19",0,"Ok","bouchage des nouveaux trous dans la chambre de Maxime OK",4.1666666666666664E-2]
[316,"xx","Infirmerie","Laboratoire","test/labo BQV","yyy",1,"amener les tests au labo de BQV","2021-01-15","2021-01-15","2021-01-15",0,"Ok","Transport des tests OK",1.0416666666666666E-2]
[317,"xx","LV 5","Maintenance Corrective (En Panne)","Toilettes (aile COVID , coté gauche) /LV5","yyy",1,"Toilettes bouchées coté gauche . Dés que l'on tire la chasse d'eau ,'eau remonte jusqu'a déborder et aussi dans l'evier.","2021-01-17","2021-01-19","2021-01-19",0,"Ok","essais de débouchage, appel de veolia pour debouchage WC + vidange bac à graisse cuisine",4.1666666666666664E-2]
[318,"xx","Infirmerie","Laboratoire","TEST PCR/Labo BQV","yyy",2,"Amener les tests au labo de BQV","2021-01-18","2021-01-18","2021-01-18",0,"Ok","Transport des tests PCR OK",1.0416666666666666E-2]
[319,"xx","Entretien","Maintenance Corrective (En Panne)","PC TV chambre Monique/LV1","yyy",1,"Remplacer la prise de courant de la TV la prise ne tient plus.","2021-01-19","2021-01-19","2021-01-19",0,"Ok","remplacement de la prise de courant OK",1.0416666666666666E-2]
[320,"xx","Entretien","Maintenance Corrective (En Panne)","Jumper Hydrau","yyy",2,"Le camion ne demarre plus","2021-01-19","2021-01-19","2021-01-19",0,"Ok","Remplacement de la batterie + essai OK",4.1666666666666664E-2]
[321,"xx","Entretien","Maintenance Corrective (En Panne)","Télécommande BAES/Armoire TGBT","yyy",3,"Télécommande BAES HS ","2021-01-19","2021-01-19","2021-01-19",0,"Ok","remplacement de la télécommande + essai OK",4.1666666666666664E-2]
[322,"xx","Entretien","Intervention Esat Ceignac","PC atelier/Esat Ceignac","yyy",2,"Déplacer une PC dans l'atelier serigraphie","2021-01-15","2021-01-15","2021-01-15",0,"Ok","déplacement de la prise de courant pour photocopieur + essai OK",6.25E-2]
[323,"xx","LV 2","Maintenance Corrective (En Panne)","Leve personne/LV2","yyy",1,"Nous avons un lève personne qui déconne... Peut tu le regarder merci","2021-01-24","2021-01-26","2021-01-26",0,"Ok","chargeur leve personne HS remplacement + essai OK",1.3888888888888888E-2]
[324,"xx","Entretien","Maintenance Corrective (En Panne)","BAES/CF Rapport Sicli","yyy",2,"remplacer les 3 BAES HS suite visite annuel SICLI","2021-01-18","2021-01-18","2021-01-18",0,{"$f":"IF(H327=\"\",\"\",IF(J327=\"Annulée\",\"Annulée\",IF(K327<>\"\",\"Ok\",IF(J327<>\"\",IF(J327<TODAY(),\"Retard\",\"En cours\"),IF(I327<>\"\",\"A planifier\",\"A Lancer\")))))","v":"Ok"},"remplacement des 3 BAES défaillants OK",4.1666666666666664E-2]
[325,"xx","Kiné","Informatique","PC portable Marc + Inf / Infirmerie","yyy",2,"Mise en place du logiciel pour vaccination sur PC portable Marc+ PC fixe ","2021-01-27","2021-01-27","2021-01-27",0,"Ok","Installation du logiciel sur les deux PC + essais OK",6.25E-2]
[326,"xx","Ergothérapeute","Manutention matériel","Lit Alain Roumiguié/Ch Alain LV1","yyy",2,"remplacer le lit d'Alain","2021-01-29","2021-01-29","2021-01-29",0,"Ok","Montage et mise en place du nouveau lit dans la chambre d'Alain OK",3.125E-2]
[327,"xx","Entretien","Maintenance Corrective (En Panne)","Distributeur de Chlore / Piscine","yyy",1,"Fuite sur corps de pompe de distribution de chlore","2021-01-29","2021-01-29","2021-01-29",0,"Ok","remplacement du corps de pompe + reglage OK",2.0833333333333332E-2]
[328,"xx","Directeur","Maintenance Preventive (Avant panne)","Réseau d'eau/LV3","yyy",1,"Détection de légio sur le LV3","2021-01-28","2021-01-28","2021-01-28",0,"Ok","vérification des températures sur l'ensemble des points d'eau OK RAS température de sortie Normale.",4.1666666666666664E-2]
[329,"xx","Lingerie","Maintenance Corrective (En Panne)","Lave linge gauche/Lingerie","yyy",2,"gache ouverture porte fait du bruit à l'ouverture côté propre","2021-02-01","2021-02-01","2021-02-01",0,"Ok","remplacement et reglage de la gâche OK",2.0833333333333332E-2]
[330,"xx","LV 2","Informatique","Base Doc/PC LV2","yyy",3,"Impossible d'ouvrir la base doc sur ma session","2021-02-01","2021-02-01","2021-02-01",0,"Ok","Reinitialisation mot de passe + parametrage ouverture base doc OK ",1.3888888888888888E-2]
[331,"xx","Chef de service","Informatique","Mise en place lecteur réseau / PC MARC","yyy",1,"Paramétrage du poste de Marc avec ma session","2021-02-01","2021-02-01","2021-02-01",0,"Ok","Paramétrage de la session d'Aurore MOULY sur le poste de Marc DEVAUX OK",2.0833333333333332E-2]
[332,"xx","Entretien","Laboratoire","Test PCR / Labo BQV","yyy",2,"Amener les tests PCR au labo de BQV","2021-02-08","2021-02-08","2021-02-08",0,"Ok","Transport des tests OK",1.0416666666666666E-2]
[333,"xx","Directeur","Maintenance Preventive (Avant panne)","Remplacer Thermostatique SDB/LV3","yyy",1,"remplacer le thermostatique de la salle de bain des filles + remplacement tuyau avant nouvelle analyse de AVL12","2021-02-08","2021-02-08","2021-02-08",0,"Ok","remplacement du tuyau de douche et du thermostatique OK",2.0833333333333332E-2]
[334,"xx","Entretien","Travaux Neuf","Mise en place Pavés led couleurs / LV4","yyy",3,"Mettre en place 3 pavés Led de couleurs","2021-02-08","2021-02-08","2021-02-08",0,"Ok","mise en place + raccordement + paramétrage des 3 pavés LED OK",0.125]
[335,"xx","Entretien","Travaux Neuf","mise en place Pavés Led / LV2","yyy",3,"Mettre en place 3 pavés LED sur le salon du LV2","2021-02-05","2021-02-05","2021-02-05",0,"Ok","Mise en place + raccordement + paramétrage des 3 pavés LED OK",0.125]
[336,"xx","Entretien","Travaux Neuf","Mise en place pavés Led / LV1","yyy",3,"Mettre en place 3 pavés led de couleurs sur le salon du LV1","2021-02-01","2021-02-01","2021-02-01",0,"Ok","Misen place des 3 pavés led + raccordement + paramétrage OK",0.125]
[337,"xx","LV 2","Maintenance Corrective (En Panne)","Télévision chambre Dorian","yyy",1,"Pourrais tu remettre la TV dans la chambre de Dorian STP. Merci","2021-02-14","2021-02-18","2021-03-18",28,"Ok","Mise en place de la TV chambre de Dorian + Mélany  + reglage des chaines OK",4.1666666666666664E-2]
[338,"xx","LV 4","Maintenance Corrective (En Panne)","porte cassé","yyy",1,"La porte de la chambre de Laurent Douziech est cassé, on ne peut plus la fermer.","2021-02-15","2021-02-18","2021-02-18",0,"Ok","remise en conformité de la porte OK",4.1666666666666664E-2]
[339,"xx","Accompagnant de nuit","Maintenance Corrective (En Panne)","WC / LV1","yyy",2,"fuite sur WC salle de bain côté grand couloir LV1","2021-02-22","2021-02-22","2021-02-22",0,"Ok","remplacment complet des éléments de chasse du batibox",2.0833333333333332E-2]
[340,"xx","LV 2","Maintenance Corrective (En Panne)","SDB / LV2","yyy",2,"Plus de lumiere dans la salle de bain et remettre en place la barriere du lit de Laurent","2021-02-22","2021-02-22","2021-02-22",0,"Ok","remise en place barriere de lit OK + remplacement ampoule SDB OK",2.0833333333333332E-2]
[341,"xx","Infirmerie","Laboratoire","Test PCR / labo BQV","yyy",2,"Amener les test PCR au labo de BQV","2021-02-22","2021-02-22","2021-02-22",0,"Ok","Transport des tests au labo de BQV OK",1.0416666666666666E-2]
[342,"xx","LV 2","Maintenance Corrective (En Panne)","LV2","yyy",2,"Un plafonnier de la salle de bain côté gauche (côté Christopher, Mélany...) est grillé. + Interrupteur de la chambre à Michel Chamyck qui déconne. Merci ","2021-02-23","2021-03-22","2021-03-22",0,"Ok","remplacement de l'interrupteur de la chambre de Michel + lampe SDB grillée OK ",2.0833333333333332E-2]
[343,"xx","Infirmerie","Laboratoire","Test PCR /Labo BQV","yyy",2,"Amener Test PCR Labo BQV","2021-02-03","2021-03-03","2021-03-03",0,{"$f":"IF(H346=\"\",\"\",IF(J346=\"Annulée\",\"Annulée\",IF(K346<>\"\",\"Ok\",IF(J346<>\"\",IF(J346<TODAY(),\"Retard\",\"En cours\"),IF(I346<>\"\",\"A planifier\",\"A Lancer\")))))","v":"Ok"},"Transport des tests PCR OK",1.0416666666666666E-2]
[344,"xx","Lingerie","Déchetterie","reserve porte grillagée sous le préau","yyy",2,"Prendre à la déchetterie tous les bidons vides ainsi que le ou les sacs de vêtements à mettre au recyclage.Merci","2021-03-01","2021-03-10","2021-03-10",0,"Ok","recupération des bidons et des sacs OK",4.1666666666666664E-2]
[345,"xx","Infirmerie","Laboratoire","Test PCR/ Labo BQV","yyy",2,"Amener les tests PCR au labo de BQV","2021-03-02","2021-03-02","2021-03-02",0,"Ok","Transport des test au labo de BQV OK",1.0416666666666666E-2]
[346,"xx","LV 1","Informatique","Logiciel PSI / LV1","yyy",1,"Psi ne fonctionne plus","2021-03-02","2021-03-02","2021-03-02",0,"Ok","suppression de l'application + mise à jour et réinstallation du logiciel + essai OK",3.125E-2]
[347,"xx","Infirmerie","Laboratoire","Test PCR/Labo BQV","yyy",2,"Amener les tests PCR au labo de BQV ","2021-03-05","2021-03-05","2021-03-05",0,"Ok","Trnasport des tests OK",1.0416666666666666E-2]
[348,"xx","Infirmerie","Laboratoire","test PCR /Labo BQV","yyy",2,"Amener les tests PCR au labo de BQV","2021-03-08","2021-03-08","2021-03-08",0,"Ok","Transport des tests au labo OK",1.0416666666666666E-2]
[349,"xx","LV 4","Maintenance Corrective (En Panne)","ampoule cuisine et poignée de porte.","yyy",1,"Les ampoules du plan de travail ne fonctionnent pas, et la porte du bureau est en piteu état. Merci.","2021-03-11","2021-03-12","2021-03-12",0,"Ok","remplacement des ampoules du plan de travail + vérification poignée de porte OK",1.3888888888888888E-2]
[350,"xx","Directeur","Administratif","Recupérer Chocolat/Lacombe","yyy",3,"récupérer les chocolats boulangerie Lacombe BQV","2021-03-11","2021-03-11","2021-03-11",0,"Ok","récupération des chocolats OK",1.0416666666666666E-2]
[351,"xx","Infirmerie","Informatique","SI-DEP/PC infirmerie","yyy",1,"paramétrages Portail SI-DEP sur chaque Infirmière","2021-03-11","2021-03-11","2021-03-11",0,"Ok","paramétrages du portail SI-DEP OK",0.125]
[352,"xx","LV 1","Maintenance Preventive (Avant panne)","Barrière de lit / CH Laurent MARTIN LV1","yyy",1,"Bariiere de lit de Laurent Martin bouge énormément","2021-03-11","2021-03-11","2021-03-11",0,"Ok","resserage des fixations + collage vis de maintient du vérroullage de la barriere droite",1.3888888888888888E-2]
[353,"xx","Accompagnant de nuit","Maintenance Preventive (Avant panne)","Télécommande lit médicalisé / LV1 et LV4","yyy",2,"Remettre en conformité le passage des fils des télécommandes du lit de Valérie Andrieu,Laurent Martin et Roumiguié Alain","2021-03-12","2021-03-12","2021-03-12",0,"Ok","remise en conformité des cables des telecommandes OK",2.0833333333333332E-2]
[354,"xx","Ergothérapeute","Maintenance Corrective (En Panne)","Matelas Automorpho/Salle snoezelen","yyy",2,"Le matelas automorpho ne se gonfle plus","2021-03-16","2021-03-16","2021-03-16",0,"Ok","Remplacement du compresseur HS",4.1666666666666664E-2]
[355,"xx","LV 3","Informatique","PC Bureau/LV3","yyy",1,"Parametrer session ordinateur","2021-03-17","2021-03-22","2021-03-22",0,"Ok","paramétrage session sur ordinateur LV1 et LV3  OK",4.1666666666666664E-2]
[356,"xx","Lingerie","Maintenance Preventive (Avant panne)","sèche linge","yyy",2,"entretien sèche linge et des conduits évacuations.Merci.","2021-03-19","2021-03-25","2021-03-25",0,"Ok","nettoyage et entretien du seche linge OK",4.1666666666666664E-2]
[357,"xx","Infirmerie","Laboratoire","Test PCR/Labo BQV","yyy",2,"Amener les tests PCR au labo de BQV","2021-03-22","2021-03-22","2021-03-22",0,"Ok","Transport des tests au labo de BQV",1.0416666666666666E-2]
[358,"xx","LV 1","Maintenance Corrective (En Panne)","cale pieds fauteuils roulant / LV1","yyy",2,"Verifier les cales pieds de Alain et Isabelle s'il te plait","2021-03-26","2021-03-26","2021-03-26",0,"Ok","Vérification et réglages des cales pieds du fauteuil de Alain et de Isabelle OK",2.7777777777777776E-2]
[359,"xx","LV 3","Maintenance Corrective (En Panne)","Volet de desenfumage / Salon LV3","yyy",1,"derangement général CMSI sur LV3","2021-03-26","2021-03-26","2021-03-26",0,"Ok","Remise en conformité du détecteur d'ouverture du vantail de désenfumage",2.0833333333333332E-2]
[360,"xx","Cuisine","Travaux Neuf","Tableau liege/bureau cuisine","yyy",3,"Installation de 2 tableaux en liege au dessus du bureau","2021-03-26","2021-03-26","2021-03-26",0,"Ok","mise en place des 2 tableaux OK",1.3888888888888888E-2]
[361,"xx","Infirmerie","Informatique","PC / Infirmerie","yyy",2,"Demande d'ouverture des droits d'accés + Parametrage session sur les deux postes de l'infirmerie","2021-03-26","2021-03-26","2021-03-26",0,"Ok","Paramétrage des 2 sessions OK",4.1666666666666664E-2]
[362,"xx","Entretien","Déchetterie","divers dechets/Mas BQV","yyy",3,"Amener les dechets à la dechetterie de BQV","2021-03-29","2021-03-29","2021-03-29",0,"Ok","Transport des dechets OK",4.1666666666666664E-2]
[363,"xx","LV 2","Maintenance Corrective (En Panne)","lv2/CH Alain","yyy",2,"stp regis est ce que tu peux venir installer les petites etageres qu alain a eu pour son anniversaire merci","2021-03-29","2021-04-02","2021-04-02",0,"Ok","Installation des etageres OK",2.0833333333333332E-2]
[364,"xx","Infirmerie","Laboratoire","Test PCR/ LABO","yyy",2,"Amener les tests PCR au labo","2021-03-30","2021-03-30","2021-03-30",0,"Ok","Transport des tests au labo de BQV OK",6.9444444444444441E-3]
[365,"xx","Entretien","Travaux Neuf","etude rail de transfert / Saint Come","yyy",3,"Visite du site de St Come pour etude rail de transfert sur la MAS DE BARAQUEVILLE","2021-03-30","2021-03-30","2021-03-30",0,"Ok","",0.20833333333333334]
[366,"xx","LV 4","Travaux Neuf","Mise en place vitrine/Salon LV4","yyy",3,"Mettre en place la vitrine dans le lieu de vie","2021-04-01","2021-04-01","2021-04-01",0,"Ok","Mise en place de la vitrine OK",4.1666666666666664E-2]
[367,"xx","Infirmerie","Laboratoire","Analyse de sang/ Labo BQV","yyy",2,"Amener les analyse au labo de BQV","2021-04-01","2021-04-01","2021-04-01",0,"Ok","Transport des analyses au labo de BQV OK",1.0416666666666666E-2]
[368,"xx","Infirmerie","Informatique","PC/Infirmerie","yyy",1,"Pas d'acces au serveur infirmerie","2021-04-02","2021-04-02","2021-04-02",0,"Ok","remise en conformité de l'accés au serveur infirmerie OK",1.3888888888888888E-2]
[369,"xx","LV 3","Maintenance Corrective (En Panne)","bureau/ LV3 ","yyy",1,"Coucou , nous avons plus de lumiere au bureau , peut tu intervenir ? :) ","2021-04-05","2021-04-06","2021-04-06",0,"Ok","remplacement de 2 tubes fluo OK",1.3888888888888888E-2]
[370,"xx","LV 4","Maintenance Corrective (En Panne)","Porte de la salle de bain ","yyy",1,"La porte de la salle de bain\"côté garçon\" cassée","2021-04-06","2021-04-06","2021-04-06",0,"Ok","Réparation de la porte OK",4.1666666666666664E-2]
[371,"xx","Accompagnant de nuit","Maintenance Corrective (En Panne)","Detecteur circulation coté fille/LV3","yyy",2,"Le detecteur de la circulation ne fonctionne plus","2021-04-06","2021-04-06","2021-04-06",0,"Ok","remplacement du detecteur de la circulation + reglage OK",2.0833333333333332E-2]
[372,"xx","Infirmerie","Informatique","PC/LV5","yyy",1,"Parametrer ma session sur PC LV5 pour PPA","2021-04-06","2021-04-06","2021-04-06",0,"Ok","Parametrage Session Sur PC LV5 OK",2.0833333333333332E-2]
[373,"xx","LV 4","Maintenance Corrective (En Panne)","adaptable/LV4","yyy",1,"Il y a trois adaptablse qui sont cassés , le plateau s'incline sans forcer, l'autre à le plateau qui descend tout seul, le 3eme à le plateau qui ne tient pas du tout, les 3 sont au bureau du lv4. Merci pour les réparer au plus tôt.","2021-04-08","2021-04-12","2021-04-12",0,"Ok","réparation de 2 tables adaptables OK et 1 HS",4.1666666666666664E-2]
[374,"xx","LV 4","Maintenance Preventive (Avant panne)","lecteur cd","yyy",3,"lecteur cd de Nathalie : Voir Colette impérativement avant de le prendre . MERCI.","2021-04-11","2021-04-12","2021-04-12",0,"Ok","Lecteur HS",6.9444444444444441E-3]
[375,"xx","LV 4","Maintenance Corrective (En Panne)","armoire à pharmacie","yyy",1,"Le digicode de l'armoire à pharmacie ne fonctionne plus, merci de le regarder très rapidement.","2021-04-11","2021-04-13","2021-04-13",0,"Ok","réparation de l'armoire + essais OK",6.25E-2]
[376,"xx","LV 1","Maintenance Corrective (En Panne)","Leve personne Viking S / LV1","yyy",1,"Le leve pesonne viking S ne fonctionne pas","2021-04-12","2021-04-12","2021-04-12",0,"Ok","Telecommande HS Commande pourremplacement.",2.0833333333333332E-2]
[377,"xx","Entretien","Informatique","Session nouveau PC/Tous","yyy",2,"Remise en conformité de chaque session personnel suite remplacement PC","2021-04-12","2021-04-12","2021-04-12",0,"Ok","remise en conformité de l'ensemble des sessions du personnels en CDI OK sur LV1,LV2 et LV3",0.16666666666666666]
[378,"xx","Accompagnant de nuit","Maintenance Corrective (En Panne)","Lumiere SDB /LV3","yyy",3,"Lumiere SDB côté Fille HS","2021-04-12","2021-04-12","2021-04-12",0,"Ok","Remplacement Ampoule OK",1.0416666666666666E-2]
[379,"xx","Accompagnant de nuit","Informatique","ORDI/LV1 et LV3","yyy",1,"Bonjour, peux tu nous mettre le dossiers '' COMMUN\" sur les ordis du 1 et 3 afin qu on est accés aux ordres du jour, ainsi que les dossiers d urgence. Merci","2021-04-14","2021-04-16","2021-04-16",0,"Ok","Paramétrage des sessions LV1 et LV3 OK",4.1666666666666664E-2]
[380,"xx","LV 4","Maintenance Corrective (En Panne)","chambre de Méline Lacroix","yyy",3,"le cube orange fixé face au lit a été accroché et tombé il s'est décollé, morceaux rangés dans le bas de l'armoire de sa chambre","2021-04-17","2021-04-17","2021-04-17",0,"Ok","Cube Orange HS",6.9444444444444441E-3]
[381,"xx","Accompagnant de nuit","Maintenance Corrective (En Panne)","ORDI LV 1 ET LV3","yyy",1,"Bonjour, peux tu nous mettre le dossies communs sur les ordis pour qu on puisse avoir acces aux dossiers d urgence et aux doc des reunions merci ","2021-04-19","2021-05-19","2021-05-19",0,"Ok","Mise en place des raccourcis sur session LV1 et LV3 OK",2.7777777777777776E-2]
[382,"xx","Lingerie","Déchetterie","reserve porte grillagée sous préau","yyy",2,"prendre à la déchetterie tous les bidons vides produits entretien et les poches poubelles jaunes avec des vêtements à recycler.Merci.","2021-04-23","2021-04-27","2021-04-27",0,"Ok","récupération des dechets OK",4.1666666666666664E-2]
[383,"xx","Coordinatrice","Informatique","DECT /Bureau coord","yyy",1,"Ecran blanc sur DECT Coord","2021-05-17","2021-05-17","2021-05-17",0,"Ok","Remise en conformité du DECT + essais de fonctionnement OK",1.3888888888888888E-2]
[384,"xx","LV 2","Maintenance Corrective (En Panne)","Ch Michel/LV2","yyy",2,"Panneau d'aération au dessus de la fenêtre qui est tombé","2021-05-19","2021-05-20","2021-05-20",0,"Ok","remise en confomité du coffre du volet roulant OK",1.3888888888888888E-2]
[385,"xx","LV 1","Maintenance Corrective (En Panne)","Sdb du centrale/LV1","yyy",1,"Pommeau de douche HS","2021-05-20","2021-05-21","2021-05-21",0,"Ok","remplacement du pommeau OK",1.0416666666666666E-2]
[386,"xx","LV 3","Maintenance Corrective (En Panne)","LV3/Ch Lionel ICHER","yyy",2,"cache bouton lumière ne tient plus (mis au bureau)","2021-05-21","2021-05-26","2021-05-26",0,"Ok","Remplacement du cache OK",1.0416666666666666E-2]
[387,"xx","Accompagnant de nuit","Manutention matériel","Vestiaire Accompagnant de nuit / LV5","yyy",2,"possibilité de remettre notre vestiaire sur lv5 stp? Pour le cache de la lumière sur lv3 que je t'ai noté , c'est pour Lionel Icher ( j ai oublié de le préciser dans la précédente demande!) Merci","2021-05-27","2021-05-27","2021-05-27",0,"Ok","Remise en plce des vestiaires des accompagnants de nuit du BIP au LV5",1.0416666666666666E-2]
[388,"xx","LV 2","Maintenance Corrective (En Panne)","fauteuil vert M.Laurence/LV2","yyy",2,"Pied avnt gauche auquel il manque un patin, du coup un clou dépasse et arrache le revêtement de sol.","2021-05-22","2021-06-01","2021-06-01",0,"Ok","réparatiion du fauteuil OK",2.0833333333333332E-2]
[389,"xx","LV 4","Travaux Neuf","lv4","yyy",1,"potager a monter urgent pour commencer les plantations. en te remerçiant. régis","2021-05-28","2021-06-18","2021-06-18",0,"Ok","Montage des 2 potagés OK",0.125]
[390,"xx","LV 1","Maintenance Corrective (En Panne)","chambre de Sylvie Torres/LV 1","yyy",2,"reparation du lustre qui est tombé et telecommande du lit en panne","2021-05-28","2021-06-01","2021-06-01",0,{"$f":"IF(H393=\"\",\"\",IF(J393=\"Annulée\",\"Annulée\",IF(K393<>\"\",\"Ok\",IF(J393<>\"\",IF(J393<TODAY(),\"Retard\",\"En cours\"),IF(I393<>\"\",\"A planifier\",\"A Lancer\")))))","v":"Ok"},"Remise en conformité du luminaire + réparation télécommande lit medicalisé OK",2.0833333333333332E-2]
[391,"xx","LV 1","Maintenance Corrective (En Panne)","NEON CUISINE GRILLE/LV1","yyy",1,"Bonjour, peux tu changer le neon cuisine du lv1 car la nuit on utilise que cet endroit en eclairage . ca evite d allumer tt le lieu . merci ","2021-05-30","2021-06-03","2021-06-03",0,"Ok","remplacement des tubes Fluo OK",6.9444444444444441E-3]
[392,"xx","Lingerie","Maintenance Corrective (En Panne)","INTERRUPTEUR LINGERIE COTE PROPRE ","yyy",2,"Bonjour, linterrupteur de l entrée de la lingerie est capricieux. peux tu le changer ou le reparer stp. qd on appui dessus la lumiere ne s eclaire pas. il faut insister sur le haut du bouton . merci !","2021-05-30","2021-09-15","2021-09-15",0,"Ok","remplacement de l'interrupteur OK",6.9444444444444441E-3]
[393,"xx","Accompagnant de nuit","Informatique","COMMUN /TABLEAU DE BORD ","yyy",1,"Encore moi ! peux tu me mettre sur ma session le dossier commun et tablau de bord stp. je ne les ai pas !! merci !! bonne journée ","2021-05-30","2021-06-01","2021-06-01",0,"Ok","Mise en place + paramétrage des raccourcis sur bureau OK",1.3888888888888888E-2]
[394,"xx","LV 4","Travaux Neuf","Tonnelle / LV4","yyy",2,"Installer la tonnelle devant l'exterieur du LV 4 . (Elle se trouve dans la grande salle)+tonnelle (se situe dans la reserve de la grande salle)","2021-05-30","2021-07-05","2021-07-05",0,"Ok","Installation Tonnelle OK",8.3333333333333329E-2]
[395,"xx","LV 4","Maintenance Corrective (En Panne)","Table grise de la cuisine","yyy",1,"Pied de la table deffectueux ","2021-05-30","2021-06-01","2021-06-01",0,"Ok","Remise en conformité de l'ensemble des pieds des tables",4.1666666666666664E-2]
[396,"xx","LV 1","Maintenance Preventive (Avant panne)","LIEU DE VIE","yyy",3,"Bonjour ! Pourras-tu me dire quand est-ce que tu iras faire un tour à la déchetterie pour qu'on puisse te laisser du matériel ? Merci !","2021-06-04","2021-06-07","2021-06-07",0,"Ok","transport des dechets OK",1.3888888888888888E-2]
[397,"xx","LV 3","Informatique","Ecran PC HS / Bureau LV3","yyy",1,"Ecran du PC HS scintille","2021-06-08","2021-06-08","2021-06-08",0,"Ok","remplacement ecran OK",0.41666666666666669]
[398,"xx","LV 2","Maintenance Corrective (En Panne)","Lave vaisselle / Cuisine LV2","yyy",1,"Lave vaisselle HS","2021-06-17","2021-06-17","2021-06-17",0,"Ok","remplacement du lave vaisselle fuite au niveau de la cuve",4.1666666666666664E-2]
[399,"xx","LV 4","Maintenance Corrective (En Panne)","Lit Myriam / LV4","yyy",1,"Le lit ne monte plus","2021-06-17","2021-06-17","2021-06-17",0,"Ok","Verin HS remplacement + essais OK",4.1666666666666664E-2]
[400,"xx","Directeur","Informatique","Mise en place plan de maintenance / Ephad Beau Soleil Riviere","yyy",2,"Mise en place d'un plan de Maintenance sur l'EPHAD Beau Soleil ainsi qu'une gestion de Stock","2021-06-15","2021-06-15","2021-06-15",0,"Ok","Mise en place du plan de maintenance en cours de réalisation",0.33333333333333331]
[401,"xx","Directeur","Siège fondation Opteo","Divers Dépannages + local CE/Siege fondation opteo","yyy",2,"dépannage divers CF Carnet de suivi siege fondation opteo","2021-06-17","2021-06-03","2021-06-03",0,"Ok","divers dépannage sur le siege de la fondation + divers dépannage local CE",0.33333333333333331]
[402,"xx","Accompagnant de nuit","Informatique","DECT HS / LV3","yyy",1,"DECT veilleur ne fonctionne plus","2021-06-17","2021-06-17","2021-06-17",0,"Ok","remplacement et programmation du nouveau DECT OK",4.1666666666666664E-2]
[403,"xx","LV 1","Maintenance Corrective (En Panne)","Lit Monique/LV2","yyy",1,"La prise du lit médicalisé de Monique BOUSSAC est HS","2021-06-16","2021-06-16","2021-06-16",0,"Ok","Remplacement de la prise du lit + essais OK",2.0833333333333332E-2]
[404,"xx","LV 1","Maintenance Corrective (En Panne)","Plafonnier / CH Marie Laurence","yyy",2,"lumière plafonnier grillée (bouton blanc sans voyant )","2021-06-26","2021-06-28","2021-06-28",0,"Ok","remplacement ampoules OK",6.9444444444444441E-3]
[405,"xx","LV 2","Maintenance Corrective (En Panne)",null,"yyy",1,"roue droite fauteuil roulant Mélany à plat","2021-06-26","2021-06-28","2021-06-28",0,"Ok","gonflage Roue du fauteuil de Mélany",6.9444444444444441E-3]
[406,"xx","LV 2","Maintenance Corrective (En Panne)","eau chaude SDB /LV2","yyy",1,"salle de bains GC pas d'eau chaude a la douche","2021-06-27","2021-06-28","2021-06-28",0,"Ok","verification thermostatique OK RAS fonctionnement Normal",6.9444444444444441E-3]
[407,"xx","LV 2","Maintenance Corrective (En Panne)","fauteuil Mélany M/LV2","yyy",1,"roue drte a plat ","2021-07-06","2021-07-06","2021-07-06",0,"Ok","Remplacement de la roue OK",1.0416666666666666E-2]
[408,"xx","LV 1","Maintenance Corrective (En Panne)","SALLE DE BAINS /LV1","yyy",1,"AMPOULE DE SALLE DE BAINS A REMPLACER. MERCI REGIS !!","2021-07-01","2021-07-01","2021-07-01",0,"Ok","repmlacement de l'ampoule de la SDB OK",6.9444444444444441E-3]
[409,"xx","Entretien","Siège fondation Opteo","Divers dépannages/Siege Fondation Optéo","yyy",3,"Divers dépannages","2021-07-06","2021-07-06","2021-07-06",0,"Ok","Divers Dépannages",0.20833333333333334]
[410,"xx","LV 1","Maintenance Corrective (En Panne)","Tringle rideau HS/CH M.MARTIN","yyy",2,"tringle de rideaux et fixateur cassé . Chambre de laurent martinLV1 merci","2021-07-23","2021-07-23","2021-07-23",0,"Ok","remplacement de la tringle OK",1.0416666666666666E-2]
[411,"xx","LV 4","Maintenance Corrective (En Panne)","SDB/LV4","yyy",1,"porte de la salle de bain cassé, ne ferme plus. merci régis","2021-07-27","2021-07-27","2021-07-27",0,"Ok","réparation de la porte OK",2.0833333333333332E-2]
[412,"xx","LV 2","Maintenance Corrective (En Panne)","lave vaisselle/cuisine LV2","yyy",2,"Remettre la vis qui maintient le lave vaisselle","2021-07-28","2021-08-05","2021-08-05",0,"Ok","remise en conformité de la vis OK",6.9444444444444441E-3]
[413,"xx","LV 2","Maintenance Corrective (En Panne)","leve personne Viking S/LV2","yyy",1,"roue avant droite qui s'enlève!!!!!!!!!!!!!!","2021-08-03","2021-09-02","2021-09-02",0,"Ok","remplacement de l'ecrou de roue manquant et des caches de protections sur fourches avant",4.1666666666666664E-2]
[414,"xx","Ergothérapeute","Travaux Neuf","Montage des tables commandées","yyy",3,"Monter l'ensemble des tables et les répartir sur chaque lieu de vie","2021-08-04","2021-09-03","2021-08-06",-28,"Ok","",0.29166666666666669]
[415,"xx","LV 4","Maintenance Corrective (En Panne)","Porte SDB coté droit / LV4","yyy",1,"Porte cassée côté petit vantail par Maxime","2021-08-04","2021-08-04","2021-08-04",0,"Ok","réparation porte côté petit vantail ",4.1666666666666664E-2]
[416,"xx","Entretien","Maintenance Corrective (En Panne)","Moteur rail de transfert/ Piscine","yyy",2,"la sangle ne descend pas et clignotement Maintenance","2021-08-05","2021-08-05","2021-08-05",0,"Ok","remplacement capteurs de pression + remplacement télécommande + reinitialisation maintenance OK",8.3333333333333329E-2]
[417,"xx","Accompagnant de nuit","Maintenance Corrective (En Panne)","robinet wc personne/l lv1","yyy",2,"j'ai cassé le robinet eau froide wc personnel lv1","2021-08-18","2021-08-18","2021-08-18",0,"Ok","remplacement par plombier OK",3.472222222222222E-3]
[418,"xx","Lingerie","Maintenance Corrective (En Panne)","Eclairage / circulation lingerie","yyy",2,"ampoule grillée bout du couloir","2021-08-19","2021-09-02","2021-09-02",0,"Ok","remplacement des ampoules grillées OK",1.0416666666666666E-2]
[419,"xx","LV 4","Maintenance Corrective (En Panne)","eclairaige/entree LV4","yyy",2,"ampoule grillée devant wc personnel","2021-08-19","2021-09-10","2021-09-10",0,"Ok","remplacement de 2 ampoules HS OK",1.0416666666666666E-2]
[420,"xx","LV 2","Maintenance Corrective (En Panne)","LV2","yyy",2,"prise défectueuse mur local ménage et allant couloir Alain","2021-08-19","2021-09-06","2021-09-06",0,"Ok","remise en conformité de la prise OK",1.3888888888888888E-2]
[421,"xx","LV 2","Maintenance Corrective (En Panne)","téléphone DECT/LV2","yyy",1,"ecran du téléphone HS","2021-08-27","2021-08-31","2021-08-31",0,"Ok","Telephone HS reprogrammation + mise en service d'un nouveau OK",4.1666666666666664E-2]
[422,"xx","LV 1","Maintenance Corrective (En Panne)","porte de la salle de bains du grand couloir et de la poubelle cuisine","yyy",2,"Bonjour.Après avoir essayé avec les piles, la poignée de la porte de la sdb grand côté ne marche toujours pas. Je verrai avec toi. Par contre, pour la poubelle, Laurent a fait une manoeuvre malencontreuse.... Désolée...","2021-09-05","2021-09-06","2021-09-06",0,"Ok","reparation de la porte de la cuisine et porte salle de bain HS demande dvis LAUSSEL ET FAU",4.1666666666666664E-2]
[423,"xx","LV 4","Maintenance Corrective (En Panne)","pendule / cuisine LV4","yyy",3,"remettre en place la pendule de la cuisine","2021-09-07","2021-09-07","2021-09-07",0,"Ok","remise en place de la pendule OK",6.9444444444444441E-3]
[424,"xx","Chef de service","Maintenance Corrective (En Panne)","onduleur / secretariat","yyy",1,"onduleur PC secrétariat en alarme","2021-09-09","2021-09-09","2021-09-09",0,"Ok","reinitialisation des defauts et remise en service OK",6.9444444444444441E-3]
[425,"xx","Infirmerie","Informatique","Scanner / Infirmerie","yyy",2,"le scanner ne fonctionne pas","2021-09-07","2021-09-07","2021-09-07",0,"Ok","remsie à jour des pilotes du scanner + essais OK",4.1666666666666664E-2]
[426,"xx","LV 3","Maintenance Corrective (En Panne)","cales pieds fauteuil B.SORREL/LV3","yyy",2,"cales pieds HS fauteuil de Brigitte SORREL","2021-09-06","2021-09-06","2021-09-06",0,"Ok","remise en conformité des cales pieds de Brigitte SORREL",2.0833333333333332E-2]
[427,"xx","Directeur","Manutention matériel","Formation/LV5","yyy",3,"Mise en place du LV5 pour formation AES","2021-09-06","2021-09-06","2021-09-06",0,"Ok","Aménagement du leiu de vie 5 OK",4.1666666666666664E-2]
[428,"xx","Entretien","Maintenance Corrective (En Panne)","defebrilateur /circulation  Infirmerie","yyy",2,"Electrode défibrilateur périmée","2021-09-09","2021-09-09","2021-09-09",0,"Ok","Commande et remplacement électrode + vérification générale de l'appareil OK ",4.1666666666666664E-2]
[429,"xx","LV 2","Maintenance Corrective (En Panne)","DECT HS/LV2","yyy",1,"DECT mangé par M. SCHARF et depuis il ne fonctionne plus","2021-09-13","2021-09-13","2021-09-13",0,"Ok","remplacement DECT + reprogrammation et mise en service",4.1666666666666664E-2]
[430,"xx","Directeur","Siège fondation Opteo","divers dépannages / siege fondation opteo ","yyy",1,"divers dépannage siège Fondation opteo","2021-09-09","2021-09-09","2021-09-09",0,"Ok","remplacement de tubes fluo + réparation poignée fenêtre R+2",0.16666666666666666]
[431,"xx","Directeur","Entretien Divers","Piscine / remise en route piscine","yyy",3,"Remettre en route la piscine pour reprendre avec les résidents","2021-09-01","2021-09-01","2021-09-15",14,"Ok","remise en route + appel AVL 12 OK",0.33333333333333331]
[432,"xx","Directeur","Informatique","Deploiement logiciels / Riviere sur tarn","yyy",2,"Finalisation Plan de Maintenance et mise en place d'un tableau de bord","2021-08-02","2021-08-02","2021-08-02",0,"Ok","Plan de maintenance OK + mise en place tableau de bord OK",0.33333333333333331]
[433,"xx","Ménage","Maintenance Corrective (En Panne)","autolaveuse grise/ local menage","yyy",1,"batterie HS","2021-09-15","2021-09-15","2021-09-15",0,"Ok","Remplacement de la batterie OK",2.0833333333333332E-2]
[434,"xx","LV 1","Maintenance Corrective (En Panne)","Pommeau de douche / SDB de gauche et du centre LV1","yyy",1,"Plus de pression à la salle de bain de gauche et du centre","2021-09-17","2021-09-17","2021-09-17",0,"Ok","remplacement de 2 pommeaux de douche OK ",2.0833333333333332E-2]
[435,"xx","Directeur","Maintenance Corrective (En Panne)","modification des plateaux des chariots medicament/Infirmerie","yyy",2,"modifier l'ensemble des plateaux des chariots de médicament pour permettre de les plaquer bien au fond du tiroir","2021-09-01","2021-11-30","2021-11-30",0,"Ok","Modification Réalisée",0.25]
[436,"xx","Ménage","Maintenance Corrective (En Panne)","pommeau de douche / piscine","yyy",3,"remplacer le pommeau de douche SDB piscine","2021-09-21","2021-09-21","2021-09-21",0,"Ok","remplacement pommeau de douche SDB Piscine OK",6.9444444444444441E-3]
[437,"xx","Entretien","Maintenance Corrective (En Panne)","Dalle bois protection rideau PVC/PISCINE","yyy",3,"decouper dalle bois pour permettre le passage de la boite de derivation","2021-09-21","2021-09-21","2021-09-21",0,"Ok","decoupe et mise en place de la dalle OK",1.3888888888888888E-2]
[438,"xx","LV 4","Maintenance Preventive (Avant panne)","Interrupteur de la porte pour aller dehors prête à casser","yyy",1,"Maxime a cassé l'intérupteur qui permet d'ouvrir la porte pour aller à l'extérieur","2021-09-22","2021-09-23","2021-09-23",0,"Ok","remise en conformité de l'interrupteur OK",1.3888888888888888E-2]
[439,"xx","Accompagnant de nuit","Maintenance Preventive (Avant panne)","Circulation CH MAUREL/ lv2","yyy",1,"ampoules couloir chambre MAUREL Laurent ( on n'arrive pas à le voir correctement) luminosité trop faible","2021-09-23","2021-09-24","2021-09-24",0,"Ok","remplacement de 2 ampoules dans la circulation OK",1.3888888888888888E-2]
[440,"xx","Accompagnant de nuit","Maintenance Preventive (Avant panne)","lv3","yyy",2,"graisser porte bureau et wc personnel sur LV3","2021-09-23","2021-09-27","2021-09-27",0,"Ok","graissage des portes OK",6.9444444444444441E-3]
[441,"xx","LV 3","Maintenance Corrective (En Panne)","Pommeau de douche / SDB Cote fille","yyy",1,"Perte de pression pommeau de douche SDB côté fille","2021-09-22","2021-09-22","2021-09-22",0,"Ok","remplacement du pommeau de douche OK",6.9444444444444441E-3]
[442,"xx","Directeur","Informatique","Riviere/tarn","yyy",2,"dévellopper applications de sécurité et de maintenance","2021-09-28","2021-09-28","2021-09-28",0,"Ok","dévelloppement d'applications en cours OK",0.33333333333333331]
[443,"xx","LV 4","Maintenance Corrective (En Panne)","Téléphone du lieu de vie 4 ne fonctionne plus/LV4","yyy",1,"Changer le téléphone du lieu de vie 4 car il ne fonctionne plus du tout.","2021-10-02","2021-10-05","2021-10-05",0,"Ok","Réparation et reprogrammation DECT LV4",4.1666666666666664E-2]
[444,"xx","LV 1","Maintenance Corrective (En Panne)","étagère armoire / CH Laurent LV1","yyy",2,"Bonjour ! la dernière étagère côté droit de l'armoire de Laurent MARTIN  s'est cassée.","2021-10-04","2021-10-14","2021-10-14",0,"Ok","remise en conformité de l'etagere OK",6.9444444444444441E-3]
[445,"xx","Directeur","Siège fondation Opteo","Divers dépannages / Siege fondation opteo","yyy",2,"divers dépannages cf Cahier siege ","2021-10-05","2021-10-05","2021-10-05",0,"Ok","divers dépannages cf Cahier siege ",0.20833333333333334]
[446,"xx","Infirmerie","Informatique","PC portable/Infirmerie","yyy",1,"Parametrage de l'ordinateur et envoie des ordonnances pour preparation pillulier ne fonctionne pas pour Mme Laurence REYES","2021-10-05","2021-10-05","2021-10-05",0,{"$f":"IF(H449=\"\",\"\",IF(J449=\"Annulée\",\"Annulée\",IF(K449<>\"\",\"Ok\",IF(J449<>\"\",IF(J449<TODAY(),\"Retard\",\"En cours\"),IF(I449<>\"\",\"A planifier\",\"A Lancer\")))))","v":"Ok"},"parametrage PC portable infirmerie session Catherine Vidal OK + parametrage et essai d'envoi des prescriptions OK",4.1666666666666664E-2]
[447,"xx","LV 2","Maintenance Corrective (En Panne)","Eclairage SDB + Lave vaisselle/LV2","yyy",2,"Eclairage SDB ne fonctionne plus + mettre deux vis au  lave vaisselle pour eviter qu'il recule ","2021-10-05","2021-10-05","2021-10-05",0,"Ok","réparation lave vaisselle OK + remplacement ampoule SDB OK",2.0833333333333332E-2]
[448,"xx","LV 4","Informatique","ordinateur pour le skipe (au bip)","yyy",1,"Régis peut tu regarder l'ordi , nous n'avons pas pu faire fonctionner skipe, il fallait donner un mail etc....avant nous n'avions pas cette page . MERCI.","2021-10-06","2021-10-07","2021-10-07",0,"Ok","Remise en conformité de Skype + essai OK",2.0833333333333332E-2]
[449,"xx","Piscine","Maintenance Corrective (En Panne)","Eclairage douche / piscine","yyy",2,"L'eclairage de la douche de la piscine ne fonctionne plus","2021-10-07","2021-10-07","2021-10-07",0,"Ok","Remplacement de l'ampoule OK",6.9444444444444441E-3]
[450,"xx","Directeur","Maintenance Corrective (En Panne)","Porte entree LV3 / LV3","yyy",1,"LA porte d'entree du leiu de vie 3 ne se verrouille plus","2021-10-07","2021-10-07","2021-10-07",0,"Ok","remise en conformité du boitier vert de deverrouillage d'urgence.",6.9444444444444441E-3]
[451,"xx","LV 2","Maintenance Corrective (En Panne)","porte frigo/LV2","yyy",2,"bonjour porte frigo cassé quand tu as le temps peuts tu venir l'arranger stp merci","2021-10-10","2021-10-14","2021-10-14",0,"Ok","réparation de la porte du frigo OK",2.0833333333333332E-2]
[452,"xx","LV 2","Informatique","PC/Bureau personnel LV2","yyy",2,"Salut je n'arrive pas a ouvrir ma base documentaire je bosse mardi si tu peuts passer ce serai cool merci ","2021-10-10","2021-10-13","2021-10-13",0,"Ok","reinitialisation du compte et parametrage antivirus OK",2.0833333333333332E-2]
[453,"xx","LV 2","Maintenance Corrective (En Panne)","Salle de bain grand coté/LV2","yyy",2,"Tuyau de la pomme de douche qui fuis , SDB grand coté .","2021-10-11","2021-10-14","2021-10-14",0,"Ok","remplacement tuyau + pommeau OK",1.3888888888888888E-2]
[454,"xx","LV 4","Maintenance Preventive (Avant panne)","mur de la salle de bain côté garçons","yyy",1,"le revêtement du mur se décolle à hauteur de la barre d'appui","2021-10-11","2021-11-16","2021-11-16",0,"Ok","remise en conformité du revetement du mur",4.1666666666666664E-2]
[455,"xx","Ménage","Maintenance Corrective (En Panne)","2 trous au plafond réserve produits d entretien lv2","yyy",2,"remplacer les plaques","2021-10-12","2021-12-14","2021-12-14",0,"Ok","remplacement des plaques OK",2.0833333333333332E-2]
[456,"xx","LV 3","Maintenance Corrective (En Panne)","PORTE ACCES EXTERIEUR","yyy",3,"Coucou ! Nous avons de + en + de mal à ouvrir la porte elle est très dur et on va finir par se faire mal !!! ","2021-11-23","2021-11-23","2021-11-23",0,"Ok","révision de la porte OK",4.1666666666666664E-2]
[457,"xx","LV 4","Maintenance Corrective (En Panne)","Porte CH Pascal/LV4","yyy",2,"Porte de la chambre de Pascal arrachée","2021-10-14","2021-10-14","2021-10-14",0,"Ok","réparation de la porte de la chambre de Pascal Ok",2.0833333333333332E-2]
[458,"xx","Directeur","Administratif","Assemblée Générale / Salle animation","yyy",2,"Mise en place Informatique + assemblée generale OK","2021-10-14","2021-10-14","2021-10-14",0,"Ok","Aménagement de la salle + parametrage informatique",4.1666666666666664E-2]
[459,"xx","LV 1","Maintenance Corrective (En Panne)","BARRIERE DE LIT","yyy",1,"HELLO : la barrière de lit côté porte de Laurent MARTIN est fissurée côté vis. MERCI","2021-10-17","2021-10-22","2021-10-22",0,"Ok","remplacement de la barriere OK",1.0416666666666666E-2]
[460,"xx","Lingerie","Déchetterie","sous préau/Lingerie","yyy",2,"enlever tous les sacs poubelles jaunes (vêtements à suprimer) qui sont sur le grand chariot vert.merci","2021-10-18","2021-12-01","2021-12-01",0,"Ok","Transport des sacs à la déchetterie OK",4.1666666666666664E-2]
[461,"xx","Ménage","Maintenance Corrective (En Panne)","Vestiaire personnel cuisine/local menage","yyy",3,"Mettre un distributeur de savon au vestiaire de la cuisine cote piscine et changer un distributeur dans notre local.","2021-10-26","2021-10-26","2021-10-26",0,"Ok","Mise en place distributeur vestiaire + remplacement local menage OK",2.0833333333333332E-2]
[462,"xx","LV 2","Informatique","base documentaire/LV2","yyy",1,"impossible d'ouvrir la base documentaire","2021-10-25","2021-10-29","2021-10-29",0,"Ok","Parametrage base documentaire OK",2.0833333333333332E-2]
[463,"xx","Infirmerie","Informatique","PSI / Infirmerie","yyy",1,"Import /export des trans ne fonctionnent plus sur les 2 PC","2021-10-26","2021-10-26","2021-10-26",0,"Ok","remise en conformité du logiciel sur les deux PC OK",4.1666666666666664E-2]
[464,"xx","Accompagnant de nuit","Maintenance Corrective (En Panne)","fenêtre /cuisine","yyy",2,"La fenêtre coulissante de la cuisine ne se verrouille pas","2021-10-26","2021-10-26","2021-10-26",0,"Ok","reglage de la fermeture OK",1.0416666666666666E-2]
[465,"xx","LV 1","Maintenance Corrective (En Panne)","FIL DE LA TELECOMMANDE/LV1","yyy",1,"Le fil de la télécommande du lit de Marie-Hélène est dénué. Merci !!","2021-10-29","2021-10-29","2021-10-29",0,"Ok","reparation du fil de la telecommande OK",1.0416666666666666E-2]
[466,"xx","LV 3","Maintenance Corrective (En Panne)","extincteur / LV3 coté fille ","yyy",1,"le plomb de l'extincteur est cassé","2021-10-29","2021-10-29","2021-10-29",0,"Ok","plombage de l'extincteur OK",6.9444444444444441E-3]
[467,"xx","Infirmerie","Informatique","PSI / Infirmerie","yyy",2,"Problème import /export PDA","2021-11-10","2021-11-10","2021-11-10",0,"Ok","Remise en conformité de PSI + essais OK",4.1666666666666664E-2]
[468,"xx","LV 1","Maintenance Corrective (En Panne)","Barre anti panique/LV1","yyy",2,"La barre anti panique du LV1 ne fonctionne pas correctement","2021-11-10","2021-11-10","2021-11-10",0,"Ok","Usure mécanique de la barre prévoir remplacement en 2022",4.1666666666666664E-2]
[469,"xx","LV 4","Informatique","Outlook / LV4","yyy",3,"Réception des messages sur smartphone ne fonctionne plus","2021-11-09","2021-11-09","2021-11-09",0,"Ok","configuration de la messagerie oulook office 365 OK",2.0833333333333332E-2]
[470,"xx","LV 4","Maintenance Corrective (En Panne)","ampoule de la véranda grillée","yyy",2,"changer l'ampoule","2021-11-13","2021-11-25","2021-11-25",0,"Ok","remplacement Ampoule OK",6.9444444444444441E-3]
[471,"xx","LV 4","Maintenance Corrective (En Panne)","cale pied fauteuil/Andrieu Valerie","yyy",2,"Le cale pied droit du fauteuil de Valérie Andrieu ne fonctionne plus","2021-11-15","2021-11-15","2021-11-15",0,"Ok","remise en conformité du cale pied OK",2.0833333333333332E-2]
[472,"xx","Entretien","Maintenance Corrective (En Panne)","Eclairages / circulations","yyy",3,"Ampoules grillées dans les circulations et dans la salle d'animation","2021-11-15","2021-11-15","2021-11-15",0,"Ok","relamping de l'ensemble des circulations et de la salle d'animation OK",6.25E-2]
[473,"xx","LV 2","Maintenance Corrective (En Panne)","Tringle rideaux de  patrice Darackhan ","yyy",2,"Recoller la tringle des rideaux de la chambre de patrice merci :)","2021-11-15","2021-11-25","2021-11-25",0,"Ok","remise en conformité de la tringle à rideau OK",1.0416666666666666E-2]
[474,"xx","LV 4","Maintenance Corrective (En Panne)","lit médicalisé/CH PORRO","yyy",1,"Le lit de Nathalie Porro fonctionne pour monter et descendre la tête de lit mais ne fonctionne pas pour monter tout le lit","2021-11-18","2021-11-18","2021-11-18",0,"Ok","réparation cable telecommande OK",2.0833333333333332E-2]
[475,"xx","Directeur","Commande Internet","Vitae /LV1 ,2 3 4","yyy",1,"recupérer gant de toilette urgenment pour LV1,2,3,4","2021-11-23","2021-11-23","2021-11-23",0,"Ok","récupération des gants de toilette à Vitae OK + récupération batterie auto laveuse raynal et batterie ",4.1666666666666664E-2]
[476,"xx","LV 2","Maintenance Corrective (En Panne)","Pommeau de douche grande salle de bain","yyy",2,"Peut tu remplacer le pommeau de douche de la grande salle de bain fuit merci","2021-11-24","2021-11-25","2021-11-25",0,"Ok","Réparation pommeau de douche OK",6.9444444444444441E-3]
[477,"xx","LV 2","Maintenance Preventive (Avant panne)","Fauteuil Mélanie/LV2","yyy",2,"Pneus du fauteuil de mélanie tres dégonflés","2021-11-25","2021-11-25","2021-11-25",0,"Ok","remise en conformité de la pression des 2 pneus du fauteuil",6.9444444444444441E-3]
[478,"xx","Entretien","Véhicules","remplacements pneus /Scrispeyre","yyy",2,"Remplacement des pneus été sur l'ensemble des véhicules avec des pneus 4 saisons","2021-11-26","2021-11-26","2021-11-26",0,"Ok","remplacement des pneus sur l'ensemble des véhicules OK",8.3333333333333329E-2]
[479,"xx","LV 4","Manutention matériel","balancelle +store / LV4","yyy",1,"Régis, peut tu rentrer la balancelle et le store de dehors du lv4. MERCI","2021-11-28","2021-12-07","2021-12-07",0,"Ok","Rangement de la balancelle et du store OK",2.0833333333333332E-2]
[480,"xx","Accompagnant de nuit","Maintenance Preventive (Avant panne)","Porte Entree/LV4","yyy",1,"porte d entrée lieu de vie 4 craque lorsqu'on la ferme","2021-11-29","2021-11-29","2021-11-29",0,"Ok","réparation de la porte OK",2.0833333333333332E-2]
[481,"xx","Entretien","Véhicules","Traffic 9 places/ Parking Mas","yyy",2,"remplacer la plaque avant défectueuse du traffic 9 places","2021-11-29","2021-11-29","2021-11-29",0,"Ok","remplacement plaque immatriculation du traffic 9 places OK",1.0416666666666666E-2]
[482,"xx","LV 2","Maintenance Corrective (En Panne)","Chariot medicament/LV2","yyy",1,"Le chariot de médicament ne s'ouvre plus","2021-11-29","2021-11-29","2021-11-29",0,"Ok","remplacement des piles OK",6.9444444444444441E-3]
[483,"xx","LV 1","Maintenance Corrective (En Panne)","Commode / CH Sylvie TORES","yyy",2,"tiroir de la commode casse dans la chambre d sylvie Tores .Merci","2021-11-29","2021-11-29","2021-11-29",0,"Ok","réparation des tiroirs de la commode OK",2.0833333333333332E-2]
[484,"xx","LV 4","Maintenance Corrective (En Panne)","porte de la reserve /LV4","yyy",1,"le boitier de la porte  du local reserve ne fonctionne plus avec notre pass il clignote  rouge.","2021-12-05","2021-12-06","2021-12-06",0,"Ok","remise en conformité de la poigné, changement des piles et reprogrammation OK",2.0833333333333332E-2]
[485,"xx","Accompagnant de nuit","Maintenance Preventive (Avant panne)","Bariiere de lit / Patrice LV2","yyy",2,"vérifier le montage de la barriere du lit de Patrice","2021-12-07","2021-12-07","2021-12-07",0,"Ok","Vérification et remise en conformité de la barriere de Patrice OK",2.0833333333333332E-2]
[486,"xx","Infirmerie","Laboratoire","Analyse de Sang / Labo BQV","yyy",2,"Amener le prélevement au labo de BQV","2021-12-07","2021-12-07","2021-12-07",0,"Ok","Transport du prélèvement OK",6.9444444444444441E-3]
[487,"xx","Directeur","Pharmacie","Récupérer Vaccin/Pharmacie JAUDON","yyy",2,"Récuperer les vaccins COVID à la Pharmacie JAUDON","2021-12-07","2021-12-07","2021-12-07",0,"Ok","Récupération des vaccins OK",1.0416666666666666E-2]
[488,"xx","Cuisine","Maintenance Preventive (Avant panne)","Balance + robot Blixer / Cuisine","yyy",2,"Balance HS + cable robot Blixer 6 VV endommagé","2021-12-07","2021-12-07","2021-12-07",0,"Ok","Réparation de la balance OK + remise en conformité du cable du blixer OK",4.1666666666666664E-2]
[489,"xx","LV 1","Maintenance Corrective (En Panne)","Poignée chaise douche / LV1","yyy",2,"recoller embout de chaise douche endommagé","2021-12-13","2021-12-13","2021-12-13",0,"Ok","embout poignée de chaise douche recollé",2.0833333333333332E-2]
[490,"xx","Secrétariat","Informatique","Cegi/Secrétariat","yyy",2,"Déconnection intempestive de CEGI. Ce jour 2 fois","2021-12-14","2021-12-16","2021-12-16",0,"Ok","redémarage des Box OK",6.9444444444444441E-3]
[491,"xx","LV 4","Maintenance Corrective (En Panne)","Cuisine/ Lv4","yyy",2,"remplacement du distributeur en cuisine . distributeur neuf au bureau du LV","2021-12-14","2021-12-15","2021-12-15",0,"Ok","remplacement du distributeur OK",1.0416666666666666E-2]
[492,"xx","LV 3","Maintenance Corrective (En Panne)","pommeau de douche SDB coté fille /LV3","yyy",1,"Le pommeau de la salle de bain coté fille c'est decroché . ","2021-12-15","2021-12-16","2021-12-16",0,"Ok","remplacement du tuyau OK",1.0416666666666666E-2]
[493,"xx","LV 4",null,"Trou dans le mur au niveau de l'entrée du lv ","yyy",2,"Reboucher le trou que Maxime a fait.","2021-12-15",null,null,null,"A planifier",""]
[494,"xx","Accompagnant de nuit","Maintenance Corrective (En Panne)","LV3 porte wcpersonnel","yyy",2,"ouverture de la porte des toilettes personnel ne fonctionne pas avec le badge affiche rouge","2021-12-17","2021-01-04","2021-01-04",0,"Ok","Création d'un badge de secours pour réactiver la porte",1.3888888888888888E-2]
[495,"xx","LV 4","Maintenance Corrective (En Panne)","Cale pied fauteuil Valerie / LV4","yyy",1,"Le cale pied du Fauteuil de valerie est cassé","2021-12-16","2021-12-16","2021-12-16",0,"Ok","remise en conformité du cale pied + vérification générale OK",1.3888888888888888E-2]
[496,"xx","Comptable","Maintenance Corrective (En Panne)","Toilette personnel/Entree Mas","yyy",3,"La chasse d'eau ne fonctionne pas correctement","2021-12-17","2021-12-17","2021-12-17",0,"Ok","remplacement de l'ensemble du mecanisme de chasse",2.0833333333333332E-2]
[497,"xx","LV 2","Travaux Neuf","Chambre d'Alain Cazotte","yyy",2,"- Accrocher cadre photo au mur et suspendre mobile au plafond.","2021-12-17",null,null,null,"A planifier",""]
[498,"xx","LV 4","Maintenance Corrective (En Panne)","fauteuil de Valérie/LV4","yyy",1,"Le cale pied gauche de Valérie s'est demonté en le baissant, il n'est plus possible de le mettre corretement, les petit morceaux sont dans un gant sur le bureau du lv4. 5voir Ophélie elle est au courant). MERCI URGENT","2022-01-03","2022-01-04","2022-01-04",0,"Ok","réparation du cale Pied gauche du fauteuil de Valérie OK",2.0833333333333332E-2]
[499,"xx","Ménage","Maintenance Preventive (Avant panne)","Petite Autolaveuse Bleu/Bureau entretien","yyy",3,"Batterie HS","2022-01-04","2022-01-04","2022-01-04",0,"Ok","Remplacement de la batterie plus révision générale de la machine OK",6.25E-2]
[500,"xx","Entretien","Commande Internet","LV1","yyy",1,"DECT HS","2022-01-04","2022-01-04","2022-01-04",0,"Ok","Intervention sur DECT du lieu de vie 1 platine électronique endommagée par nettoyage de désinfection",4.1666666666666664E-2]
[501,"xx","Ergothérapeute","Maintenance Corrective (En Panne)","Freins / Lit Myriam FRAISSE","yyy",1,"Verifier les freins du lit de Myriam","2022-01-07","2022-01-07","2022-01-07",0,"Ok","Vérification et resserrage des roues + essais des freins OK",2.0833333333333332E-2]
[502,"xx","Infirmerie","Laboratoire","transport Test PCR/Labo BQV","yyy",1,"amener les tests PCR au labo de BQV","2022-01-07","2022-01-07","2022-01-07",0,"Ok","transport des test PCR au Labo OK",6.9444444444444441E-3]
[503,"xx","LV 4","Travaux Neuf","Mettre étagère cuisine / Placard LV4","yyy",2,"Mettre une étagère dans le placard de la Cuisine pour isoler le micro onde","2022-01-07","2022-01-07","2022-01-07",0,"Ok","Mise en place de l'étagère OK",2.0833333333333332E-2]
[504,"xx","Cuisine","Maintenance Corrective (En Panne)","Compensation / Cuisine","yyy",1,"La compensation d'air ne fonctionne plus","2022-01-07","2022-01-07","2022-01-07",0,"Ok","Compensation en alarme GEl remise en conformité et réglage des parametres OK",2.0833333333333332E-2]
[505,"xx","LV 1","Maintenance Corrective (En Panne)","AMPOULE/ vestiaire LV1","yyy",1,"COUCOU ! L'ampoule du vestiaire du lv1 ne marche plus ! snif! MERCI","2022-01-09","2022-01-17","2022-01-17",0,"Ok","remplacement ampoule OK",1.3888888888888888E-2]
[506,"xx","LV 2","Maintenance Preventive (Avant panne)","lave vaisselle/Cuisine LV2","yyy",1,"Fuite au sol","2022-01-16","2022-01-17","2022-01-17",0,"Ok","remise en conformité de la porte du lave vaisselle",2.0833333333333332E-2]
[507,"xx","LV 2","Maintenance Corrective (En Panne)","penderie chambre michel chamyck/LV2","yyy",2,"plus de serrure mais penderie fermée!!","2022-01-16","2022-01-17","2022-01-17",0,{"$f":"IF(H510=\"\",\"\",IF(J510=\"Annulée\",\"Annulée\",IF(K510<>\"\",\"Ok\",IF(J510<>\"\",IF(J510<TODAY(),\"Retard\",\"En cours\"),IF(I510<>\"\",\"A planifier\",\"A Lancer\")))))","v":"Ok"},"remise en conformité de la serrure OK",1.3888888888888888E-2]
[508,"xx","LV 2","Maintenance Corrective (En Panne)","porte qui donne sur l'extérieur/LV2","yyy",2,"\"partie orange\" qui s'arrache.","2022-01-16","2022-01-17","2022-01-17",0,"Ok","remise en conformité et réglage de la barre anti-panique du LV2 ",4.1666666666666664E-2]
[509,"xx","LV 3","Maintenance Corrective (En Panne)","lv3","yyy",1,"Pass salle de bains petit coté ne fonctionne plus s'allume en rouge on ne peut plus ouvrir la salle de bains .chaises a enlevé dans le local ainsi que divers robots qui ne fonctionnent plus . plus un fauteuil dans la reserve .Manque des Vis sous les chaises violettes ce qui abime le sol .","2022-01-17","2022-01-17","2022-01-17",0,"Ok","remplacement des piles OK",1.3888888888888888E-2]
[510,"xx","LV 3","Maintenance Corrective (En Panne)","Evier Cuisine / LV3","yyy",1,"fuite sous l'evier de la cuisine","2022-01-16","2022-01-17","2022-01-17",0,"Ok","remise en conformité des raccords OK",1.3888888888888888E-2]
[511,"xx","LV 1","Informatique","PC / LV1","yyy",3,"Absence serveur Commun","2022-01-17","2022-01-17","2022-01-17",0,"Ok","mise en place du serveur sur bureau OK",6.9444444444444441E-3]
[512,"xx","LV 1","Maintenance Corrective (En Panne)","Fauteuil Stephane/LV1","yyy",1,"Appui tête fauteuil de Stephane ne tient plus","2022-01-14","2022-01-14","2022-01-14",0,"Ok","remise en conformité du pion de maintient de l'appui tête OK",4.1666666666666664E-2]
[513,"xx","LV 3","Maintenance Corrective (En Panne)","Cuisine / LV3","yyy",3,"Ampoule plan de travail HS","2022-01-21","2022-01-21","2022-01-21",0,"Ok","remplacement des 3 Ampoules du plan de travail OK",1.0416666666666666E-2]
[514,"xx","LV 3","Maintenance Corrective (En Panne)","Chaise /cuisine LV 3 ","yyy",1,"Les patins teflon ne sont plus fixés sur 2 chaise de la cuisine","2022-01-21","2022-01-21","2022-01-21",0,"Ok","remise en conformité des patins teflons sur l'ensemble des chaises du LV 3",1.3888888888888888E-2]
[515,"xx","Entretien","Travaux Neuf","Fibre / Baie Informatique","yyy",2,"Mise en place d'une gaine vers la baie informatique pour le passage de la fibre","2022-01-21","2022-01-21","2022-01-21",0,"Ok","Mise en place de la gaine pour la fibre OK attente Orange pour raccordement",4.1666666666666664E-2]
[516,"xx","LV 2","Maintenance Corrective (En Panne)","Eclairage / cuisine","yyy",2,"plus d'eclairage sur le plan de travail de la cuisine","2022-01-21","2022-01-21","2022-01-21",0,"Ok","remise en conformité des ampoules OK",1.0416666666666666E-2]
[517,"xx","Cuisine","Maintenance Corrective (En Panne)","Cellule refroidissement / cuisine","yyy",3,"probleme ouverture porte cellule de refroidissement s'ouvre du mauvais côté","2022-01-24","2022-01-24","2022-01-24",0,"Ok","inversement de la porte de la cellule de refroidissement OK",8.3333333333333329E-2]
[518,"xx","LV 1","Maintenance Corrective (En Panne)","DECT Veilleur 58 / LV1","yyy",1,"DECT Veilleur N°58 endommagé touches illisibles","2022-01-24","2022-01-24","2022-01-24",0,"Ok","remplacement et paramétrage DECT N°58 OK ",2.0833333333333332E-2]
[519,"xx","LV 4","Maintenance Corrective (En Panne)","Porte salle de bain coté garcon ","yyy",1,"Porte SDB des garcon s'ouvre sans le badge .","2022-01-25",null,null,null,"A planifier",""]
[520,"xx","LV 1","Maintenance Corrective (En Panne)","SDB côté gauche /LV1","yyy",2,"placard de la salle de bain côté évelyne la porte ne tiens pas","2022-02-03","2022-02-03","2022-02-03",0,"Ok","retrait de la porte OK",1.3888888888888888E-2]
[521,"xx","LV 3","Maintenance Preventive (Avant panne)","Tables / Cuisine LV3","yyy",1,"Les tables de la cuisine sont branlantes ","2022-01-28","2022-01-28","2022-01-28",0,"Ok","remise en conformité de l'ensemble des tables OK ",2.0833333333333332E-2]
[522,"xx","LV 4","Maintenance Corrective (En Panne)","WC coté garçon","yyy",2,"La lumiére des wc des garçons ne fonctionne plus peut tu le réparé s'il te plait , merci bien :)","2022-02-03","2022-02-03","2022-02-03",0,"Ok","remise en conformité de l'eclairage du WC OK",1.0416666666666666E-2]
[523,"xx","LV 1","Maintenance Corrective (En Panne)","Eclairage SDB droite /LV1","yyy",2,"l'eclairage de la salle de bain de droite ne fonctionne plus","2022-02-03","2022-02-03","2022-02-03",0,"Ok","remise en conformité de la salle de bain OK",1.0416666666666666E-2]
[524,"xx","Entretien","Travaux Neuf","Baie Informatique / Piscine","yyy",3,"récupération de la petite baie informatique et mise en place à la piscine à la place du meuble en bois","2022-02-03","2022-02-03","2022-02-03",0,"Ok","recup et mise en place de la baie et de ses equipement à la piscine OK",8.3333333333333329E-2]
[null,null,null,null,null,null,null,null,null,null,null,null,""]
[null,null,null,null,null,null,null,null,null,null,null,null,""]
[null,null,null,null,null,null,null,null,null,null,null,null,""]
[null,null,null,null,null,null,null,null,null,null,null,null,""]
[null,null,null,null,null,null,null,null,null,null,null,null,""]
[null,null,null,null,null,null,null,null,null,null,null,null,""]
[null,null,null,null,null,null,null,null,null,null,null,null,""]
[null,null,null,null,null,null,null,null,null,null,null,null,""]
[null,null,null,null,null,null,null,null,null,null,null,null,""]
[null,null,null,null,null,null,null,null,null,null,null,null,""]
[null,null,null,null,null,null,null,null,null,null,null,null,""]
[null,null,null,null,null,null,null,null,null,null,null,null,""]
[null,null,null,null,null,null,null,null,null,null,null,null,""]
[null,null,null,null,null,null,null,null,null,null,null,null,""]
[null,null,null,null,null,null,null,null,null,null,null,null,""]
[null,null,null,null,null,null,null,null,null,null,null,null,""]
[null,null,null,null,null,null,null,null,null,null,null,null,""]
[null,null,null,null,null,null,null,null,null,null,null,null,""]
[null,null,null,null,null,null,null,null,null,null,null,null,""]
[null,null,null,null,null,null,null,null,null,null,null,null,""]
[null,null,null,null,null,null,null,null,null,null,null,null,""]
[null,null,null,null,null,null,null,null,null,null,null,null,""]
[null,null,null,null,null,null,null,null,null,null,null,null,""]
[null,null,null,null,null,null,null,null,null,null,null,null,""]
[null,null,null,null,null,null,null,null,null,null,null,null,""]
[null,null,null,null,null,null,null,null,null,null,null,null,""]
[null,null,null,null,null,null,null,null,null,null,null,null,""]
[null,null,null,null,null,null,null,null,null,null,null,null,""]
[null,null,null,null,null,null,null,null,null,null,null,null,""]
[null,null,null,null,null,null,null,null,null,null,null,null,""]
[null,null,null,null,null,null,null,null,null,null,null,null,""]
[null,null,null,null,null,null,null,null,null,null,null,null,""]
[null,null,null,null,null,null,null,null,null,null,null,null,""]
[null,null,null,null,null,null,null,null,null,null,null,null,""]
[null,null,null,null,null,null,null,null,null,null,null,null,""]
[null,null,null,null,null,null,null,null,null,null,null,null,""]
[null,null,null,null,null,null,null,null,null,null,null,null,""]
[null,null,null,null,null,null,null,null,null,null,null,null,""]
[null,null,null,null,null,null,null,null,null,null,null,null,""]
[null,null,null,null,null,null,null,null,null,null,null,null,""]
[null,null,null,null,null,null,null,null,null,null,null,null,""]
[null,null,null,null,null,null,null,null,null,null,null,null,""]
[null,null,null,null,null,null,null,null,null,null,null,null,""]
[null,null,null,null,null,null,null,null,null,null,null,null,""]
[null,null,null,null,null,null,null,null,null,null,null,null,""]
[null,null,null,null,null,null,null,null,null,null,null,null,{"$f":"IF(H573=\"\",\"\",IF(J573=\"Annulée\",\"Annulée\",IF(K573<>\"\",\"Ok\",IF(J573<>\"\",IF(J573<TODAY(),\"Retard\",\"En cours\"),IF(I573<>\"\",\"A planifier\",\"A Lancer\")))))","v":""}]
[null,null,null,null,null,null,null,null,null,null,null,null,""]
[null,null,null,null,null,null,null,null,null,null,null,null,""]
[null,null,null,null,null,null,null,null,null,null,null,null,""]
[null,null,null,null,null,null,null,null,null,null,null,null,""]
[null,null,null,null,null,null,null,null,null,null,null,null,""]
[null,null,null,null,null,null,null,null,null,null,null,null,""]
[null,null,null,null,null,null,null,null,null,null,null,null,""]
[null,null,null,null,null,null,null,null,null,null,null,null,""]
[null,null,null,null,null,null,null,null,null,null,null,null,""]
[null,null,null,null,null,null,null,null,null,null,null,null,""]
[null,null,null,null,null,null,null,null,null,null,null,null,""]
[null,null,null,null,null,null,null,null,null,null,null,null,""]
[null,null,null,null,null,null,null,null,null,null,null,null,""]
[null,null,null,null,null,null,null,null,null,null,null,null,""]
[null,null,null,null,null,null,null,null,null,null,null,null,""]
[null,null,null,null,null,null,null,null,null,null,null,null,""]
[null,null,null,null,null,null,null,null,null,null,null,null,""]
[null,null,null,null,null,null,null,null,null,null,null,null,""]
[null,null,null,null,null,null,null,null,null,null,null,null,""]
[null,null,null,null,null,null,null,null,null,null,null,null,""]
[null,null,null,null,null,null,null,null,null,null,null,null,""]
[null,null,null,null,null,null,null,null,null,null,null,null,""]
[null,null,null,null,null,null,null,null,null,null,null,null,""]
[null,null,null,null,null,null,null,null,null,null,null,null,""]
[null,null,null,null,null,null,null,null,null,null,null,null,""]
[null,null,null,null,null,null,null,null,null,null,null,null,""]
[null,null,null,null,null,null,null,null,null,null,null,null,""]
[null,null,null,null,null,null,null,null,null,null,null,null,""]
[null,null,null,null,null,null,null,null,null,null,null,null,""]
[null,null,null,null,null,null,null,null,null,null,null,null,""]
[null,null,null,null,null,null,null,null,null,null,null,null,""]
[null,null,null,null,null,null,null,null,null,null,null,null,""]
[null,null,null,null,null,null,null,null,null,null,null,null,""]
[null,null,null,null,null,null,null,null,null,null,null,null,""]
[null,null,null,null,null,null,null,null,null,null,null,null,""]
[null,null,null,null,null,null,null,null,null,null,null,null,""]
[null,null,null,null,null,null,null,null,null,null,null,null,""]
[null,null,null,null,null,null,null,null,null,null,null,null,""]
[null,null,null,null,null,null,null,null,null,null,null,null,""]
[null,null,null,null,null,null,null,null,null,null,null,null,""]
[null,null,null,null,null,null,null,null,null,null,null,null,""]
[null,null,null,null,null,null,null,null,null,null,null,null,""]
[null,null,null,null,null,null,null,null,null,null,null,null,""]
[null,null,null,null,null,null,null,null,null,null,null,null,""]
[null,null,null,null,null,null,null,null,null,null,null,null,""]
[null,null,null,null,null,null,null,null,null,null,null,null,""]
[null,null,null,null,null,null,null,null,null,null,null,null,""]
[null,null,null,null,null,null,null,null,null,null,null,null,""]
[null,null,null,null,null,null,null,null,null,null,null,null,""]
[null,null,null,null,null,null,null,null,null,null,null,null,""]
[null,null,null,null,null,null,null,null,null,null,null,null,""]
[null,null,null,null,null,null,null,null,null,null,null,null,""]
[null,null,null,null,null,null,null,null,null,null,null,null,""]
[null,null,null,null,null,null,null,null,null,null,null,null,""]
[null,null,null,null,null,null,null,null,null,null,null,null,""]
[null,null,null,null,null,null,null,null,null,null,null,null,""]
[null,null,null,null,null,null,null,null,null,null,null,null,""]
[null,null,null,null,null,null,null,null,null,null,null,null,""]
[null,null,null,null,null,null,null,null,null,null,null,null,""]
[null,null,null,null,null,null,null,null,null,null,null,null,""]
[null,null,null,null,null,null,null,null,null,null,null,null,""]
[null,null,null,null,null,null,null,null,null,null,null,null,""]
[null,null,null,null,null,null,null,null,null,null,null,null,""]
[null,null,null,null,null,null,null,null,null,null,null,null,{"$f":"IF(H637=\"\",\"\",IF(J637=\"Annulée\",\"Annulée\",IF(K637<>\"\",\"Ok\",IF(J637<>\"\",IF(J637<TODAY(),\"Retard\",\"En cours\"),IF(I637<>\"\",\"A planifier\",\"A Lancer\")))))","v":""}]
[null,null,null,null,null,null,null,null,null,null,null,null,""]
[null,null,null,null,null,null,null,null,null,null,null,null,""]
[null,null,null,null,null,null,null,null,null,null,null,null,""]
[null,null,null,null,null,null,null,null,null,null,null,null,""]
[null,null,null,null,null,null,null,null,null,null,null,null,""]
[null,null,null,null,null,null,null,null,null,null,null,null,""]
[null,null,null,null,null,null,null,null,null,null,null,null,""]
[null,null,null,null,null,null,null,null,null,null,null,null,""]
[null,null,null,null,null,null,null,null,null,null,null,null,""]
[null,null,null,null,null,null,null,null,null,null,null,null,""]
[null,null,null,null,null,null,null,null,null,null,null,null,""]
[null,null,null,null,null,null,null,null,null,null,null,null,""]
[null,null,null,null,null,null,null,null,null,null,null,null,""]
[null,null,null,null,null,null,null,null,null,null,null,null,""]
[null,null,null,null,null,null,null,null,null,null,null,null,""]
[null,null,null,null,null,null,null,null,null,null,null,null,""]
[null,null,null,null,null,null,null,null,null,null,null,null,""]
[null,null,null,null,null,null,null,null,null,null,null,null,""]
[null,null,null,null,null,null,null,null,null,null,null,null,""]
[null,null,null,null,null,null,null,null,null,null,null,null,""]
[null,null,null,null,null,null,null,null,null,null,null,null,""]
[null,null,null,null,null,null,null,null,null,null,null,null,""]
[null,null,null,null,null,null,null,null,null,null,null,null,""]
[null,null,null,null,null,null,null,null,null,null,null,null,""]
[null,null,null,null,null,null,null,null,null,null,null,null,""]
[null,null,null,null,null,null,null,null,null,null,null,null,""]
[null,null,null,null,null,null,null,null,null,null,null,null,""]
[null,null,null,null,null,null,null,null,null,null,null,null,""]
[null,null,null,null,null,null,null,null,null,null,null,null,""]
[null,null,null,null,null,null,null,null,null,null,null,null,""]
[null,null,null,null,null,null,null,null,null,null,null,null,""]
[null,null,null,null,null,null,null,null,null,null,null,null,""]
[null,null,null,null,null,null,null,null,null,null,null,null,""]
[null,null,null,null,null,null,null,null,null,null,null,null,""]
[null,null,null,null,null,null,null,null,null,null,null,null,""]
[null,null,null,null,null,null,null,null,null,null,null,null,""]
[null,null,null,null,null,null,null,null,null,null,null,null,""]
[null,null,null,null,null,null,null,null,null,null,null,null,""]
[null,null,null,null,null,null,null,null,null,null,null,null,""]
[null,null,null,null,null,null,null,null,null,null,null,null,""]
[null,null,null,null,null,null,null,null,null,null,null,null,""]
[null,null,null,null,null,null,null,null,null,null,null,null,""]
[null,null,null,null,null,null,null,null,null,null,null,null,""]
[null,null,null,null,null,null,null,null,null,null,null,null,""]
[null,null,null,null,null,null,null,null,null,null,null,null,""]
[null,null,null,null,null,null,null,null,null,null,null,null,""]
[null,null,null,null,null,null,null,null,null,null,null,null,""]
[null,null,null,null,null,null,null,null,null,null,null,null,""]
[null,null,null,null,null,null,null,null,null,null,null,null,""]
[null,null,null,null,null,null,null,null,null,null,null,null,""]
[null,null,null,null,null,null,null,null,null,null,null,null,""]
[null,null,null,null,null,null,null,null,null,null,null,null,""]
[null,null,null,null,null,null,null,null,null,null,null,null,""]
[null,null,null,null,null,null,null,null,null,null,null,null,""]
[null,null,null,null,null,null,null,null,null,null,null,null,""]
[null,null,null,null,null,null,null,null,null,null,null,null,""]
[null,null,null,null,null,null,null,null,null,null,null,null,""]
[null,null,null,null,null,null,null,null,null,null,null,null,""]
[null,null,null,null,null,null,null,null,null,null,null,null,""]
[null,null,null,null,null,null,null,null,null,null,null,null,""]
[null,null,null,null,null,null,null,null,null,null,null,null,""]
[null,null,null,null,null,null,null,null,null,null,null,null,""]
[null,null,null,null,null,null,null,null,null,null,null,null,""]
[null,null,null,null,null,null,null,null,null,null,null,null,{"$f":"IF(H701=\"\",\"\",IF(J701=\"Annulée\",\"Annulée\",IF(K701<>\"\",\"Ok\",IF(J701<>\"\",IF(J701<TODAY(),\"Retard\",\"En cours\"),IF(I701<>\"\",\"A planifier\",\"A Lancer\")))))","v":""}]
[null,null,null,null,null,null,null,null,null,null,null,null,""]
[null,null,null,null,null,null,null,null,null,null,null,null,""]
[null,null,null,null,null,null,null,null,null,null,null,null,""]
[null,null,null,null,null,null,null,null,null,null,null,null,""]
[null,null,null,null,null,null,null,null,null,null,null,null,""]
[null,null,null,null,null,null,null,null,null,null,null,null,""]
[null,null,null,null,null,null,null,null,null,null,null,null,""]
[null,null,null,null,null,null,null,null,null,null,null,null,""]
[null,null,null,null,null,null,null,null,null,null,null,null,""]
[null,null,null,null,null,null,null,null,null,null,null,null,""]
[null,null,null,null,null,null,null,null,null,null,null,null,""]
[null,null,null,null,null,null,null,null,null,null,null,null,""]
[null,null,null,null,null,null,null,null,null,null,null,null,""]
[null,null,null,null,null,null,null,null,null,null,null,null,""]
[null,null,null,null,null,null,null,null,null,null,null,null,""]
[null,null,null,null,null,null,null,null,null,null,null,null,""]
[null,null,null,null,null,null,null,null,null,null,null,null,""]
[null,null,null,null,null,null,null,null,null,null,null,null,""]
[null,null,null,null,null,null,null,null,null,null,null,null,""]
[null,null,null,null,null,null,null,null,null,null,null,null,""]
[null,null,null,null,null,null,null,null,null,null,null,null,""]
[null,null,null,null,null,null,null,null,null,null,null,null,""]
[null,null,null,null,null,null,null,null,null,null,null,null,""]
[null,null,null,null,null,null,null,null,null,null,null,null,""]
[null,null,null,null,null,null,null,null,null,null,null,null,""]
[null,null,null,null,null,null,null,null,null,null,null,null,""]
[null,null,null,null,null,null,null,null,null,null,null,null,""]
[null,null,null,null,null,null,null,null,null,null,null,null,""]
[null,null,null,null,null,null,null,null,null,null,null,null,""]
[null,null,null,null,null,null,null,null,null,null,null,null,""]
[null,null,null,null,null,null,null,null,null,null,null,null,""]
[null,null,null,null,null,null,null,null,null,null,null,null,""]
[null,null,null,null,null,null,null,null,null,null,null,null,""]
[null,null,null,null,null,null,null,null,null,null,null,null,""]
[null,null,null,null,null,null,null,null,null,null,null,null,""]
[null,null,null,null,null,null,null,null,null,null,null,null,""]
[null,null,null,null,null,null,null,null,null,null,null,null,""]
[null,null,null,null,null,null,null,null,null,null,null,null,""]
[null,null,null,null,null,null,null,null,null,null,null,null,""]
[null,null,null,null,null,null,null,null,null,null,null,null,""]
[null,null,null,null,null,null,null,null,null,null,null,null,""]
[null,null,null,null,null,null,null,null,null,null,null,null,""]
[null,null,null,null,null,null,null,null,null,null,null,null,""]
[null,null,null,null,null,null,null,null,null,null,null,null,""]
[null,null,null,null,null,null,null,null,null,null,null,null,""]
[null,null,null,null,null,null,null,null,null,null,null,null,""]
[null,null,null,null,null,null,null,null,null,null,null,null,""]
[null,null,null,null,null,null,null,null,null,null,null,null,""]
[null,null,null,null,null,null,null,null,null,null,null,null,""]
[null,null,null,null,null,null,null,null,null,null,null,null,""]
[null,null,null,null,null,null,null,null,null,null,null,null,""]
[null,null,null,null,null,null,null,null,null,null,null,null,""]
[null,null,null,null,null,null,null,null,null,null,null,null,""]
[null,null,null,null,null,null,null,null,null,null,null,null,""]
[null,null,null,null,null,null,null,null,null,null,null,null,""]
[null,null,null,null,null,null,null,null,null,null,null,null,""]
[null,null,null,null,null,null,null,null,null,null,null,null,""]
[null,null,null,null,null,null,null,null,null,null,null,null,""]
[null,null,null,null,null,null,null,null,null,null,null,null,""]
[null,null,null,null,null,null,null,null,null,null,null,null,""]
[null,null,null,null,null,null,null,null,null,null,null,null,""]
[null,null,null,null,null,null,null,null,null,null,null,null,""]
[null,null,null,null,null,null,null,null,null,null,null,null,""]
[null,null,null,null,null,null,null,null,null,null,null,null,{"$f":"IF(H765=\"\",\"\",IF(J765=\"Annulée\",\"Annulée\",IF(K765<>\"\",\"Ok\",IF(J765<>\"\",IF(J765<TODAY(),\"Retard\",\"En cours\"),IF(I765<>\"\",\"A planifier\",\"A Lancer\")))))","v":""}]
[null,null,null,null,null,null,null,null,null,null,null,null,""]
[null,null,null,null,null,null,null,null,null,null,null,null,""]
[null,null,null,null,null,null,null,null,null,null,null,null,""]
[null,null,null,null,null,null,null,null,null,null,null,null,""]
[null,null,null,null,null,null,null,null,null,null,null,null,""]
[null,null,null,null,null,null,null,null,null,null,null,null,""]
[null,null,null,null,null,null,null,null,null,null,null,null,""]
[null,null,null,null,null,null,null,null,null,null,null,null,""]
[null,null,null,null,null,null,null,null,null,null,null,null,""]
[null,null,null,null,null,null,null,null,null,null,null,null,""]
[null,null,null,null,null,null,null,null,null,null,null,null,""]
[null,null,null,null,null,null,null,null,null,null,null,null,""]
[null,null,null,null,null,null,null,null,null,null,null,null,""]
[null,null,null,null,null,null,null,null,null,null,null,null,""]
[null,null,null,null,null,null,null,null,null,null,null,null,""]
[null,null,null,null,null,null,null,null,null,null,null,null,""]
[null,null,null,null,null,null,null,null,null,null,null,null,""]
[null,null,null,null,null,null,null,null,null,null,null,null,""]
[null,null,null,null,null,null,null,null,null,null,null,null,""]
[null,null,null,null,null,null,null,null,null,null,null,null,""]
[null,null,null,null,null,null,null,null,null,null,null,null,""]
[null,null,null,null,null,null,null,null,null,null,null,null,""]
[null,null,null,null,null,null,null,null,null,null,null,null,""]
[null,null,null,null,null,null,null,null,null,null,null,null,""]
[null,null,null,null,null,null,null,null,null,null,null,null,""]
[null,null,null,null,null,null,null,null,null,null,null,null,""]
[null,null,null,null,null,null,null,null,null,null,null,null,""]
[null,null,null,null,null,null,null,null,null,null,null,null,""]
[null,null,null,null,null,null,null,null,null,null,null,null,""]
[null,null,null,null,null,null,null,null,null,null,null,null,""]
[null,null,null,null,null,null,null,null,null,null,null,null,""]
[null,null,null,null,null,null,null,null,null,null,null,null,""]
[null,null,null,null,null,null,null,null,null,null,null,null,""]
[null,null,null,null,null,null,null,null,null,null,null,null,""]
[null,null,null,null,null,null,null,null,null,null,null,null,""]
[null,null,null,null,null,null,null,null,null,null,null,null,""]
[null,null,null,null,null,null,null,null,null,null,null,null,""]
[null,null,null,null,null,null,null,null,null,null,null,null,""]
[null,null,null,null,null,null,null,null,null,null,null,null,""]
[null,null,null,null,null,null,null,null,null,null,null,null,""]
[null,null,null,null,null,null,null,null,null,null,null,null,""]
[null,null,null,null,null,null,null,null,null,null,null,null,""]
[null,null,null,null,null,null,null,null,null,null,null,null,""]
[null,null,null,null,null,null,null,null,null,null,null,null,""]
[null,null,null,null,null,null,null,null,null,null,null,null,""]
[null,null,null,null,null,null,null,null,null,null,null,null,""]
[null,null,null,null,null,null,null,null,null,null,null,null,""]
[null,null,null,null,null,null,null,null,null,null,null,null,""]
[null,null,null,null,null,null,null,null,null,null,null,null,""]
[null,null,null,null,null,null,null,null,null,null,null,null,""]
[null,null,null,null,null,null,null,null,null,null,null,null,""]
[null,null,null,null,null,null,null,null,null,null,null,null,""]
[null,null,null,null,null,null,null,null,null,null,null,null,""]
[null,null,null,null,null,null,null,null,null,null,null,null,""]
[null,null,null,null,null,null,null,null,null,null,null,null,""]
[null,null,null,null,null,null,null,null,null,null,null,null,""]
[null,null,null,null,null,null,null,null,null,null,null,null,""]
[null,null,null,null,null,null,null,null,null,null,null,null,""]
[null,null,null,null,null,null,null,null,null,null,null,null,""]
[null,null,null,null,null,null,null,null,null,null,null,null,""]
[null,null,null,null,null,null,null,null,null,null,null,null,""]
[null,null,null,null,null,null,null,null,null,null,null,null,""]
[null,null,null,null,null,null,null,null,null,null,null,null,""]
[null,null,null,null,null,null,null,null,null,null,null,null,{"$f":"IF(H829=\"\",\"\",IF(J829=\"Annulée\",\"Annulée\",IF(K829<>\"\",\"Ok\",IF(J829<>\"\",IF(J829<TODAY(),\"Retard\",\"En cours\"),IF(I829<>\"\",\"A planifier\",\"A Lancer\")))))","v":""}]
[null,null,null,null,null,null,null,null,null,null,null,null,""]
[null,null,null,null,null,null,null,null,null,null,null,null,""]
[null,null,null,null,null,null,null,null,null,null,null,null,""]
[null,null,null,null,null,null,null,null,null,null,null,null,""]
[null,null,null,null,null,null,null,null,null,null,null,null,""]
[null,null,null,null,null,null,null,null,null,null,null,null,""]
[null,null,null,null,null,null,null,null,null,null,null,null,""]
[null,null,null,null,null,null,null,null,null,null,null,null,""]
[null,null,null,null,null,null,null,null,null,null,null,null,""]
[null,null,null,null,null,null,null,null,null,null,null,null,""]
[null,null,null,null,null,null,null,null,null,null,null,null,""]
[null,null,null,null,null,null,null,null,null,null,null,null,""]
[null,null,null,null,null,null,null,null,null,null,null,null,""]
[null,null,null,null,null,null,null,null,null,null,null,null,""]
[null,null,null,null,null,null,null,null,null,null,null,null,""]
[null,null,null,null,null,null,null,null,null,null,null,null,""]
[null,null,null,null,null,null,null,null,null,null,null,null,""]
[null,null,null,null,null,null,null,null,null,null,null,null,""]
[null,null,null,null,null,null,null,null,null,null,null,null,""]
[null,null,null,null,null,null,null,null,null,null,null,null,""]
[null,null,null,null,null,null,null,null,null,null,null,null,""]
[null,null,null,null,null,null,null,null,null,null,null,null,""]
[null,null,null,null,null,null,null,null,null,null,null,null,""]
[null,null,null,null,null,null,null,null,null,null,null,null,""]
[null,null,null,null,null,null,null,null,null,null,null,null,""]
[null,null,null,null,null,null,null,null,null,null,null,null,""]
[null,null,null,null,null,null,null,null,null,null,null,null,""]
[null,null,null,null,null,null,null,null,null,null,null,null,""]
[null,null,null,null,null,null,null,null,null,null,null,null,""]
[null,null,null,null,null,null,null,null,null,null,null,null,""]
[null,null,null,null,null,null,null,null,null,null,null,null,""]
[null,null,null,null,null,null,null,null,null,null,null,null,""]
[null,null,null,null,null,null,null,null,null,null,null,null,""]
[null,null,null,null,null,null,null,null,null,null,null,null,""]
[null,null,null,null,null,null,null,null,null,null,null,null,""]
[null,null,null,null,null,null,null,null,null,null,null,null,""]
[null,null,null,null,null,null,null,null,null,null,null,null,""]
[null,null,null,null,null,null,null,null,null,null,null,null,""]
[null,null,null,null,null,null,null,null,null,null,null,null,""]
[null,null,null,null,null,null,null,null,null,null,null,null,""]
[null,null,null,null,null,null,null,null,null,null,null,null,""]
[null,null,null,null,null,null,null,null,null,null,null,null,""]
[null,null,null,null,null,null,null,null,null,null,null,null,""]
[null,null,null,null,null,null,null,null,null,null,null,null,""]
[null,null,null,null,null,null,null,null,null,null,null,null,""]
[null,null,null,null,null,null,null,null,null,null,null,null,""]
[null,null,null,null,null,null,null,null,null,null,null,null,""]
[null,null,null,null,null,null,null,null,null,null,null,null,""]
[null,null,null,null,null,null,null,null,null,null,null,null,""]
[null,null,null,null,null,null,null,null,null,null,null,null,""]
[null,null,null,null,null,null,null,null,null,null,null,null,""]
[null,null,null,null,null,null,null,null,null,null,null,null,""]
[null,null,null,null,null,null,null,null,null,null,null,null,""]
[null,null,null,null,null,null,null,null,null,null,null,null,""]
[null,null,null,null,null,null,null,null,null,null,null,null,""]
[null,null,null,null,null,null,null,null,null,null,null,null,""]
[null,null,null,null,null,null,null,null,null,null,null,null,""]
[null,null,null,null,null,null,null,null,null,null,null,null,""]
[null,null,null,null,null,null,null,null,null,null,null,null,""]
[null,null,null,null,null,null,null,null,null,null,null,null,""]
[null,null,null,null,null,null,null,null,null,null,null,null,""]
[null,null,null,null,null,null,null,null,null,null,null,null,""]
[null,null,null,null,null,null,null,null,null,null,null,null,""]
[null,null,null,null,null,null,null,null,null,null,null,null,{"$f":"IF(H893=\"\",\"\",IF(J893=\"Annulée\",\"Annulée\",IF(K893<>\"\",\"Ok\",IF(J893<>\"\",IF(J893<TODAY(),\"Retard\",\"En cours\"),IF(I893<>\"\",\"A planifier\",\"A Lancer\")))))","v":""}]
[null,null,null,null,null,null,null,null,null,null,null,null,""]
[null,null,null,null,null,null,null,null,null,null,null,null,""]
[null,null,null,null,null,null,null,null,null,null,null,null,""]
[null,null,null,null,null,null,null,null,null,null,null,null,""]
[null,null,null,null,null,null,null,null,null,null,null,null,""]
[null,null,null,null,null,null,null,null,null,null,null,null,""]
[null,null,null,null,null,null,null,null,null,null,null,null,""]
[null,null,null,null,null,null,null,null,null,null,null,null,""]
[null,null,null,null,null,null,null,null,null,null,null,null,""]
[null,null,null,null,null,null,null,null,null,null,null,null,""]
[null,null,null,null,null,null,null,null,null,null,null,null,""]
[null,null,null,null,null,null,null,null,null,null,null,null,""]
[null,null,null,null,null,null,null,null,null,null,null,null,""]
[null,null,null,null,null,null,null,null,null,null,null,null,""]
[null,null,null,null,null,null,null,null,null,null,null,null,""]
[null,null,null,null,null,null,null,null,null,null,null,null,""]
[null,null,null,null,null,null,null,null,null,null,null,null,""]
[null,null,null,null,null,null,null,null,null,null,null,null,""]
[null,null,null,null,null,null,null,null,null,null,null,null,""]
[null,null,null,null,null,null,null,null,null,null,null,null,""]
[null,null,null,null,null,null,null,null,null,null,null,null,""]
[null,null,null,null,null,null,null,null,null,null,null,null,""]
[null,null,null,null,null,null,null,null,null,null,null,null,""]
[null,null,null,null,null,null,null,null,null,null,null,null,""]
[null,null,null,null,null,null,null,null,null,null,null,null,""]
[null,null,null,null,null,null,null,null,null,null,null,null,""]
[null,null,null,null,null,null,null,null,null,null,null,null,""]
[null,null,null,null,null,null,null,null,null,null,null,null,""]
[null,null,null,null,null,null,null,null,null,null,null,null,""]
[null,null,null,null,null,null,null,null,null,null,null,null,""]
[null,null,null,null,null,null,null,null,null,null,null,null,""]
[null,null,null,null,null,null,null,null,null,null,null,null,""]
[null,null,null,null,null,null,null,null,null,null,null,null,""]
[null,null,null,null,null,null,null,null,null,null,null,null,""]
[null,null,null,null,null,null,null,null,null,null,null,null,""]
[null,null,null,null,null,null,null,null,null,null,null,null,""]
[null,null,null,null,null,null,null,null,null,null,null,null,""]
[null,null,null,null,null,null,null,null,null,null,null,null,""]
[null,null,null,null,null,null,null,null,null,null,null,null,""]
[null,null,null,null,null,null,null,null,null,null,null,null,""]
[null,null,null,null,null,null,null,null,null,null,null,null,""]
[null,null,null,null,null,null,null,null,null,null,null,null,""]
[null,null,null,null,null,null,null,null,null,null,null,null,""]
[null,null,null,null,null,null,null,null,null,null,null,null,""]
[null,null,null,null,null,null,null,null,null,null,null,null,""]
[null,null,null,null,null,null,null,null,null,null,null,null,""]
[null,null,null,null,null,null,null,null,null,null,null,null,""]
[null,null,null,null,null,null,null,null,null,null,null,null,""]
[null,null,null,null,null,null,null,null,null,null,null,null,""]
[null,null,null,null,null,null,null,null,null,null,null,null,""]
[null,null,null,null,null,null,null,null,null,null,null,null,""]
[null,null,null,null,null,null,null,null,null,null,null,null,""]
[null,null,null,null,null,null,null,null,null,null,null,null,""]
[null,null,null,null,null,null,null,null,null,null,null,null,""]
[null,null,null,null,null,null,null,null,null,null,null,null,""]
[null,null,null,null,null,null,null,null,null,null,null,null,""]
[null,null,null,null,null,null,null,null,null,null,null,null,""]
[null,null,null,null,null,null,null,null,null,null,null,null,""]
[null,null,null,null,null,null,null,null,null,null,null,null,""]
[null,null,null,null,null,null,null,null,null,null,null,null,""]
[null,null,null,null,null,null,null,null,null,null,null,null,""]
[null,null,null,null,null,null,null,null,null,null,null,null,""]
[null,null,null,null,null,null,null,null,null,null,null,null,""]
[null,null,null,null,null,null,null,null,null,null,null,null,{"$f":"IF(H957=\"\",\"\",IF(J957=\"Annulée\",\"Annulée\",IF(K957<>\"\",\"Ok\",IF(J957<>\"\",IF(J957<TODAY(),\"Retard\",\"En cours\"),IF(I957<>\"\",\"A planifier\",\"A Lancer\")))))","v":""}]
[null,null,null,null,null,null,null,null,null,null,null,null,""]
[null,null,null,null,null,null,null,null,null,null,null,null,""]
[null,null,null,null,null,null,null,null,null,null,null,null,""]
[null,null,null,null,null,null,null,null,null,null,null,null,""]
[null,null,null,null,null,null,null,null,null,null,null,null,""]
[null,null,null,null,null,null,null,null,null,null,null,null,""]
[null,null,null,null,null,null,null,null,null,null,null,null,""]
[null,null,null,null,null,null,null,null,null,null,null,null,""]
[null,null,null,null,null,null,null,null,null,null,null,null,""]
[null,null,null,null,null,null,null,null,null,null,null,null,""]
[null,null,null,null,null,null,null,null,null,null,null,null,""]
[null,null,null,null,null,null,null,null,null,null,null,null,""]
[null,null,null,null,null,null,null,null,null,null,null,null,""]
[null,null,null,null,null,null,null,null,null,null,null,null,""]
[null,null,null,null,null,null,null,null,null,null,null,null,""]
[null,null,null,null,null,null,null,null,null,null,null,null,""]
[null,null,null,null,null,null,null,null,null,null,null,null,""]
[null,null,null,null,null,null,null,null,null,null,null,null,""]
[null,null,null,null,null,null,null,null,null,null,null,null,""]
[null,null,null,null,null,null,null,null,null,null,null,null,""]
[null,null,null,null,null,null,null,null,null,null,null,null,""]
[null,null,null,null,null,null,null,null,null,null,null,null,""]
[null,null,null,null,null,null,null,null,null,null,null,null,""]
[null,null,null,null,null,null,null,null,null,null,null,null,""]
[null,null,null,null,null,null,null,null,null,null,null,null,""]
[null,null,null,null,null,null,null,null,null,null,null,null,""]
[null,null,null,null,null,null,null,null,null,null,null,null,""]
[null,null,null,null,null,null,null,null,null,null,null,null,""]
[null,null,null,null,null,null,null,null,null,null,null,null,""]
[null,null,null,null,null,null,null,null,null,null,null,null,""]
[null,null,null,null,null,null,null,null,null,null,null,null,""]
[null,null,null,null,null,null,null,null,null,null,null,null,""]
[null,null,null,null,null,null,null,null,null,null,null,null,""]
[null,null,null,null,null,null,null,null,null,null,null,null,""]
[null,null,null,null,null,null,null,null,null,null,null,null,""]
[null,null,null,null,null,null,null,null,null,null,null,null,""]
[null,null,null,null,null,null,null,null,null,null,null,null,""]
[null,null,null,null,null,null,null,null,null,null,null,null,""]
[null,null,null,null,null,null,null,null,null,null,null,null,""]
[null,null,null,null,null,null,null,null,null,null,null,null,""]
[null,null,null,null,null,null,null,null,null,null,null,null,""]
[null,null,null,null,null,null,null,null,null,null,null,null,""]
[null,null,null,null,null,null,null,null,null,null,null,null,""]
[null,null,null,null,null,null,null,null,null,null,null,null,""]
[null,null,null,null,null,null,null,null,null,null,null,null,""]
[null,null,null,null,null,null,null,null,null,null,null,null,""]
[null,null,null,null,null,null,null,null,null,null,null,null,""]
[null,null,null,null,null,null,null,null,null,null,null,null,""]
[null,null,null,null,null,null,null,null,null,null,null,null,""]
[null,null,null,null,null,null,null,null,null,null,null,null,""]
[null,null,null,null,null,null,null,null,null,null,null,null,""]
[null,null,null,null,null,null,null,null,null,null,null,null,""]
[null,null,null,null,null,null,null,null,null,null,null,null,""]
[null,null,null,null,null,null,null,null,null,null,null,null,""]
[null,null,null,null,null,null,null,null,null,null,null,null,""]
[null,null,null,null,null,null,null,null,null,null,null,null,""]
[null,null,null,null,null,null,null,null,null,null,null,null,""]
[null,null,null,null,null,null,null,null,null,null,null,null,""]
[null,null,null,null,null,null,null,null,null,null,null,null,""]
[null,null,null,null,null,null,null,null,null,null,null,null,""]
[null,null,null,null,null,null,null,null,null,null,null,null,""]
[null,null,null,null,null,null,null,null,null,null,null,null,""]
[null,null,null,null,null,null,null,null,null,null,null,null,""]
[null,null,null,null,null,null,null,null,null,null,null,null,{"$f":"IF(H1021=\"\",\"\",IF(J1021=\"Annulée\",\"Annulée\",IF(K1021<>\"\",\"Ok\",IF(J1021<>\"\",IF(J1021<TODAY(),\"Retard\",\"En cours\"),IF(I1021<>\"\",\"A planifier\",\"A Lancer\")))))","v":""}]
[null,null,null,null,null,null,null,null,null,null,null,null,""]
[null,null,null,null,null,null,null,null,null,null,null,null,""]
[null,null,null,null,null,null,null,null,null,null,null,null,""]
[null,null,null,null,null,null,null,null,null,null,null,null,""]
[null,null,null,null,null,null,null,null,null,null,null,null,""]
[null,null,null,null,null,null,null,null,null,null,null,null,""]
[null,null,null,null,null,null,null,null,null,null,null,null,""]
[null,null,null,null,null,null,null,null,null,null,null,null,""]
[null,null,null,null,null,null,null,null,null,null,null,null,""]
[null,null,null,null,null,null,null,null,null,null,null,null,""]
[null,null,null,null,null,null,null,null,null,null,null,null,""]
[null,null,null,null,null,null,null,null,null,null,null,null,""]
[null,null,null,null,null,null,null,null,null,null,null,null,""]
[null,null,null,null,null,null,null,null,null,null,null,null,""]
[null,null,null,null,null,null,null,null,null,null,null,null,""]
[null,null,null,null,null,null,null,null,null,null,null,null,""]
[null,null,null,null,null,null,null,null,null,null,null,null,""]
[null,null,null,null,null,null,null,null,null,null,null,null,""]
[null,null,null,null,null,null,null,null,null,null,null,null,""]
[null,null,null,null,null,null,null,null,null,null,null,null,""]
[null,null,null,null,null,null,null,null,null,null,null,null,""]
[null,null,null,null,null,null,null,null,null,null,null,null,""]
[null,null,null,null,null,null,null,null,null,null,null,null,""]
[null,null,null,null,null,null,null,null,null,null,null,null,""]
[null,null,null,null,null,null,null,null,null,null,null,null,""]
[null,null,null,null,null,null,null,null,null,null,null,null,""]
[null,null,null,null,null,null,null,null,null,null,null,null,""]
[null,null,null,null,null,null,null,null,null,null,null,null,""]
[null,null,null,null,null,null,null,null,null,null,null,null,""]
[null,null,null,null,null,null,null,null,null,null,null,null,""]
[null,null,null,null,null,null,null,null,null,null,null,null,""]
[null,null,null,null,null,null,null,null,null,null,null,null,""]
[null,null,null,null,null,null,null,null,null,null,null,null,""]
[null,null,null,null,null,null,null,null,null,null,null,null,""]
[null,null,null,null,null,null,null,null,null,null,null,null,""]
[null,null,null,null,null,null,null,null,null,null,null,null,""]
[null,null,null,null,null,null,null,null,null,null,null,null,""]
[null,null,null,null,null,null,null,null,null,null,null,null,""]
[null,null,null,null,null,null,null,null,null,null,null,null,""]
[null,null,null,null,null,null,null,null,null,null,null,null,""]
[null,null,null,null,null,null,null,null,null,null,null,null,""]
[null,null,null,null,null,null,null,null,null,null,null,null,""]
[null,null,null,null,null,null,null,null,null,null,null,null,""]
[null,null,null,null,null,null,null,null,null,null,null,null,""]
[null,null,null,null,null,null,null,null,null,null,null,null,""]
[null,null,null,null,null,null,null,null,null,null,null,null,""]
[null,null,null,null,null,null,null,null,null,null,null,null,""]
[null,null,null,null,null,null,null,null,null,null,null,null,""]
[null,null,null,null,null,null,null,null,null,null,null,null,""]
[null,null,null,null,null,null,null,null,null,null,null,null,""]
[null,null,null,null,null,null,null,null,null,null,null,null,""]
[null,null,null,null,null,null,null,null,null,null,null,null,""]
[null,null,null,null,null,null,null,null,null,null,null,null,""]
[null,null,null,null,null,null,null,null,null,null,null,null,""]
[null,null,null,null,null,null,null,null,null,null,null,null,""]
[null,null,null,null,null,null,null,null,null,null,null,null,""]
[null,null,null,null,null,null,null,null,null,null,null,null,""]
[null,null,null,null,null,null,null,null,null,null,null,null,""]
[null,null,null,null,null,null,null,null,null,null,null,null,""]
[null,null,null,null,null,null,null,null,null,null,null,null,""]
[null,null,null,null,null,null,null,null,null,null,null,null,""]
[null,null,null,null,null,null,null,null,null,null,null,null,""]
[null,null,null,null,null,null,null,null,null,null,null,null,""]
[null,null,null,null,null,null,null,null,null,null,null,null,{"$f":"IF(H1085=\"\",\"\",IF(J1085=\"Annulée\",\"Annulée\",IF(K1085<>\"\",\"Ok\",IF(J1085<>\"\",IF(J1085<TODAY(),\"Retard\",\"En cours\"),IF(I1085<>\"\",\"A planifier\",\"A Lancer\")))))","v":""}]
[null,null,null,null,null,null,null,null,null,null,null,null,""]
[null,null,null,null,null,null,null,null,null,null,null,null,""]
[null,null,null,null,null,null,null,null,null,null,null,null,""]
[null,null,null,null,null,null,null,null,null,null,null,null,""]
[null,null,null,null,null,null,null,null,null,null,null,null,""]
[null,null,null,null,null,null,null,null,null,null,null,null,""]
[null,null,null,null,null,null,null,null,null,null,null,null,""]
[null,null,null,null,null,null,null,null,null,null,null,null,""]
[null,null,null,null,null,null,null,null,null,null,null,null,""]
[null,null,null,null,null,null,null,null,null,null,null,null,""]
[null,null,null,null,null,null,null,null,null,null,null,null,""]
[null,null,null,null,null,null,null,null,null,null,null,null,""]
[null,null,null,null,null,null,null,null,null,null,null,null,""]
[null,null,null,null,null,null,null,null,null,null,null,null,""]
[null,null,null,null,null,null,null,null,null,null,null,null,""]
[null,null,null,null,null,null,null,null,null,null,null,null,""]
[null,null,null,null,null,null,null,null,null,null,null,null,""]
[null,null,null,null,null,null,null,null,null,null,null,null,""]
[null,null,null,null,null,null,null,null,null,null,null,null,""]
[null,null,null,null,null,null,null,null,null,null,null,null,""]
[null,null,null,null,null,null,null,null,null,null,null,null,""]
[null,null,null,null,null,null,null,null,null,null,null,null,""]
[null,null,null,null,null,null,null,null,null,null,null,null,""]
[null,null,null,null,null,null,null,null,null,null,null,null,""]
[null,null,null,null,null,null,null,null,null,null,null,null,""]
[null,null,null,null,null,null,null,null,null,null,null,null,""]
[null,null,null,null,null,null,null,null,null,null,null,null,""]
[null,null,null,null,null,null,null,null,null,null,null,null,""]
[null,null,null,null,null,null,null,null,null,null,null,null,""]
[null,null,null,null,null,null,null,null,null,null,null,null,""]
[null,null,null,null,null,null,null,null,null,null,null,null,""]
[null,null,null,null,null,null,null,null,null,null,null,null,""]
[null,null,null,null,null,null,null,null,null,null,null,null,""]
[null,null,null,null,null,null,null,null,null,null,null,null,""]
[null,null,null,null,null,null,null,null,null,null,null,null,""]
[null,null,null,null,null,null,null,null,null,null,null,null,""]
[null,null,null,null,null,null,null,null,null,null,null,null,""]
[null,null,null,null,null,null,null,null,null,null,null,null,""]
[null,null,null,null,null,null,null,null,null,null,null,null,""]
[null,null,null,null,null,null,null,null,null,null,null,null,""]
[null,null,null,null,null,null,null,null,null,null,null,null,""]
[null,null,null,null,null,null,null,null,null,null,null,null,""]
[null,null,null,null,null,null,null,null,null,null,null,null,""]
[null,null,null,null,null,null,null,null,null,null,null,null,""]
[null,null,null,null,null,null,null,null,null,null,null,null,""]
[null,null,null,null,null,null,null,null,null,null,null,null,""]
[null,null,null,null,null,null,null,null,null,null,null,null,""]
[null,null,null,null,null,null,null,null,null,null,null,null,""]
[null,null,null,null,null,null,null,null,null,null,null,null,""]
[null,null,null,null,null,null,null,null,null,null,null,null,""]
[null,null,null,null,null,null,null,null,null,null,null,null,""]
[null,null,null,null,null,null,null,null,null,null,null,null,""]
[null,null,null,null,null,null,null,null,null,null,null,null,""]
[null,null,null,null,null,null,null,null,null,null,null,null,""]
[null,null,null,null,null,null,null,null,null,null,null,null,""]
[null,null,null,null,null,null,null,null,null,null,null,null,""]
[null,null,null,null,null,null,null,null,null,null,null,null,""]
[null,null,null,null,null,null,null,null,null,null,null,null,""]
[null,null,null,null,null,null,null,null,null,null,null,null,""]
[null,null,null,null,null,null,null,null,null,null,null,null,""]
[null,null,null,null,null,null,null,null,null,null,null,null,""]
[null,null,null,null,null,null,null,null,null,null,null,null,""]
[null,null,null,null,null,null,null,null,null,null,null,null,""]
[null,null,null,null,null,null,null,null,null,null,null,null,{"$f":"IF(H1149=\"\",\"\",IF(J1149=\"Annulée\",\"Annulée\",IF(K1149<>\"\",\"Ok\",IF(J1149<>\"\",IF(J1149<TODAY(),\"Retard\",\"En cours\"),IF(I1149<>\"\",\"A planifier\",\"A Lancer\")))))","v":""}]
[null,null,null,null,null,null,null,null,null,null,null,null,""]
[null,null,null,null,null,null,null,null,null,null,null,null,""]
[null,null,null,null,null,null,null,null,null,null,null,null,""]
[null,null,null,null,null,null,null,null,null,null,null,null,""]
[null,null,null,null,null,null,null,null,null,null,null,null,""]
[null,null,null,null,null,null,null,null,null,null,null,null,""]
[null,null,null,null,null,null,null,null,null,null,null,null,""]
[null,null,null,null,null,null,null,null,null,null,null,null,""]
[null,null,null,null,null,null,null,null,null,null,null,null,""]
[null,null,null,null,null,null,null,null,null,null,null,null,""]
[null,null,null,null,null,null,null,null,null,null,null,null,""]
[null,null,null,null,null,null,null,null,null,null,null,null,""]
[null,null,null,null,null,null,null,null,null,null,null,null,""]
[null,null,null,null,null,null,null,null,null,null,null,null,""]
[null,null,null,null,null,null,null,null,null,null,null,null,""]
[null,null,null,null,null,null,null,null,null,null,null,null,""]
[null,null,null,null,null,null,null,null,null,null,null,null,""]
[null,null,null,null,null,null,null,null,null,null,null,null,""]
[null,null,null,null,null,null,null,null,null,null,null,null,""]
[null,null,null,null,null,null,null,null,null,null,null,null,""]
[null,null,null,null,null,null,null,null,null,null,null,null,""]
[null,null,null,null,null,null,null,null,null,null,null,null,""]
[null,null,null,null,null,null,null,null,null,null,null,null,""]
[null,null,null,null,null,null,null,null,null,null,null,null,""]
[null,null,null,null,null,null,null,null,null,null,null,null,""]
[null,null,null,null,null,null,null,null,null,null,null,null,""]
[null,null,null,null,null,null,null,null,null,null,null,null,""]
[null,null,null,null,null,null,null,null,null,null,null,null,""]
[null,null,null,null,null,null,null,null,null,null,null,null,""]
[null,null,null,null,null,null,null,null,null,null,null,null,""]
[null,null,null,null,null,null,null,null,null,null,null,null,""]
[null,null,null,null,null,null,null,null,null,null,null,null,""]
[null,null,null,null,null,null,null,null,null,null,null,null,""]
[null,null,null,null,null,null,null,null,null,null,null,null,""]
[null,null,null,null,null,null,null,null,null,null,null,null,""]
[null,null,null,null,null,null,null,null,null,null,null,null,""]
[null,null,null,null,null,null,null,null,null,null,null,null,""]
[null,null,null,null,null,null,null,null,null,null,null,null,""]
[null,null,null,null,null,null,null,null,null,null,null,null,""]
[null,null,null,null,null,null,null,null,null,null,null,null,""]
[null,null,null,null,null,null,null,null,null,null,null,null,""]
[null,null,null,null,null,null,null,null,null,null,null,null,""]
[null,null,null,null,null,null,null,null,null,null,null,null,""]
[null,null,null,null,null,null,null,null,null,null,null,null,""]
[null,null,null,null,null,null,null,null,null,null,null,null,""]
[null,null,null,null,null,null,null,null,null,null,null,null,""]
[null,null,null,null,null,null,null,null,null,null,null,null,""]
[null,null,null,null,null,null,null,null,null,null,null,null,""]
[null,null,null,null,null,null,null,null,null,null,null,null,""]
[null,null,null,null,null,null,null,null,null,null,null,null,""]
[null,null,null,null,null,null,null,null,null,null,null,null,""]
[null,null,null,null,null,null,null,null,null,null,null,null,""]
[null,null,null,null,null,null,null,null,null,null,null,null,""]
[null,null,null,null,null,null,null,null,null,null,null,null,""]
[null,null,null,null,null,null,null,null,null,null,null,null,""]
[null,null,null,null,null,null,null,null,null,null,null,null,""]
[null,null,null,null,null,null,null,null,null,null,null,null,""]
[null,null,null,null,null,null,null,null,null,null,null,null,""]
[null,null,null,null,null,null,null,null,null,null,null,null,""]
[null,null,null,null,null,null,null,null,null,null,null,null,""]
[null,null,null,null,null,null,null,null,null,null,null,null,""]
[null,null,null,null,null,null,null,null,null,null,null,null,""]
[null,null,null,null,null,null,null,null,null,null,null,null,""]
[null,null,null,null,null,null,null,null,null,null,null,null,{"$f":"IF(H1213=\"\",\"\",IF(J1213=\"Annulée\",\"Annulée\",IF(K1213<>\"\",\"Ok\",IF(J1213<>\"\",IF(J1213<TODAY(),\"Retard\",\"En cours\"),IF(I1213<>\"\",\"A planifier\",\"A Lancer\")))))","v":""}]
[null,null,null,null,null,null,null,null,null,null,null,null,""]
[null,null,null,null,null,null,null,null,null,null,null,null,""]
[null,null,null,null,null,null,null,null,null,null,null,null,""]
[null,null,null,null,null,null,null,null,null,null,null,null,""]
[null,null,null,null,null,null,null,null,null,null,null,null,""]
[null,null,null,null,null,null,null,null,null,null,null,null,""]
[null,null,null,null,null,null,null,null,null,null,null,null,""]
[null,null,null,null,null,null,null,null,null,null,null,null,""]
[null,null,null,null,null,null,null,null,null,null,null,null,""]
[null,null,null,null,null,null,null,null,null,null,null,null,""]
[null,null,null,null,null,null,null,null,null,null,null,null,""]
[null,null,null,null,null,null,null,null,null,null,null,null,""]
[null,null,null,null,null,null,null,null,null,null,null,null,""]
[null,null,null,null,null,null,null,null,null,null,null,null,""]
[null,null,null,null,null,null,null,null,null,null,null,null,""]
[null,null,null,null,null,null,null,null,null,null,null,null,""]
[null,null,null,null,null,null,null,null,null,null,null,null,""]
[null,null,null,null,null,null,null,null,null,null,null,null,""]
[null,null,null,null,null,null,null,null,null,null,null,null,""]
[null,null,null,null,null,null,null,null,null,null,null,null,""]
[null,null,null,null,null,null,null,null,null,null,null,null,""]
[null,null,null,null,null,null,null,null,null,null,null,null,""]
[null,null,null,null,null,null,null,null,null,null,null,null,""]
[null,null,null,null,null,null,null,null,null,null,null,null,""]
[null,null,null,null,null,null,null,null,null,null,null,null,""]
[null,null,null,null,null,null,null,null,null,null,null,null,""]
[null,null,null,null,null,null,null,null,null,null,null,null,""]
[null,null,null,null,null,null,null,null,null,null,null,null,""]
[null,null,null,null,null,null,null,null,null,null,null,null,""]
[null,null,null,null,null,null,null,null,null,null,null,null,""]
[null,null,null,null,null,null,null,null,null,null,null,null,""]
[null,null,null,null,null,null,null,null,null,null,null,null,""]
[null,null,null,null,null,null,null,null,null,null,null,null,""]
[null,null,null,null,null,null,null,null,null,null,null,null,""]
[null,null,null,null,null,null,null,null,null,null,null,null,""]
[null,null,null,null,null,null,null,null,null,null,null,null,""]
[null,null,null,null,null,null,null,null,null,null,null,null,""]
[null,null,null,null,null,null,null,null,null,null,null,null,""]
[null,null,null,null,null,null,null,null,null,null,null,null,""]
[null,null,null,null,null,null,null,null,null,null,null,null,""]
[null,null,null,null,null,null,null,null,null,null,null,null,""]
[null,null,null,null,null,null,null,null,null,null,null,null,""]
[null,null,null,null,null,null,null,null,null,null,null,null,""]
[null,null,null,null,null,null,null,null,null,null,null,null,""]
[null,null,null,null,null,null,null,null,null,null,null,null,""]
[null,null,null,null,null,null,null,null,null,null,null,null,""]
[null,null,null,null,null,null,null,null,null,null,null,null,""]
[null,null,null,null,null,null,null,null,null,null,null,null,""]
[null,null,null,null,null,null,null,null,null,null,null,null,""]
[null,null,null,null,null,null,null,null,null,null,null,null,""]
[null,null,null,null,null,null,null,null,null,null,null,null,""]
[null,null,null,null,null,null,null,null,null,null,null,null,""]
[null,null,null,null,null,null,null,null,null,null,null,null,""]
[null,null,null,null,null,null,null,null,null,null,null,null,""]
[null,null,null,null,null,null,null,null,null,null,null,null,""]
[null,null,null,null,null,null,null,null,null,null,null,null,""]
[null,null,null,null,null,null,null,null,null,null,null,null,""]
[null,null,null,null,null,null,null,null,null,null,null,null,""]
[null,null,null,null,null,null,null,null,null,null,null,null,""]
[null,null,null,null,null,null,null,null,null,null,null,null,""]
[null,null,null,null,null,null,null,null,null,null,null,null,""]
[null,null,null,null,null,null,null,null,null,null,null,null,""]
[null,null,null,null,null,null,null,null,null,null,null,null,""]
[null,null,null,null,null,null,null,null,null,null,null,null,{"$f":"IF(H1277=\"\",\"\",IF(J1277=\"Annulée\",\"Annulée\",IF(K1277<>\"\",\"Ok\",IF(J1277<>\"\",IF(J1277<TODAY(),\"Retard\",\"En cours\"),IF(I1277<>\"\",\"A planifier\",\"A Lancer\")))))","v":""}]
[null,null,null,null,null,null,null,null,null,null,null,null,""]
[null,null,null,null,null,null,null,null,null,null,null,null,""]
[null,null,null,null,null,null,null,null,null,null,null,null,""]
[null,null,null,null,null,null,null,null,null,null,null,null,""]
[null,null,null,null,null,null,null,null,null,null,null,null,""]
[null,null,null,null,null,null,null,null,null,null,null,null,""]
[null,null,null,null,null,null,null,null,null,null,null,null,""]
[null,null,null,null,null,null,null,null,null,null,null,null,""]
[null,null,null,null,null,null,null,null,null,null,null,null,""]
[null,null,null,null,null,null,null,null,null,null,null,null,""]
[null,null,null,null,null,null,null,null,null,null,null,null,""]
[null,null,null,null,null,null,null,null,null,null,null,null,""]
[null,null,null,null,null,null,null,null,null,null,null,null,""]
[null,null,null,null,null,null,null,null,null,null,null,null,""]
[null,null,null,null,null,null,null,null,null,null,null,null,""]
[null,null,null,null,null,null,null,null,null,null,null,null,""]
[null,null,null,null,null,null,null,null,null,null,null,null,""]
[null,null,null,null,null,null,null,null,null,null,null,null,""]
[null,null,null,null,null,null,null,null,null,null,null,null,""]
[null,null,null,null,null,null,null,null,null,null,null,null,""]
[null,null,null,null,null,null,null,null,null,null,null,null,""]
[null,null,null,null,null,null,null,null,null,null,null,null,""]
[null,null,null,null,null,null,null,null,null,null,null,null,""]
[null,null,null,null,null,null,null,null,null,null,null,null,""]
[null,null,null,null,null,null,null,null,null,null,null,null,""]
[null,null,null,null,null,null,null,null,null,null,null,null,""]
[null,null,null,null,null,null,null,null,null,null,null,null,""]
[null,null,null,null,null,null,null,null,null,null,null,null,""]
[null,null,null,null,null,null,null,null,null,null,null,null,""]
[null,null,null,null,null,null,null,null,null,null,null,null,""]
[null,null,null,null,null,null,null,null,null,null,null,null,""]
[null,null,null,null,null,null,null,null,null,null,null,null,""]
[null,null,null,null,null,null,null,null,null,null,null,null,""]
[null,null,null,null,null,null,null,null,null,null,null,null,""]
[null,null,null,null,null,null,null,null,null,null,null,null,""]
[null,null,null,null,null,null,null,null,null,null,null,null,""]
[null,null,null,null,null,null,null,null,null,null,null,null,""]
[null,null,null,null,null,null,null,null,null,null,null,null,""]
[null,null,null,null,null,null,null,null,null,null,null,null,""]
[null,null,null,null,null,null,null,null,null,null,null,null,""]
[null,null,null,null,null,null,null,null,null,null,null,null,""]
[null,null,null,null,null,null,null,null,null,null,null,null,""]
[null,null,null,null,null,null,null,null,null,null,null,null,""]
[null,null,null,null,null,null,null,null,null,null,null,null,""]
[null,null,null,null,null,null,null,null,null,null,null,null,""]
[null,null,null,null,null,null,null,null,null,null,null,null,""]
[null,null,null,null,null,null,null,null,null,null,null,null,""]
[null,null,null,null,null,null,null,null,null,null,null,null,""]
[null,null,null,null,null,null,null,null,null,null,null,null,""]
[null,null,null,null,null,null,null,null,null,null,null,null,""]
[null,null,null,null,null,null,null,null,null,null,null,null,""]
[null,null,null,null,null,null,null,null,null,null,null,null,""]
[null,null,null,null,null,null,null,null,null,null,null,null,""]
[null,null,null,null,null,null,null,null,null,null,null,null,""]
[null,null,null,null,null,null,null,null,null,null,null,null,""]
[null,null,null,null,null,null,null,null,null,null,null,null,""]
[null,null,null,null,null,null,null,null,null,null,null,null,""]
[null,null,null,null,null,null,null,null,null,null,null,null,""]
[null,null,null,null,null,null,null,null,null,null,null,null,""]
[null,null,null,null,null,null,null,null,null,null,null,null,""]
[null,null,null,null,null,null,null,null,null,null,null,null,""]
[null,null,null,null,null,null,null,null,null,null,null,null,""]
[null,null,null,null,null,null,null,null,null,null,null,null,""]
[null,null,null,null,null,null,null,null,null,null,null,null,{"$f":"IF(H1341=\"\",\"\",IF(J1341=\"Annulée\",\"Annulée\",IF(K1341<>\"\",\"Ok\",IF(J1341<>\"\",IF(J1341<TODAY(),\"Retard\",\"En cours\"),IF(I1341<>\"\",\"A planifier\",\"A Lancer\")))))","v":""}]
[null,null,null,null,null,null,null,null,null,null,null,null,""]
[null,null,null,null,null,null,null,null,null,null,null,null,""]
[null,null,null,null,null,null,null,null,null,null,null,null,""]
[null,null,null,null,null,null,null,null,null,null,null,null,""]
[null,null,null,null,null,null,null,null,null,null,null,null,""]
[null,null,null,null,null,null,null,null,null,null,null,null,""]
[null,null,null,null,null,null,null,null,null,null,null,null,""]
[null,null,null,null,null,null,null,null,null,null,null,null,""]
[null,null,null,null,null,null,null,null,null,null,null,null,""]
[null,null,null,null,null,null,null,null,null,null,null,null,""]
[null,null,null,null,null,null,null,null,null,null,null,null,""]
[null,null,null,null,null,null,null,null,null,null,null,null,""]
[null,null,null,null,null,null,null,null,null,null,null,null,""]
[null,null,null,null,null,null,null,null,null,null,null,null,""]
[null,null,null,null,null,null,null,null,null,null,null,null,""]
[null,null,null,null,null,null,null,null,null,null,null,null,""]
[null,null,null,null,null,null,null,null,null,null,null,null,""]
[null,null,null,null,null,null,null,null,null,null,null,null,""]
[null,null,null,null,null,null,null,null,null,null,null,null,""]
[null,null,null,null,null,null,null,null,null,null,null,null,""]
[null,null,null,null,null,null,null,null,null,null,null,null,""]
[null,null,null,null,null,null,null,null,null,null,null,null,""]
[null,null,null,null,null,null,null,null,null,null,null,null,""]
[null,null,null,null,null,null,null,null,null,null,null,null,""]
[null,null,null,null,null,null,null,null,null,null,null,null,""]
[null,null,null,null,null,null,null,null,null,null,null,null,""]
[null,null,null,null,null,null,null,null,null,null,null,null,""]
[null,null,null,null,null,null,null,null,null,null,null,null,""]
[null,null,null,null,null,null,null,null,null,null,null,null,""]
[null,null,null,null,null,null,null,null,null,null,null,null,""]
[null,null,null,null,null,null,null,null,null,null,null,null,""]
[null,null,null,null,null,null,null,null,null,null,null,null,""]
[null,null,null,null,null,null,null,null,null,null,null,null,""]
[null,null,null,null,null,null,null,null,null,null,null,null,""]
[null,null,null,null,null,null,null,null,null,null,null,null,""]
[null,null,null,null,null,null,null,null,null,null,null,null,""]
[null,null,null,null,null,null,null,null,null,null,null,null,""]
[null,null,null,null,null,null,null,null,null,null,null,null,""]
[null,null,null,null,null,null,null,null,null,null,null,null,""]
[null,null,null,null,null,null,null,null,null,null,null,null,""]
[null,null,null,null,null,null,null,null,null,null,null,null,""]
[null,null,null,null,null,null,null,null,null,null,null,null,""]
[null,null,null,null,null,null,null,null,null,null,null,null,""]
[null,null,null,null,null,null,null,null,null,null,null,null,""]
[null,null,null,null,null,null,null,null,null,null,null,null,""]
[null,null,null,null,null,null,null,null,null,null,null,null,""]
[null,null,null,null,null,null,null,null,null,null,null,null,""]
[null,null,null,null,null,null,null,null,null,null,null,null,""]
[null,null,null,null,null,null,null,null,null,null,null,null,""]
[null,null,null,null,null,null,null,null,null,null,null,null,""]
[null,null,null,null,null,null,null,null,null,null,null,null,""]
[null,null,null,null,null,null,null,null,null,null,null,null,""]
[null,null,null,null,null,null,null,null,null,null,null,null,""]
[null,null,null,null,null,null,null,null,null,null,null,null,""]
[null,null,null,null,null,null,null,null,null,null,null,null,""]
[null,null,null,null,null,null,null,null,null,null,null,null,""]
[null,null,null,null,null,null,null,null,null,null,null,null,""]
[null,null,null,null,null,null,null,null,null,null,null,null,""]
[null,null,null,null,null,null,null,null,null,null,null,null,""]
[null,null,null,null,null,null,null,null,null,null,null,null,""]
[null,null,null,null,null,null,null,null,null,null,null,null,""]
[null,null,null,null,null,null,null,null,null,null,null,null,""]
[null,null,null,null,null,null,null,null,null,null,null,null,""]
[null,null,null,null,null,null,null,null,null,null,null,null,{"$f":"IF(H1405=\"\",\"\",IF(J1405=\"Annulée\",\"Annulée\",IF(K1405<>\"\",\"Ok\",IF(J1405<>\"\",IF(J1405<TODAY(),\"Retard\",\"En cours\"),IF(I1405<>\"\",\"A planifier\",\"A Lancer\")))))","v":""}]
[null,null,null,null,null,null,null,null,null,null,null,null,""]
[null,null,null,null,null,null,null,null,null,null,null,null,""]
[null,null,null,null,null,null,null,null,null,null,null,null,""]
[null,null,null,null,null,null,null,null,null,null,null,null,""]
[null,null,null,null,null,null,null,null,null,null,null,null,""]
[null,null,null,null,null,null,null,null,null,null,null,null,""]
[null,null,null,null,null,null,null,null,null,null,null,null,""]
[null,null,null,null,null,null,null,null,null,null,null,null,""]
[null,null,null,null,null,null,null,null,null,null,null,null,""]
[null,null,null,null,null,null,null,null,null,null,null,null,""]
[null,null,null,null,null,null,null,null,null,null,null,null,""]
[null,null,null,null,null,null,null,null,null,null,null,null,""]
[null,null,null,null,null,null,null,null,null,null,null,null,""]
[null,null,null,null,null,null,null,null,null,null,null,null,""]
[null,null,null,null,null,null,null,null,null,null,null,null,""]
[null,null,null,null,null,null,null,null,null,null,null,null,""]
[null,null,null,null,null,null,null,null,null,null,null,null,""]
[null,null,null,null,null,null,null,null,null,null,null,null,""]
[null,null,null,null,null,null,null,null,null,null,null,null,""]
[null,null,null,null,null,null,null,null,null,null,null,null,""]
[null,null,null,null,null,null,null,null,null,null,null,null,""]
[null,null,null,null,null,null,null,null,null,null,null,null,""]
[null,null,null,null,null,null,null,null,null,null,null,null,""]
[null,null,null,null,null,null,null,null,null,null,null,null,""]
[null,null,null,null,null,null,null,null,null,null,null,null,""]
[null,null,null,null,null,null,null,null,null,null,null,null,""]
[null,null,null,null,null,null,null,null,null,null,null,null,""]
[null,null,null,null,null,null,null,null,null,null,null,null,""]
[null,null,null,null,null,null,null,null,null,null,null,null,""]
[null,null,null,null,null,null,null,null,null,null,null,null,""]
[null,null,null,null,null,null,null,null,null,null,null,null,""]
[null,null,null,null,null,null,null,null,null,null,null,null,""]
[null,null,null,null,null,null,null,null,null,null,null,null,""]
[null,null,null,null,null,null,null,null,null,null,null,null,""]
[null,null,null,null,null,null,null,null,null,null,null,null,""]
[null,null,null,null,null,null,null,null,null,null,null,null,""]
[null,null,null,null,null,null,null,null,null,null,null,null,""]
[null,null,null,null,null,null,null,null,null,null,null,null,""]
[null,null,null,null,null,null,null,null,null,null,null,null,""]
[null,null,null,null,null,null,null,null,null,null,null,null,""]
[null,null,null,null,null,null,null,null,null,null,null,null,""]
[null,null,null,null,null,null,null,null,null,null,null,null,""]
[null,null,null,null,null,null,null,null,null,null,null,null,""]
[null,null,null,null,null,null,null,null,null,null,null,null,""]
[null,null,null,null,null,null,null,null,null,null,null,null,""]
[null,null,null,null,null,null,null,null,null,null,null,null,""]
[null,null,null,null,null,null,null,null,null,null,null,null,""]
[null,null,null,null,null,null,null,null,null,null,null,null,""]
[null,null,null,null,null,null,null,null,null,null,null,null,""]
[null,null,null,null,null,null,null,null,null,null,null,null,""]
[null,null,null,null,null,null,null,null,null,null,null,null,""]
[null,null,null,null,null,null,null,null,null,null,null,null,""]
[null,null,null,null,null,null,null,null,null,null,null,null,""]
[null,null,null,null,null,null,null,null,null,null,null,null,""]
[null,null,null,null,null,null,null,null,null,null,null,null,""]
[null,null,null,null,null,null,null,null,null,null,null,null,""]
[null,null,null,null,null,null,null,null,null,null,null,null,""]
[null,null,null,null,null,null,null,null,null,null,null,null,""]
[null,null,null,null,null,null,null,null,null,null,null,null,""]
[null,null,null,null,null,null,null,null,null,null,null,null,""]
[null,null,null,null,null,null,null,null,null,null,null,null,""]
[null,null,null,null,null,null,null,null,null,null,null,null,""]
[null,null,null,null,null,null,null,null,null,null,null,null,""]
[null,null,null,null,null,null,null,null,null,null,null,null,{"$f":"IF(H1469=\"\",\"\",IF(J1469=\"Annulée\",\"Annulée\",IF(K1469<>\"\",\"Ok\",IF(J1469<>\"\",IF(J1469<TODAY(),\"Retard\",\"En cours\"),IF(I1469<>\"\",\"A planifier\",\"A Lancer\")))))","v":""}]
[null,null,null,null,null,null,null,null,null,null,null,null,""]
[null,null,null,null,null,null,null,null,null,null,null,null,""]
[null,null,null,null,null,null,null,null,null,null,null,null,""]
[null,null,null,null,null,null,null,null,null,null,null,null,""]
[null,null,null,null,null,null,null,null,null,null,null,null,""]
[null,null,null,null,null,null,null,null,null,null,null,null,""]
[null,null,null,null,null,null,null,null,null,null,null,null,""]
[null,null,null,null,null,null,null,null,null,null,null,null,""]
[null,null,null,null,null,null,null,null,null,null,null,null,""]
[null,null,null,null,null,null,null,null,null,null,null,null,""]
[null,null,null,null,null,null,null,null,null,null,null,null,""]
[null,null,null,null,null,null,null,null,null,null,null,null,""]
[null,null,null,null,null,null,null,null,null,null,null,null,""]
[null,null,null,null,null,null,null,null,null,null,null,null,""]
[null,null,null,null,null,null,null,null,null,null,null,null,""]
[null,null,null,null,null,null,null,null,null,null,null,null,""]
[null,null,null,null,null,null,null,null,null,null,null,null,""]
[null,null,null,null,null,null,null,null,null,null,null,null,""]
[null,null,null,null,null,null,null,null,null,null,null,null,""]
[null,null,null,null,null,null,null,null,null,null,null,null,""]
[null,null,null,null,null,null,null,null,null,null,null,null,""]
[null,null,null,null,null,null,null,null,null,null,null,null,""]
[null,null,null,null,null,null,null,null,null,null,null,null,""]
[null,null,null,null,null,null,null,null,null,null,null,null,""]
[null,null,null,null,null,null,null,null,null,null,null,null,""]
[null,null,null,null,null,null,null,null,null,null,null,null,""]
[null,null,null,null,null,null,null,null,null,null,null,null,""]
[null,null,null,null,null,null,null,null,null,null,null,null,""]
[null,null,null,null,null,null,null,null,null,null,null,null,""]
[null,null,null,null,null,null,null,null,null,null,null,null,""]
[null,null,null,null,null,null,null,null,null,null,null,null,""]
[null,null,null,null,null,null,null,null,null,null,null,null,""]
[null,null,null,null,null,null,null,null,null,null,null,null,""]
[null,null,null,null,null,null,null,null,null,null,null,null,""]
[null,null,null,null,null,null,null,null,null,null,null,null,""]
[null,null,null,null,null,null,null,null,null,null,null,null,""]
[null,null,null,null,null,null,null,null,null,null,null,null,""]
[null,null,null,null,null,null,null,null,null,null,null,null,""]
[null,null,null,null,null,null,null,null,null,null,null,null,""]
[null,null,null,null,null,null,null,null,null,null,null,null,""]
[null,null,null,null,null,null,null,null,null,null,null,null,""]
[null,null,null,null,null,null,null,null,null,null,null,null,""]
[null,null,null,null,null,null,null,null,null,null,null,null,""]
[null,null,null,null,null,null,null,null,null,null,null,null,""]
[null,null,null,null,null,null,null,null,null,null,null,null,""]
[null,null,null,null,null,null,null,null,null,null,null,null,""]
[null,null,null,null,null,null,null,null,null,null,null,null,""]
[null,null,null,null,null,null,null,null,null,null,null,null,""]
[null,null,null,null,null,null,null,null,null,null,null,null,""]
[null,null,null,null,null,null,null,null,null,null,null,null,""]
[null,null,null,null,null,null,null,null,null,null,null,null,""]
[null,null,null,null,null,null,null,null,null,null,null,null,""]
[null,null,null,null,null,null,null,null,null,null,null,null,""]
[null,null,null,null,null,null,null,null,null,null,null,null,""]
[null,null,null,null,null,null,null,null,null,null,null,null,""]
[null,null,null,null,null,null,null,null,null,null,null,null,""]
[null,null,null,null,null,null,null,null,null,null,null,null,""]
[null,null,null,null,null,null,null,null,null,null,null,null,""]
[null,null,null,null,null,null,null,null,null,null,null,null,""]
[null,null,null,null,null,null,null,null,null,null,null,null,""]
[null,null,null,null,null,null,null,null,null,null,null,null,""]
[null,null,null,null,null,null,null,null,null,null,null,null,""]
[null,null,null,null,null,null,null,null,null,null,null,null,""]
[null,null,null,null,null,null,null,null,null,null,null,null,{"$f":"IF(H1533=\"\",\"\",IF(J1533=\"Annulée\",\"Annulée\",IF(K1533<>\"\",\"Ok\",IF(J1533<>\"\",IF(J1533<TODAY(),\"Retard\",\"En cours\"),IF(I1533<>\"\",\"A planifier\",\"A Lancer\")))))","v":""}]
[null,null,null,null,null,null,null,null,null,null,null,null,""]
[null,null,null,null,null,null,null,null,null,null,null,null,""]
[null,null,null,null,null,null,null,null,null,null,null,null,""]
[null,null,null,null,null,null,null,null,null,null,null,null,""]
[null,null,null,null,null,null,null,null,null,null,null,null,""]
[null,null,null,null,null,null,null,null,null,null,null,null,""]
[null,null,null,null,null,null,null,null,null,null,null,null,""]
[null,null,null,null,null,null,null,null,null,null,null,null,""]
[null,null,null,null,null,null,null,null,null,null,null,null,""]
[null,null,null,null,null,null,null,null,null,null,null,null,""]
[null,null,null,null,null,null,null,null,null,null,null,null,""]
[null,null,null,null,null,null,null,null,null,null,null,null,""]
[null,null,null,null,null,null,null,null,null,null,null,null,""]
[null,null,null,null,null,null,null,null,null,null,null,null,""]
[null,null,null,null,null,null,null,null,null,null,null,null,""]
[null,null,null,null,null,null,null,null,null,null,null,null,""]
[null,null,null,null,null,null,null,null,null,null,null,null,""]
[null,null,null,null,null,null,null,null,null,null,null,null,""]
[null,null,null,null,null,null,null,null,null,null,null,null,""]
[null,null,null,null,null,null,null,null,null,null,null,null,""]
[null,null,null,null,null,null,null,null,null,null,null,null,""]
[null,null,null,null,null,null,null,null,null,null,null,null,""]
[null,null,null,null,null,null,null,null,null,null,null,null,""]
[null,null,null,null,null,null,null,null,null,null,null,null,""]
[null,null,null,null,null,null,null,null,null,null,null,null,""]
[null,null,null,null,null,null,null,null,null,null,null,null,""]
[null,null,null,null,null,null,null,null,null,null,null,null,""]
[null,null,null,null,null,null,null,null,null,null,null,null,""]
[null,null,null,null,null,null,null,null,null,null,null,null,""]
[null,null,null,null,null,null,null,null,null,null,null,null,""]
[null,null,null,null,null,null,null,null,null,null,null,null,""]
[null,null,null,null,null,null,null,null,null,null,null,null,""]
[null,null,null,null,null,null,null,null,null,null,null,null,""]
[null,null,null,null,null,null,null,null,null,null,null,null,""]
[null,null,null,null,null,null,null,null,null,null,null,null,""]
[null,null,null,null,null,null,null,null,null,null,null,null,""]
[null,null,null,null,null,null,null,null,null,null,null,null,""]
[null,null,null,null,null,null,null,null,null,null,null,null,""]
[null,null,null,null,null,null,null,null,null,null,null,null,""]
[null,null,null,null,null,null,null,null,null,null,null,null,""]
[null,null,null,null,null,null,null,null,null,null,null,null,""]
[null,null,null,null,null,null,null,null,null,null,null,null,""]
[null,null,null,null,null,null,null,null,null,null,null,null,""]
[null,null,null,null,null,null,null,null,null,null,null,null,""]
[null,null,null,null,null,null,null,null,null,null,null,null,""]
[null,null,null,null,null,null,null,null,null,null,null,null,""]
[null,null,null,null,null,null,null,null,null,null,null,null,""]
[null,null,null,null,null,null,null,null,null,null,null,null,""]
[null,null,null,null,null,null,null,null,null,null,null,null,""]
[null,null,null,null,null,null,null,null,null,null,null,null,""]
[null,null,null,null,null,null,null,null,null,null,null,null,""]
[null,null,null,null,null,null,null,null,null,null,null,null,""]
[null,null,null,null,null,null,null,null,null,null,null,null,""]
[null,null,null,null,null,null,null,null,null,null,null,null,""]
[null,null,null,null,null,null,null,null,null,null,null,null,""]
[null,null,null,null,null,null,null,null,null,null,null,null,""]
[null,null,null,null,null,null,null,null,null,null,null,null,""]
[null,null,null,null,null,null,null,null,null,null,null,null,""]
[null,null,null,null,null,null,null,null,null,null,null,null,""]
[null,null,null,null,null,null,null,null,null,null,null,null,""]
[null,null,null,null,null,null,null,null,null,null,null,null,""]
[null,null,null,null,null,null,null,null,null,null,null,null,""]
[null,null,null,null,null,null,null,null,null,null,null,null,""]
[null,null,null,null,null,null,null,null,null,null,null,null,{"$f":"IF(H1597=\"\",\"\",IF(J1597=\"Annulée\",\"Annulée\",IF(K1597<>\"\",\"Ok\",IF(J1597<>\"\",IF(J1597<TODAY(),\"Retard\",\"En cours\"),IF(I1597<>\"\",\"A planifier\",\"A Lancer\")))))","v":""}]
[null,null,null,null,null,null,null,null,null,null,null,null,""]
[null,null,null,null,null,null,null,null,null,null,null,null,""]
[null,null,null,null,null,null,null,null,null,null,null,null,""]
[null,null,null,null,null,null,null,null,null,null,null,null,""]
[null,null,null,null,null,null,null,null,null,null,null,null,""]
[null,null,null,null,null,null,null,null,null,null,null,null,""]
[null,null,null,null,null,null,null,null,null,null,null,null,""]
[null,null,null,null,null,null,null,null,null,null,null,null,""]
[null,null,null,null,null,null,null,null,null,null,null,null,""]
[null,null,null,null,null,null,null,null,null,null,null,null,""]
[null,null,null,null,null,null,null,null,null,null,null,null,""]
[null,null,null,null,null,null,null,null,null,null,null,null,""]
[null,null,null,null,null,null,null,null,null,null,null,null,""]
[null,null,null,null,null,null,null,null,null,null,null,null,""]
[null,null,null,null,null,null,null,null,null,null,null,null,""]
[null,null,null,null,null,null,null,null,null,null,null,null,""]
[null,null,null,null,null,null,null,null,null,null,null,null,""]
[null,null,null,null,null,null,null,null,null,null,null,null,""]
[null,null,null,null,null,null,null,null,null,null,null,null,""]
[null,null,null,null,null,null,null,null,null,null,null,null,""]
[null,null,null,null,null,null,null,null,null,null,null,null,""]
[null,null,null,null,null,null,null,null,null,null,null,null,""]
[null,null,null,null,null,null,null,null,null,null,null,null,""]
[null,null,null,null,null,null,null,null,null,null,null,null,""]
[null,null,null,null,null,null,null,null,null,null,null,null,""]
[null,null,null,null,null,null,null,null,null,null,null,null,""]
[null,null,null,null,null,null,null,null,null,null,null,null,""]
[null,null,null,null,null,null,null,null,null,null,null,null,""]
[null,null,null,null,null,null,null,null,null,null,null,null,""]
[null,null,null,null,null,null,null,null,null,null,null,null,""]
[null,null,null,null,null,null,null,null,null,null,null,null,""]
[null,null,null,null,null,null,null,null,null,null,null,null,""]
[null,null,null,null,null,null,null,null,null,null,null,null,""]
[null,null,null,null,null,null,null,null,null,null,null,null,""]
[null,null,null,null,null,null,null,null,null,null,null,null,""]
[null,null,null,null,null,null,null,null,null,null,null,null,""]
[null,null,null,null,null,null,null,null,null,null,null,null,""]
[null,null,null,null,null,null,null,null,null,null,null,null,""]
[null,null,null,null,null,null,null,null,null,null,null,null,""]
[null,null,null,null,null,null,null,null,null,null,null,null,""]
[null,null,null,null,null,null,null,null,null,null,null,null,""]
[null,null,null,null,null,null,null,null,null,null,null,null,""]
[null,null,null,null,null,null,null,null,null,null,null,null,""]
[null,null,null,null,null,null,null,null,null,null,null,null,""]
[null,null,null,null,null,null,null,null,null,null,null,null,""]
[null,null,null,null,null,null,null,null,null,null,null,null,""]
[null,null,null,null,null,null,null,null,null,null,null,null,""]
[null,null,null,null,null,null,null,null,null,null,null,null,""]
[null,null,null,null,null,null,null,null,null,null,null,null,""]
[null,null,null,null,null,null,null,null,null,null,null,null,""]
[null,null,null,null,null,null,null,null,null,null,null,null,""]
[null,null,null,null,null,null,null,null,null,null,null,null,""]
[null,null,null,null,null,null,null,null,null,null,null,null,""]
[null,null,null,null,null,null,null,null,null,null,null,null,""]
[null,null,null,null,null,null,null,null,null,null,null,null,""]
[null,null,null,null,null,null,null,null,null,null,null,null,""]
[null,null,null,null,null,null,null,null,null,null,null,null,""]
[null,null,null,null,null,null,null,null,null,null,null,null,""]
[null,null,null,null,null,null,null,null,null,null,null,null,""]
[null,null,null,null,null,null,null,null,null,null,null,null,""]
[null,null,null,null,null,null,null,null,null,null,null,null,""]
[null,null,null,null,null,null,null,null,null,null,null,null,""]
[null,null,null,null,null,null,null,null,null,null,null,null,""]
[null,null,null,null,null,null,null,null,null,null,null,null,{"$f":"IF(H1661=\"\",\"\",IF(J1661=\"Annulée\",\"Annulée\",IF(K1661<>\"\",\"Ok\",IF(J1661<>\"\",IF(J1661<TODAY(),\"Retard\",\"En cours\"),IF(I1661<>\"\",\"A planifier\",\"A Lancer\")))))","v":""}]
[null,null,null,null,null,null,null,null,null,null,null,null,""]
[null,null,null,null,null,null,null,null,null,null,null,null,""]
[null,null,null,null,null,null,null,null,null,null,null,null,""]
[null,null,null,null,null,null,null,null,null,null,null,null,""]
[null,null,null,null,null,null,null,null,null,null,null,null,""]
[null,null,null,null,null,null,null,null,null,null,null,null,""]
[null,null,null,null,null,null,null,null,null,null,null,null,""]
[null,null,null,null,null,null,null,null,null,null,null,null,""]
[null,null,null,null,null,null,null,null,null,null,null,null,""]
[null,null,null,null,null,null,null,null,null,null,null,null,""]
[null,null,null,null,null,null,null,null,null,null,null,null,""]
[null,null,null,null,null,null,null,null,null,null,null,null,""]
[null,null,null,null,null,null,null,null,null,null,null,null,""]
[null,null,null,null,null,null,null,null,null,null,null,null,""]
[null,null,null,null,null,null,null,null,null,null,null,null,""]
[null,null,null,null,null,null,null,null,null,null,null,null,""]
[null,null,null,null,null,null,null,null,null,null,null,null,""]
[null,null,null,null,null,null,null,null,null,null,null,null,""]
[null,null,null,null,null,null,null,null,null,null,null,null,""]
[null,null,null,null,null,null,null,null,null,null,null,null,""]
[null,null,null,null,null,null,null,null,null,null,null,null,""]
[null,null,null,null,null,null,null,null,null,null,null,null,""]
[null,null,null,null,null,null,null,null,null,null,null,null,""]
[null,null,null,null,null,null,null,null,null,null,null,null,""]
[null,null,null,null,null,null,null,null,null,null,null,null,""]
[null,null,null,null,null,null,null,null,null,null,null,null,""]
[null,null,null,null,null,null,null,null,null,null,null,null,""]
[null,null,null,null,null,null,null,null,null,null,null,null,""]
[null,null,null,null,null,null,null,null,null,null,null,null,""]
[null,null,null,null,null,null,null,null,null,null,null,null,""]
[null,null,null,null,null,null,null,null,null,null,null,null,""]
[null,null,null,null,null,null,null,null,null,null,null,null,""]
[null,null,null,null,null,null,null,null,null,null,null,null,""]
[null,null,null,null,null,null,null,null,null,null,null,null,""]
[null,null,null,null,null,null,null,null,null,null,null,null,""]
[null,null,null,null,null,null,null,null,null,null,null,null,""]
[null,null,null,null,null,null,null,null,null,null,null,null,""]
[null,null,null,null,null,null,null,null,null,null,null,null,""]
[null,null,null,null,null,null,null,null,null,null,null,null,""]
[null,null,null,null,null,null,null,null,null,null,null,null,""]
[null,null,null,null,null,null,null,null,null,null,null,null,""]
[null,null,null,null,null,null,null,null,null,null,null,null,""]
[null,null,null,null,null,null,null,null,null,null,null,null,""]
[null,null,null,null,null,null,null,null,null,null,null,null,""]
[null,null,null,null,null,null,null,null,null,null,null,null,""]
[null,null,null,null,null,null,null,null,null,null,null,null,""]
[null,null,null,null,null,null,null,null,null,null,null,null,""]
[null,null,null,null,null,null,null,null,null,null,null,null,""]
[null,null,null,null,null,null,null,null,null,null,null,null,""]
[null,null,null,null,null,null,null,null,null,null,null,null,""]
[null,null,null,null,null,null,null,null,null,null,null,null,""]
[null,null,null,null,null,null,null,null,null,null,null,null,""]
[null,null,null,null,null,null,null,null,null,null,null,null,""]
[null,null,null,null,null,null,null,null,null,null,null,null,""]
[null,null,null,null,null,null,null,null,null,null,null,null,""]
[null,null,null,null,null,null,null,null,null,null,null,null,""]
[null,null,null,null,null,null,null,null,null,null,null,null,""]
[null,null,null,null,null,null,null,null,null,null,null,null,""]
[null,null,null,null,null,null,null,null,null,null,null,null,""]
[null,null,null,null,null,null,null,null,null,null,null,null,""]
[null,null,null,null,null,null,null,null,null,null,null,null,""]
[null,null,null,null,null,null,null,null,null,null,null,null,""]
[null,null,null,null,null,null,null,null,null,null,null,null,""]
[null,null,null,null,null,null,null,null,null,null,null,null,{"$f":"IF(H1725=\"\",\"\",IF(J1725=\"Annulée\",\"Annulée\",IF(K1725<>\"\",\"Ok\",IF(J1725<>\"\",IF(J1725<TODAY(),\"Retard\",\"En cours\"),IF(I1725<>\"\",\"A planifier\",\"A Lancer\")))))","v":""}]
[null,null,null,null,null,null,null,null,null,null,null,null,""]
[null,null,null,null,null,null,null,null,null,null,null,null,""]
[null,null,null,null,null,null,null,null,null,null,null,null,""]
[null,null,null,null,null,null,null,null,null,null,null,null,""]
[null,null,null,null,null,null,null,null,null,null,null,null,""]
[null,null,null,null,null,null,null,null,null,null,null,null,""]
[null,null,null,null,null,null,null,null,null,null,null,null,""]
[null,null,null,null,null,null,null,null,null,null,null,null,""]
[null,null,null,null,null,null,null,null,null,null,null,null,""]
[null,null,null,null,null,null,null,null,null,null,null,null,""]
[null,null,null,null,null,null,null,null,null,null,null,null,""]
[null,null,null,null,null,null,null,null,null,null,null,null,""]
[null,null,null,null,null,null,null,null,null,null,null,null,""]
[null,null,null,null,null,null,null,null,null,null,null,null,""]
[null,null,null,null,null,null,null,null,null,null,null,null,""]
[null,null,null,null,null,null,null,null,null,null,null,null,""]
[null,null,null,null,null,null,null,null,null,null,null,null,""]
[null,null,null,null,null,null,null,null,null,null,null,null,""]
[null,null,null,null,null,null,null,null,null,null,null,null,""]
[null,null,null,null,null,null,null,null,null,null,null,null,""]
[null,null,null,null,null,null,null,null,null,null,null,null,""]
[null,null,null,null,null,null,null,null,null,null,null,null,""]
[null,null,null,null,null,null,null,null,null,null,null,null,""]
[null,null,null,null,null,null,null,null,null,null,null,null,""]
[null,null,null,null,null,null,null,null,null,null,null,null,""]
[null,null,null,null,null,null,null,null,null,null,null,null,""]
[null,null,null,null,null,null,null,null,null,null,null,null,""]
[null,null,null,null,null,null,null,null,null,null,null,null,""]
[null,null,null,null,null,null,null,null,null,null,null,null,""]
[null,null,null,null,null,null,null,null,null,null,null,null,""]
[null,null,null,null,null,null,null,null,null,null,null,null,""]
[null,null,null,null,null,null,null,null,null,null,null,null,""]
[null,null,null,null,null,null,null,null,null,null,null,null,""]
[null,null,null,null,null,null,null,null,null,null,null,null,""]
[null,null,null,null,null,null,null,null,null,null,null,null,""]
[null,null,null,null,null,null,null,null,null,null,null,null,""]
[null,null,null,null,null,null,null,null,null,null,null,null,""]
[null,null,null,null,null,null,null,null,null,null,null,null,""]
[null,null,null,null,null,null,null,null,null,null,null,null,""]
[null,null,null,null,null,null,null,null,null,null,null,null,""]
[null,null,null,null,null,null,null,null,null,null,null,null,""]
[null,null,null,null,null,null,null,null,null,null,null,null,""]
[null,null,null,null,null,null,null,null,null,null,null,null,""]
[null,null,null,null,null,null,null,null,null,null,null,null,""]
[null,null,null,null,null,null,null,null,null,null,null,null,""]
[null,null,null,null,null,null,null,null,null,null,null,null,""]
[null,null,null,null,null,null,null,null,null,null,null,null,""]
[null,null,null,null,null,null,null,null,null,null,null,null,""]
[null,null,null,null,null,null,null,null,null,null,null,null,""]
[null,null,null,null,null,null,null,null,null,null,null,null,""]
[null,null,null,null,null,null,null,null,null,null,null,null,""]
[null,null,null,null,null,null,null,null,null,null,null,null,""]
[null,null,null,null,null,null,null,null,null,null,null,null,""]
[null,null,null,null,null,null,null,null,null,null,null,null,""]
[null,null,null,null,null,null,null,null,null,null,null,null,""]
[null,null,null,null,null,null,null,null,null,null,null,null,""]
[null,null,null,null,null,null,null,null,null,null,null,null,""]
[null,null,null,null,null,null,null,null,null,null,null,null,""]
[null,null,null,null,null,null,null,null,null,null,null,null,""]
[null,null,null,null,null,null,null,null,null,null,null,null,""]
[null,null,null,null,null,null,null,null,null,null,null,null,""]
[null,null,null,null,null,null,null,null,null,null,null,null,""]
[null,null,null,null,null,null,null,null,null,null,null,null,""]
[null,null,null,null,null,null,null,null,null,null,null,null,{"$f":"IF(H1789=\"\",\"\",IF(J1789=\"Annulée\",\"Annulée\",IF(K1789<>\"\",\"Ok\",IF(J1789<>\"\",IF(J1789<TODAY(),\"Retard\",\"En cours\"),IF(I1789<>\"\",\"A planifier\",\"A Lancer\")))))","v":""}]
[null,null,null,null,null,null,null,null,null,null,null,null,""]
[null,null,null,null,null,null,null,null,null,null,null,null,""]
[null,null,null,null,null,null,null,null,null,null,null,null,""]
[null,null,null,null,null,null,null,null,null,null,null,null,""]
[null,null,null,null,null,null,null,null,null,null,null,null,""]
[null,null,null,null,null,null,null,null,null,null,null,null,""]
[null,null,null,null,null,null,null,null,null,null,null,null,""]
[null,null,null,null,null,null,null,null,null,null,null,null,""]
[null,null,null,null,null,null,null,null,null,null,null,null,""]
[null,null,null,null,null,null,null,null,null,null,null,null,""]
[null,null,null,null,null,null,null,null,null,null,null,null,""]
[null,null,null,null,null,null,null,null,null,null,null,null,""]
[null,null,null,null,null,null,null,null,null,null,null,null,""]
[null,null,null,null,null,null,null,null,null,null,null,null,""]
[null,null,null,null,null,null,null,null,null,null,null,null,""]
[null,null,null,null,null,null,null,null,null,null,null,null,""]
[null,null,null,null,null,null,null,null,null,null,null,null,""]
[null,null,null,null,null,null,null,null,null,null,null,null,""]
[null,null,null,null,null,null,null,null,null,null,null,null,""]
[null,null,null,null,null,null,null,null,null,null,null,null,""]
[null,null,null,null,null,null,null,null,null,null,null,null,""]
[null,null,null,null,null,null,null,null,null,null,null,null,""]
[null,null,null,null,null,null,null,null,null,null,null,null,""]
[null,null,null,null,null,null,null,null,null,null,null,null,""]
[null,null,null,null,null,null,null,null,null,null,null,null,""]
[null,null,null,null,null,null,null,null,null,null,null,null,""]
[null,null,null,null,null,null,null,null,null,null,null,null,""]
[null,null,null,null,null,null,null,null,null,null,null,null,""]
[null,null,null,null,null,null,null,null,null,null,null,null,""]
[null,null,null,null,null,null,null,null,null,null,null,null,""]
[null,null,null,null,null,null,null,null,null,null,null,null,""]
[null,null,null,null,null,null,null,null,null,null,null,null,""]
[null,null,null,null,null,null,null,null,null,null,null,null,""]
[null,null,null,null,null,null,null,null,null,null,null,null,""]
[null,null,null,null,null,null,null,null,null,null,null,null,""]
[null,null,null,null,null,null,null,null,null,null,null,null,""]
[null,null,null,null,null,null,null,null,null,null,null,null,""]
[null,null,null,null,null,null,null,null,null,null,null,null,""]
[null,null,null,null,null,null,null,null,null,null,null,null,""]
[null,null,null,null,null,null,null,null,null,null,null,null,""]
[null,null,null,null,null,null,null,null,null,null,null,null,""]
[null,null,null,null,null,null,null,null,null,null,null,null,""]
[null,null,null,null,null,null,null,null,null,null,null,null,""]
[null,null,null,null,null,null,null,null,null,null,null,null,""]
[null,null,null,null,null,null,null,null,null,null,null,null,""]
[null,null,null,null,null,null,null,null,null,null,null,null,""]
[null,null,null,null,null,null,null,null,null,null,null,null,""]
[null,null,null,null,null,null,null,null,null,null,null,null,""]
[null,null,null,null,null,null,null,null,null,null,null,null,""]
[null,null,null,null,null,null,null,null,null,null,null,null,""]
[null,null,null,null,null,null,null,null,null,null,null,null,""]
[null,null,null,null,null,null,null,null,null,null,null,null,""]
[null,null,null,null,null,null,null,null,null,null,null,null,""]
[null,null,null,null,null,null,null,null,null,null,null,null,""]
[null,null,null,null,null,null,null,null,null,null,null,null,""]
[null,null,null,null,null,null,null,null,null,null,null,null,""]
[null,null,null,null,null,null,null,null,null,null,null,null,""]
[null,null,null,null,null,null,null,null,null,null,null,null,""]
[null,null,null,null,null,null,null,null,null,null,null,null,""]
[null,null,null,null,null,null,null,null,null,null,null,null,""]
[null,null,null,null,null,null,null,null,null,null,null,null,""]
[null,null,null,null,null,null,null,null,null,null,null,null,""]
[null,null,null,null,null,null,null,null,null,null,null,null,""]
[null,null,null,null,null,null,null,null,null,null,null,null,{"$f":"IF(H1853=\"\",\"\",IF(J1853=\"Annulée\",\"Annulée\",IF(K1853<>\"\",\"Ok\",IF(J1853<>\"\",IF(J1853<TODAY(),\"Retard\",\"En cours\"),IF(I1853<>\"\",\"A planifier\",\"A Lancer\")))))","v":""}]
[null,null,null,null,null,null,null,null,null,null,null,null,""]
[null,null,null,null,null,null,null,null,null,null,null,null,""]
[null,null,null,null,null,null,null,null,null,null,null,null,""]
[null,null,null,null,null,null,null,null,null,null,null,null,""]
[null,null,null,null,null,null,null,null,null,null,null,null,""]
[null,null,null,null,null,null,null,null,null,null,null,null,""]
[null,null,null,null,null,null,null,null,null,null,null,null,""]
[null,null,null,null,null,null,null,null,null,null,null,null,""]
[null,null,null,null,null,null,null,null,null,null,null,null,""]
[null,null,null,null,null,null,null,null,null,null,null,null,""]
[null,null,null,null,null,null,null,null,null,null,null,null,""]
[null,null,null,null,null,null,null,null,null,null,null,null,""]
[null,null,null,null,null,null,null,null,null,null,null,null,""]
[null,null,null,null,null,null,null,null,null,null,null,null,""]
[null,null,null,null,null,null,null,null,null,null,null,null,""]
[null,null,null,null,null,null,null,null,null,null,null,null,""]
[null,null,null,null,null,null,null,null,null,null,null,null,""]
[null,null,null,null,null,null,null,null,null,null,null,null,""]
[null,null,null,null,null,null,null,null,null,null,null,null,""]
[null,null,null,null,null,null,null,null,null,null,null,null,""]
[null,null,null,null,null,null,null,null,null,null,null,null,""]
[null,null,null,null,null,null,null,null,null,null,null,null,""]
[null,null,null,null,null,null,null,null,null,null,null,null,""]
[null,null,null,null,null,null,null,null,null,null,null,null,""]
[null,null,null,null,null,null,null,null,null,null,null,null,""]
[null,null,null,null,null,null,null,null,null,null,null,null,""]
[null,null,null,null,null,null,null,null,null,null,null,null,""]
[null,null,null,null,null,null,null,null,null,null,null,null,""]
[null,null,null,null,null,null,null,null,null,null,null,null,""]
[null,null,null,null,null,null,null,null,null,null,null,null,""]
[null,null,null,null,null,null,null,null,null,null,null,null,""]
[null,null,null,null,null,null,null,null,null,null,null,null,""]
[null,null,null,null,null,null,null,null,null,null,null,null,""]
[null,null,null,null,null,null,null,null,null,null,null,null,""]
[null,null,null,null,null,null,null,null,null,null,null,null,""]
[null,null,null,null,null,null,null,null,null,null,null,null,""]
[null,null,null,null,null,null,null,null,null,null,null,null,""]
[null,null,null,null,null,null,null,null,null,null,null,null,""]
[null,null,null,null,null,null,null,null,null,null,null,null,""]
[null,null,null,null,null,null,null,null,null,null,null,null,""]
[null,null,null,null,null,null,null,null,null,null,null,null,""]
[null,null,null,null,null,null,null,null,null,null,null,null,""]
[null,null,null,null,null,null,null,null,null,null,null,null,""]
[null,null,null,null,null,null,null,null,null,null,null,null,""]
[null,null,null,null,null,null,null,null,null,null,null,null,""]
[null,null,null,null,null,null,null,null,null,null,null,null,""]
[null,null,null,null,null,null,null,null,null,null,null,null,""]
[null,null,null,null,null,null,null,null,null,null,null,null,""]
[null,null,null,null,null,null,null,null,null,null,null,null,""]
[null,null,null,null,null,null,null,null,null,null,null,null,""]
[null,null,null,null,null,null,null,null,null,null,null,null,""]
[null,null,null,null,null,null,null,null,null,null,null,null,""]
[null,null,null,null,null,null,null,null,null,null,null,null,""]
[null,null,null,null,null,null,null,null,null,null,null,null,""]
[null,null,null,null,null,null,null,null,null,null,null,null,""]
[null,null,null,null,null,null,null,null,null,null,null,null,""]
[null,null,null,null,null,null,null,null,null,null,null,null,""]
[null,null,null,null,null,null,null,null,null,null,null,null,""]
[null,null,null,null,null,null,null,null,null,null,null,null,""]
[null,null,null,null,null,null,null,null,null,null,null,null,""]
[null,null,null,null,null,null,null,null,null,null,null,null,""]
[null,null,null,null,null,null,null,null,null,null,null,null,""]
[null,null,null,null,null,null,null,null,null,null,null,null,""]
[null,null,null,null,null,null,null,null,null,null,null,null,{"$f":"IF(H1917=\"\",\"\",IF(J1917=\"Annulée\",\"Annulée\",IF(K1917<>\"\",\"Ok\",IF(J1917<>\"\",IF(J1917<TODAY(),\"Retard\",\"En cours\"),IF(I1917<>\"\",\"A planifier\",\"A Lancer\")))))","v":""}]
[null,null,null,null,null,null,null,null,null,null,null,null,""]
[null,null,null,null,null,null,null,null,null,null,null,null,""]
[null,null,null,null,null,null,null,null,null,null,null,null,""]
[null,null,null,null,null,null,null,null,null,null,null,null,""]
[null,null,null,null,null,null,null,null,null,null,null,null,""]
[null,null,null,null,null,null,null,null,null,null,null,null,""]
[null,null,null,null,null,null,null,null,null,null,null,null,""]
[null,null,null,null,null,null,null,null,null,null,null,null,""]
[null,null,null,null,null,null,null,null,null,null,null,null,""]
[null,null,null,null,null,null,null,null,null,null,null,null,""]
[null,null,null,null,null,null,null,null,null,null,null,null,""]
[null,null,null,null,null,null,null,null,null,null,null,null,""]
[null,null,null,null,null,null,null,null,null,null,null,null,""]
[null,null,null,null,null,null,null,null,null,null,null,null,""]
[null,null,null,null,null,null,null,null,null,null,null,null,""]
[null,null,null,null,null,null,null,null,null,null,null,null,""]
[null,null,null,null,null,null,null,null,null,null,null,null,""]
[null,null,null,null,null,null,null,null,null,null,null,null,""]
[null,null,null,null,null,null,null,null,null,null,null,null,""]
[null,null,null,null,null,null,null,null,null,null,null,null,""]
[null,null,null,null,null,null,null,null,null,null,null,null,""]
[null,null,null,null,null,null,null,null,null,null,null,null,""]
[null,null,null,null,null,null,null,null,null,null,null,null,""]
[null,null,null,null,null,null,null,null,null,null,null,null,""]
[null,null,null,null,null,null,null,null,null,null,null,null,""]
[null,null,null,null,null,null,null,null,null,null,null,null,""]
[null,null,null,null,null,null,null,null,null,null,null,null,""]
[null,null,null,null,null,null,null,null,null,null,null,null,""]
[null,null,null,null,null,null,null,null,null,null,null,null,""]
[null,null,null,null,null,null,null,null,null,null,null,null,""]
[null,null,null,null,null,null,null,null,null,null,null,null,""]
[null,null,null,null,null,null,null,null,null,null,null,null,""]
[null,null,null,null,null,null,null,null,null,null,null,null,""]
[null,null,null,null,null,null,null,null,null,null,null,null,""]
[null,null,null,null,null,null,null,null,null,null,null,null,""]
[null,null,null,null,null,null,null,null,null,null,null,null,""]
[null,null,null,null,null,null,null,null,null,null,null,null,""]
[null,null,null,null,null,null,null,null,null,null,null,null,""]
[null,null,null,null,null,null,null,null,null,null,null,null,""]
[null,null,null,null,null,null,null,null,null,null,null,null,""]
[null,null,null,null,null,null,null,null,null,null,null,null,""]
[null,null,null,null,null,null,null,null,null,null,null,null,""]
[null,null,null,null,null,null,null,null,null,null,null,null,""]
[null,null,null,null,null,null,null,null,null,null,null,null,""]
[null,null,null,null,null,null,null,null,null,null,null,null,""]
[null,null,null,null,null,null,null,null,null,null,null,null,""]
[null,null,null,null,null,null,null,null,null,null,null,null,""]
[null,null,null,null,null,null,null,null,null,null,null,null,""]
[null,null,null,null,null,null,null,null,null,null,null,null,""]
[null,null,null,null,null,null,null,null,null,null,null,null,""]
[null,null,null,null,null,null,null,null,null,null,null,null,""]
[null,null,null,null,null,null,null,null,null,null,null,null,""]
[null,null,null,null,null,null,null,null,null,null,null,null,""]
[null,null,null,null,null,null,null,null,null,null,null,null,""]
[null,null,null,null,null,null,null,null,null,null,null,null,""]
[null,null,null,null,null,null,null,null,null,null,null,null,""]
[null,null,null,null,null,null,null,null,null,null,null,null,""]
[null,null,null,null,null,null,null,null,null,null,null,null,""]
[null,null,null,null,null,null,null,null,null,null,null,null,""]
[null,null,null,null,null,null,null,null,null,null,null,null,""]
[null,null,null,null,null,null,null,null,null,null,null,null,""]
[null,null,null,null,null,null,null,null,null,null,null,null,""]
[null,null,null,null,null,null,null,null,null,null,null,null,""]
[null,null,null,null,null,null,null,null,null,null,null,null,{"$f":"IF(H1981=\"\",\"\",IF(J1981=\"Annulée\",\"Annulée\",IF(K1981<>\"\",\"Ok\",IF(J1981<>\"\",IF(J1981<TODAY(),\"Retard\",\"En cours\"),IF(I1981<>\"\",\"A planifier\",\"A Lancer\")))))","v":""}]
[null,null,null,null,null,null,null,null,null,null,null,null,""]
[null,null,null,null,null,null,null,null,null,null,null,null,""]
[null,null,null,null,null,null,null,null,null,null,null,null,""]
[null,null,null,null,null,null,null,null,null,null,null,null,""]
[null,null,null,null,null,null,null,null,null,null,null,null,""]
[null,null,null,null,null,null,null,null,null,null,null,null,""]
[null,null,null,null,null,null,null,null,null,null,null,null,""]
[null,null,null,null,null,null,null,null,null,null,null,null,""]
[null,null,null,null,null,null,null,null,null,null,null,null,""]
[null,null,null,null,null,null,null,null,null,null,null,null,""]
[null,null,null,null,null,null,null,null,null,null,null,null,""]
[null,null,null,null,null,null,null,null,null,null,null,null,""]
[null,null,null,null,null,null,null,null,null,null,null,null,""]
[null,null,null,null,null,null,null,null,null,null,null,null,""]
[null,null,null,null,null,null,null,null,null,null,null,null,""]
[null,null,null,null,null,null,null,null,null,null,null,null,""]
[null,null,null,null,null,null,null,null,null,null,null,null,""]
[null,null,null,null,null,null,null,null,null,null,null,null,""]
[null,null,null,null,null,null,null,null,null,null,null,null,""]
[null,null,null,null,null,null,null,null,null,null,null,null,""]
[null,null,null,null,null,null,null,null,null,null,null,null,""]
[null,null,null,null,null,null,null,null,null,null,null,null,""]
[null,null,null,null,null,null,null,null,null,null,null,null,""]
[null,null,null,null,null,null,null,null,null,null,null,null,""]
[null,null,null,null,null,null,null,null,null,null,null,null,""]
[null,null,null,null,null,null,null,null,null,null,null,null,""]
[null,null,null,null,null,null,null,null,null,null,null,null,""]
[null,null,null,null,null,null,null,null,null,null,null,null,""]
[null,null,null,null,null,null,null,null,null,null,null,null,""]
[null,null,null,null,null,null,null,null,null,null,null,null,""]
[null,null,null,null,null,null,null,null,null,null,null,null,""]
[null,null,null,null,null,null,null,null,null,null,null,null,""]
[null,null,null,null,null,null,null,null,null,null,null,null,""]
[null,null,null,null,null,null,null,null,null,null,null,null,""]
[null,null,null,null,null,null,null,null,null,null,null,null,""]
[null,null,null,null,null,null,null,null,null,null,null,null,""]
[null,null,null,null,null,null,null,null,null,null,null,null,""]
[null,null,null,null,null,null,null,null,null,null,null,null,""]
[null,null,null,null,null,null,null,null,null,null,null,null,""]
[null,null,null,null,null,null,null,null,null,null,null,null,""]
[null,null,null,null,null,null,null,null,null,null,null,null,""]
[null,null,null,null,null,null,null,null,null,null,null,null,""]
[null,null,null,null,null,null,null,null,null,null,null,null,""]
[null,null,null,null,null,null,null,null,null,null,null,null,""]
[null,null,null,null,null,null,null,null,null,null,null,null,""]
[null,null,null,null,null,null,null,null,null,null,null,null,""]
[null,null,null,null,null,null,null,null,null,null,null,null,""]
[null,null,null,null,null,null,null,null,null,null,null,null,""]
[null,null,null,null,null,null,null,null,null,null,null,null,""]
[null,null,null,null,null,null,null,null,null,null,null,null,""]
[null,null,null,null,null,null,null,null,null,null,null,null,""]
[null,null,null,null,null,null,null,null,null,null,null,null,""]
[null,null,null,null,null,null,null,null,null,null,null,null,""]
[null,null,null,null,null,null,null,null,null,null,null,null,""]
[null,null,null,null,null,null,null,null,null,null,null,null,""]
[null,null,null,null,null,null,null,null,null,null,null,null,""]
[null,null,null,null,null,null,null,null,null,null,null,null,""]
[null,null,null,null,null,null,null,null,null,null,null,null,""]
[null,null,null,null,null,null,null,null,null,null,null,null,""]
[null,null,null,null,null,null,null,null,null,null,null,null,""]
[null,null,null,null,null,null,null,null,null,null,null,null,""]
[null,null,null,null,null,null,null,null,null,null,null,null,""]
[null,null,null,null,null,null,null,null,null,null,null,null,""]
[null,null,null,null,null,null,null,null,null,null,null,null,{"$f":"IF(H2045=\"\",\"\",IF(J2045=\"Annulée\",\"Annulée\",IF(K2045<>\"\",\"Ok\",IF(J2045<>\"\",IF(J2045<TODAY(),\"Retard\",\"En cours\"),IF(I2045<>\"\",\"A planifier\",\"A Lancer\")))))","v":""}]
[null,null,null,null,null,null,null,null,null,null,null,null,""]
[null,null,null,null,null,null,null,null,null,null,null,null,""]
[null,null,null,null,null,null,null,null,null,null,null,null,""]
[null,null,null,null,null,null,null,null,null,null,null,null,""]
[null,null,null,null,null,null,null,null,null,null,null,null,""]
[null,null,null,null,null,null,null,null,null,null,null,null,""]
[null,null,null,null,null,null,null,null,null,null,null,null,""]
[null,null,null,null,null,null,null,null,null,null,null,null,""]
[null,null,null,null,null,null,null,null,null,null,null,null,""]
[null,null,null,null,null,null,null,null,null,null,null,null,""]
[null,null,null,null,null,null,null,null,null,null,null,null,""]
[null,null,null,null,null,null,null,null,null,null,null,null,""]
[null,null,null,null,null,null,null,null,null,null,null,null,""]
[null,null,null,null,null,null,null,null,null,null,null,null,""]
[null,null,null,null,null,null,null,null,null,null,null,null,""]
[null,null,null,null,null,null,null,null,null,null,null,null,""]
[null,null,null,null,null,null,null,null,null,null,null,null,""]
[null,null,null,null,null,null,null,null,null,null,null,null,""]
[null,null,null,null,null,null,null,null,null,null,null,null,""]
[null,null,null,null,null,null,null,null,null,null,null,null,""]
[null,null,null,null,null,null,null,null,null,null,null,null,""]
[null,null,null,null,null,null,null,null,null,null,null,null,""]
[null,null,null,null,null,null,null,null,null,null,null,null,""]
[null,null,null,null,null,null,null,null,null,null,null,null,""]
[null,null,null,null,null,null,null,null,null,null,null,null,""]
[null,null,null,null,null,null,null,null,null,null,null,null,""]
[null,null,null,null,null,null,null,null,null,null,null,null,""]
[null,null,null,null,null,null,null,null,null,null,null,null,""]
[null,null,null,null,null,null,null,null,null,null,null,null,""]
[null,null,null,null,null,null,null,null,null,null,null,null,""]
[null,null,null,null,null,null,null,null,null,null,null,null,""]
[null,null,null,null,null,null,null,null,null,null,null,null,""]
[null,null,null,null,null,null,null,null,null,null,null,null,""]
[null,null,null,null,null,null,null,null,null,null,null,null,""]
[null,null,null,null,null,null,null,null,null,null,null,null,""]
[null,null,null,null,null,null,null,null,null,null,null,null,""]
[null,null,null,null,null,null,null,null,null,null,null,null,""]
[null,null,null,null,null,null,null,null,null,null,null,null,""]
[null,null,null,null,null,null,null,null,null,null,null,null,""]
[null,null,null,null,null,null,null,null,null,null,null,null,""]
[null,null,null,null,null,null,null,null,null,null,null,null,""]
[null,null,null,null,null,null,null,null,null,null,null,null,""]
[null,null,null,null,null,null,null,null,null,null,null,null,""]
[null,null,null,null,null,null,null,null,null,null,null,null,""]
[null,null,null,null,null,null,null,null,null,null,null,null,""]
[null,null,null,null,null,null,null,null,null,null,null,null,""]
[null,null,null,null,null,null,null,null,null,null,null,null,""]
[null,null,null,null,null,null,null,null,null,null,null,null,""]
[null,null,null,null,null,null,null,null,null,null,null,null,""]
[null,null,null,null,null,null,null,null,null,null,null,null,""]
[null,null,null,null,null,null,null,null,null,null,null,null,""]
[null,null,null,null,null,null,null,null,null,null,null,null,""]
[null,null,null,null,null,null,null,null,null,null,null,null,""]
[null,null,null,null,null,null,null,null,null,null,null,null,""]
[null,null,null,null,null,null,null,null,null,null,null,null,""]
[null,null,null,null,null,null,null,null,null,null,null,null,""]
[null,null,null,null,null,null,null,null,null,null,null,null,""]
[null,null,null,null,null,null,null,null,null,null,null,null,""]
[null,null,null,null,null,null,null,null,null,null,null,null,""]
[null,null,null,null,null,null,null,null,null,null,null,null,""]
[null,null,null,null,null,null,null,null,null,null,null,null,""]
[null,null,null,null,null,null,null,null,null,null,null,null,""]
[null,null,null,null,null,null,null,null,null,null,null,null,""]
[null,null,null,null,null,null,null,null,null,null,null,null,{"$f":"IF(H2109=\"\",\"\",IF(J2109=\"Annulée\",\"Annulée\",IF(K2109<>\"\",\"Ok\",IF(J2109<>\"\",IF(J2109<TODAY(),\"Retard\",\"En cours\"),IF(I2109<>\"\",\"A planifier\",\"A Lancer\")))))","v":""}]
[null,null,null,null,null,null,null,null,null,null,null,null,""]
[null,null,null,null,null,null,null,null,null,null,null,null,""]
[null,null,null,null,null,null,null,null,null,null,null,null,""]
[null,null,null,null,null,null,null,null,null,null,null,null,""]
[null,null,null,null,null,null,null,null,null,null,null,null,""]
[null,null,null,null,null,null,null,null,null,null,null,null,""]
[null,null,null,null,null,null,null,null,null,null,null,null,""]
[null,null,null,null,null,null,null,null,null,null,null,null,""]
[null,null,null,null,null,null,null,null,null,null,null,null,""]
[null,null,null,null,null,null,null,null,null,null,null,null,""]
[null,null,null,null,null,null,null,null,null,null,null,null,""]
[null,null,null,null,null,null,null,null,null,null,null,null,""]
[null,null,null,null,null,null,null,null,null,null,null,null,""]
[null,null,null,null,null,null,null,null,null,null,null,null,""]
[null,null,null,null,null,null,null,null,null,null,null,null,""]
[null,null,null,null,null,null,null,null,null,null,null,null,""]
[null,null,null,null,null,null,null,null,null,null,null,null,""]
[null,null,null,null,null,null,null,null,null,null,null,null,""]
[null,null,null,null,null,null,null,null,null,null,null,null,""]
[null,null,null,null,null,null,null,null,null,null,null,null,""]
[null,null,null,null,null,null,null,null,null,null,null,null,""]
[null,null,null,null,null,null,null,null,null,null,null,null,""]
[null,null,null,null,null,null,null,null,null,null,null,null,""]
[null,null,null,null,null,null,null,null,null,null,null,null,""]
[null,null,null,null,null,null,null,null,null,null,null,null,""]
[null,null,null,null,null,null,null,null,null,null,null,null,""]
[null,null,null,null,null,null,null,null,null,null,null,null,""]
[null,null,null,null,null,null,null,null,null,null,null,null,""]
[null,null,null,null,null,null,null,null,null,null,null,null,""]
[null,null,null,null,null,null,null,null,null,null,null,null,""]
[null,null,null,null,null,null,null,null,null,null,null,null,""]
[null,null,null,null,null,null,null,null,null,null,null,null,""]
[null,null,null,null,null,null,null,null,null,null,null,null,""]
[null,null,null,null,null,null,null,null,null,null,null,null,""]
[null,null,null,null,null,null,null,null,null,null,null,null,""]
[null,null,null,null,null,null,null,null,null,null,null,null,""]
[null,null,null,null,null,null,null,null,null,null,null,null,""]
[null,null,null,null,null,null,null,null,null,null,null,null,""]
[null,null,null,null,null,null,null,null,null,null,null,null,""]
[null,null,null,null,null,null,null,null,null,null,null,null,""]
[null,null,null,null,null,null,null,null,null,null,null,null,""]
[null,null,null,null,null,null,null,null,null,null,null,null,""]
[null,null,null,null,null,null,null,null,null,null,null,null,""]
[null,null,null,null,null,null,null,null,null,null,null,null,""]
[null,null,null,null,null,null,null,null,null,null,null,null,""]
[null,null,null,null,null,null,null,null,null,null,null,null,""]
[null,null,null,null,null,null,null,null,null,null,null,null,""]
[null,null,null,null,null,null,null,null,null,null,null,null,""]
[null,null,null,null,null,null,null,null,null,null,null,null,""]
[null,null,null,null,null,null,null,null,null,null,null,null,""]
[null,null,null,null,null,null,null,null,null,null,null,null,""]
[null,null,null,null,null,null,null,null,null,null,null,null,""]
[null,null,null,null,null,null,null,null,null,null,null,null,""]
[null,null,null,null,null,null,null,null,null,null,null,null,""]
[null,null,null,null,null,null,null,null,null,null,null,null,""]
[null,null,null,null,null,null,null,null,null,null,null,null,""]
[null,null,null,null,null,null,null,null,null,null,null,null,""]
[null,null,null,null,null,null,null,null,null,null,null,null,""]
[null,null,null,null,null,null,null,null,null,null,null,null,""]
[null,null,null,null,null,null,null,null,null,null,null,null,""]
[null,null,null,null,null,null,null,null,null,null,null,null,""]
[null,null,null,null,null,null,null,null,null,null,null,null,""]
[null,null,null,null,null,null,null,null,null,null,null,null,""]
[null,null,null,null,null,null,null,null,null,null,null,null,{"$f":"IF(H2173=\"\",\"\",IF(J2173=\"Annulée\",\"Annulée\",IF(K2173<>\"\",\"Ok\",IF(J2173<>\"\",IF(J2173<TODAY(),\"Retard\",\"En cours\"),IF(I2173<>\"\",\"A planifier\",\"A Lancer\")))))","v":""}]
[null,null,null,null,null,null,null,null,null,null,null,null,""]
[null,null,null,null,null,null,null,null,null,null,null,null,""]
[null,null,null,null,null,null,null,null,null,null,null,null,""]
[null,null,null,null,null,null,null,null,null,null,null,null,""]
[null,null,null,null,null,null,null,null,null,null,null,null,""]
[null,null,null,null,null,null,null,null,null,null,null,null,""]
[null,null,null,null,null,null,null,null,null,null,null,null,""]
[null,null,null,null,null,null,null,null,null,null,null,null,""]
[null,null,null,null,null,null,null,null,null,null,null,null,""]
[null,null,null,null,null,null,null,null,null,null,null,null,""]
[null,null,null,null,null,null,null,null,null,null,null,null,""]
[null,null,null,null,null,null,null,null,null,null,null,null,""]
[null,null,null,null,null,null,null,null,null,null,null,null,""]
[null,null,null,null,null,null,null,null,null,null,null,null,""]
[null,null,null,null,null,null,null,null,null,null,null,null,""]
[null,null,null,null,null,null,null,null,null,null,null,null,""]
[null,null,null,null,null,null,null,null,null,null,null,null,""]
[null,null,null,null,null,null,null,null,null,null,null,null,""]
[null,null,null,null,null,null,null,null,null,null,null,null,""]
[null,null,null,null,null,null,null,null,null,null,null,null,""]
[null,null,null,null,null,null,null,null,null,null,null,null,""]
[null,null,null,null,null,null,null,null,null,null,null,null,""]
[null,null,null,null,null,null,null,null,null,null,null,null,""]
[null,null,null,null,null,null,null,null,null,null,null,null,""]
[null,null,null,null,null,null,null,null,null,null,null,null,""]
[null,null,null,null,null,null,null,null,null,null,null,null,""]
[null,null,null,null,null,null,null,null,null,null,null,null,""]
[null,null,null,null,null,null,null,null,null,null,null,null,""]
[null,null,null,null,null,null,null,null,null,null,null,null,""]
[null,null,null,null,null,null,null,null,null,null,null,null,""]
[null,null,null,null,null,null,null,null,null,null,null,null,""]
[null,null,null,null,null,null,null,null,null,null,null,null,""]
[null,null,null,null,null,null,null,null,null,null,null,null,""]
[null,null,null,null,null,null,null,null,null,null,null,null,""]
[null,null,null,null,null,null,null,null,null,null,null,null,""]
[null,null,null,null,null,null,null,null,null,null,null,null,""]
[null,null,null,null,null,null,null,null,null,null,null,null,""]
[null,null,null,null,null,null,null,null,null,null,null,null,""]
[null,null,null,null,null,null,null,null,null,null,null,null,""]
[null,null,null,null,null,null,null,null,null,null,null,null,""]
[null,null,null,null,null,null,null,null,null,null,null,null,""]
[null,null,null,null,null,null,null,null,null,null,null,null,""]
[null,null,null,null,null,null,null,null,null,null,null,null,""]
[null,null,null,null,null,null,null,null,null,null,null,null,""]
[null,null,null,null,null,null,null,null,null,null,null,null,""]
[null,null,null,null,null,null,null,null,null,null,null,null,""]
[null,null,null,null,null,null,null,null,null,null,null,null,""]
[null,null,null,null,null,null,null,null,null,null,null,null,""]
[null,null,null,null,null,null,null,null,null,null,null,null,""]
[null,null,null,null,null,null,null,null,null,null,null,null,""]
[null,null,null,null,null,null,null,null,null,null,null,null,""]
[null,null,null,null,null,null,null,null,null,null,null,null,""]
[null,null,null,null,null,null,null,null,null,null,null,null,""]
[null,null,null,null,null,null,null,null,null,null,null,null,""]
[null,null,null,null,null,null,null,null,null,null,null,null,""]
[null,null,null,null,null,null,null,null,null,null,null,null,""]
[null,null,null,null,null,null,null,null,null,null,null,null,""]
[null,null,null,null,null,null,null,null,null,null,null,null,""]
[null,null,null,null,null,null,null,null,null,null,null,null,""]
[null,null,null,null,null,null,null,null,null,null,null,null,""]
[null,null,null,null,null,null,null,null,null,null,null,null,""]
[null,null,null,null,null,null,null,null,null,null,null,null,""]
[null,null,null,null,null,null,null,null,null,null,null,null,""]
[null,null,null,null,null,null,null,null,null,null,null,null,{"$f":"IF(H2237=\"\",\"\",IF(J2237=\"Annulée\",\"Annulée\",IF(K2237<>\"\",\"Ok\",IF(J2237<>\"\",IF(J2237<TODAY(),\"Retard\",\"En cours\"),IF(I2237<>\"\",\"A planifier\",\"A Lancer\")))))","v":""}]
[null,null,null,null,null,null,null,null,null,null,null,null,""]
[null,null,null,null,null,null,null,null,null,null,null,null,""]
[null,null,null,null,null,null,null,null,null,null,null,null,""]
[null,null,null,null,null,null,null,null,null,null,null,null,""]
[null,null,null,null,null,null,null,null,null,null,null,null,""]
[null,null,null,null,null,null,null,null,null,null,null,null,""]
[null,null,null,null,null,null,null,null,null,null,null,null,""]
[null,null,null,null,null,null,null,null,null,null,null,null,""]
[null,null,null,null,null,null,null,null,null,null,null,null,""]
[null,null,null,null,null,null,null,null,null,null,null,null,""]
[null,null,null,null,null,null,null,null,null,null,null,null,""]
[null,null,null,null,null,null,null,null,null,null,null,null,""]
[null,null,null,null,null,null,null,null,null,null,null,null,""]
[null,null,null,null,null,null,null,null,null,null,null,null,""]
[null,null,null,null,null,null,null,null,null,null,null,null,""]
[null,null,null,null,null,null,null,null,null,null,null,null,""]
[null,null,null,null,null,null,null,null,null,null,null,null,""]
[null,null,null,null,null,null,null,null,null,null,null,null,""]
[null,null,null,null,null,null,null,null,null,null,null,null,""]
[null,null,null,null,null,null,null,null,null,null,null,null,""]
[null,null,null,null,null,null,null,null,null,null,null,null,""]
[null,null,null,null,null,null,null,null,null,null,null,null,""]
[null,null,null,null,null,null,null,null,null,null,null,null,""]
[null,null,null,null,null,null,null,null,null,null,null,null,""]
[null,null,null,null,null,null,null,null,null,null,null,null,""]
[null,null,null,null,null,null,null,null,null,null,null,null,""]
[null,null,null,null,null,null,null,null,null,null,null,null,""]
[null,null,null,null,null,null,null,null,null,null,null,null,""]
[null,null,null,null,null,null,null,null,null,null,null,null,""]
[null,null,null,null,null,null,null,null,null,null,null,null,""]
[null,null,null,null,null,null,null,null,null,null,null,null,""]
[null,null,null,null,null,null,null,null,null,null,null,null,""]
[null,null,null,null,null,null,null,null,null,null,null,null,""]
[null,null,null,null,null,null,null,null,null,null,null,null,""]
[null,null,null,null,null,null,null,null,null,null,null,null,""]
[null,null,null,null,null,null,null,null,null,null,null,null,""]
[null,null,null,null,null,null,null,null,null,null,null,null,""]
[null,null,null,null,null,null,null,null,null,null,null,null,""]
[null,null,null,null,null,null,null,null,null,null,null,null,""]
[null,null,null,null,null,null,null,null,null,null,null,null,""]
[null,null,null,null,null,null,null,null,null,null,null,null,""]
[null,null,null,null,null,null,null,null,null,null,null,null,""]
[null,null,null,null,null,null,null,null,null,null,null,null,""]
[null,null,null,null,null,null,null,null,null,null,null,null,""]
[null,null,null,null,null,null,null,null,null,null,null,null,""]
[null,null,null,null,null,null,null,null,null,null,null,null,""]
[null,null,null,null,null,null,null,null,null,null,null,null,""]
[null,null,null,null,null,null,null,null,null,null,null,null,""]
[null,null,null,null,null,null,null,null,null,null,null,null,""]
[null,null,null,null,null,null,null,null,null,null,null,null,""]
[null,null,null,null,null,null,null,null,null,null,null,null,""]
[null,null,null,null,null,null,null,null,null,null,null,null,""]
[null,null,null,null,null,null,null,null,null,null,null,null,""]
[null,null,null,null,null,null,null,null,null,null,null,null,""]
[null,null,null,null,null,null,null,null,null,null,null,null,""]
[null,null,null,null,null,null,null,null,null,null,null,null,""]
[null,null,null,null,null,null,null,null,null,null,null,null,""]
[null,null,null,null,null,null,null,null,null,null,null,null,""]
[null,null,null,null,null,null,null,null,null,null,null,null,""]
[null,null,null,null,null,null,null,null,null,null,null,null,""]
[null,null,null,null,null,null,null,null,null,null,null,null,""]
[null,null,null,null,null,null,null,null,null,null,null,null,""]
[null,null,null,null,null,null,null,null,null,null,null,null,""]
[null,null,null,null,null,null,null,null,null,null,null,null,{"$f":"IF(H2301=\"\",\"\",IF(J2301=\"Annulée\",\"Annulée\",IF(K2301<>\"\",\"Ok\",IF(J2301<>\"\",IF(J2301<TODAY(),\"Retard\",\"En cours\"),IF(I2301<>\"\",\"A planifier\",\"A Lancer\")))))","v":""}]
[null,null,null,null,null,null,null,null,null,null,null,null,""]
[null,null,null,null,null,null,null,null,null,null,null,null,""]
[null,null,null,null,null,null,null,null,null,null,null,null,""]
[null,null,null,null,null,null,null,null,null,null,null,null,""]
[null,null,null,null,null,null,null,null,null,null,null,null,""]
[null,null,null,null,null,null,null,null,null,null,null,null,""]
[null,null,null,null,null,null,null,null,null,null,null,null,""]
[null,null,null,null,null,null,null,null,null,null,null,null,""]
[null,null,null,null,null,null,null,null,null,null,null,null,""]
[null,null,null,null,null,null,null,null,null,null,null,null,""]
[null,null,null,null,null,null,null,null,null,null,null,null,""]
[null,null,null,null,null,null,null,null,null,null,null,null,""]
[null,null,null,null,null,null,null,null,null,null,null,null,""]
[null,null,null,null,null,null,null,null,null,null,null,null,""]
[null,null,null,null,null,null,null,null,null,null,null,null,""]
[null,null,null,null,null,null,null,null,null,null,null,null,""]
[null,null,null,null,null,null,null,null,null,null,null,null,""]
[null,null,null,null,null,null,null,null,null,null,null,null,""]
[null,null,null,null,null,null,null,null,null,null,null,null,""]
[null,null,null,null,null,null,null,null,null,null,null,null,""]
[null,null,null,null,null,null,null,null,null,null,null,null,""]
[null,null,null,null,null,null,null,null,null,null,null,null,""]
[null,null,null,null,null,null,null,null,null,null,null,null,""]
[null,null,null,null,null,null,null,null,null,null,null,null,""]
[null,null,null,null,null,null,null,null,null,null,null,null,""]
[null,null,null,null,null,null,null,null,null,null,null,null,""]
[null,null,null,null,null,null,null,null,null,null,null,null,""]
[null,null,null,null,null,null,null,null,null,null,null,null,""]
[null,null,null,null,null,null,null,null,null,null,null,null,""]
[null,null,null,null,null,null,null,null,null,null,null,null,""]
[null,null,null,null,null,null,null,null,null,null,null,null,""]
[null,null,null,null,null,null,null,null,null,null,null,null,""]
[null,null,null,null,null,null,null,null,null,null,null,null,""]
[null,null,null,null,null,null,null,null,null,null,null,null,""]
[null,null,null,null,null,null,null,null,null,null,null,null,""]
[null,null,null,null,null,null,null,null,null,null,null,null,""]
[null,null,null,null,null,null,null,null,null,null,null,null,""]
[null,null,null,null,null,null,null,null,null,null,null,null,""]
[null,null,null,null,null,null,null,null,null,null,null,null,""]
[null,null,null,null,null,null,null,null,null,null,null,null,""]
[null,null,null,null,null,null,null,null,null,null,null,null,""]
[null,null,null,null,null,null,null,null,null,null,null,null,""]
[null,null,null,null,null,null,null,null,null,null,null,null,""]
[null,null,null,null,null,null,null,null,null,null,null,null,""]
[null,null,null,null,null,null,null,null,null,null,null,null,""]
[null,null,null,null,null,null,null,null,null,null,null,null,""]
[null,null,null,null,null,null,null,null,null,null,null,null,""]
[null,null,null,null,null,null,null,null,null,null,null,null,""]
[null,null,null,null,null,null,null,null,null,null,null,null,""]
[null,null,null,null,null,null,null,null,null,null,null,null,""]
[null,null,null,null,null,null,null,null,null,null,null,null,""]
[null,null,null,null,null,null,null,null,null,null,null,null,""]
[null,null,null,null,null,null,null,null,null,null,null,null,""]
[null,null,null,null,null,null,null,null,null,null,null,null,""]
[null,null,null,null,null,null,null,null,null,null,null,null,""]
[null,null,null,null,null,null,null,null,null,null,null,null,""]
[null,null,null,null,null,null,null,null,null,null,null,null,""]
[null,null,null,null,null,null,null,null,null,null,null,null,""]
[null,null,null,null,null,null,null,null,null,null,null,null,""]
[null,null,null,null,null,null,null,null,null,null,null,null,""]
[null,null,null,null,null,null,null,null,null,null,null,null,""]
[null,null,null,null,null,null,null,null,null,null,null,null,""]
[null,null,null,null,null,null,null,null,null,null,null,null,""]
[null,null,null,null,null,null,null,null,null,null,null,null,{"$f":"IF(H2365=\"\",\"\",IF(J2365=\"Annulée\",\"Annulée\",IF(K2365<>\"\",\"Ok\",IF(J2365<>\"\",IF(J2365<TODAY(),\"Retard\",\"En cours\"),IF(I2365<>\"\",\"A planifier\",\"A Lancer\")))))","v":""}]
[null,null,null,null,null,null,null,null,null,null,null,null,""]
[null,null,null,null,null,null,null,null,null,null,null,null,""]
[null,null,null,null,null,null,null,null,null,null,null,null,""]
[null,null,null,null,null,null,null,null,null,null,null,null,""]
[null,null,null,null,null,null,null,null,null,null,null,null,""]
[null,null,null,null,null,null,null,null,null,null,null,null,""]
[null,null,null,null,null,null,null,null,null,null,null,null,""]
[null,null,null,null,null,null,null,null,null,null,null,null,""]
[null,null,null,null,null,null,null,null,null,null,null,null,""]
[null,null,null,null,null,null,null,null,null,null,null,null,""]
[null,null,null,null,null,null,null,null,null,null,null,null,""]
[null,null,null,null,null,null,null,null,null,null,null,null,""]
[null,null,null,null,null,null,null,null,null,null,null,null,""]
[null,null,null,null,null,null,null,null,null,null,null,null,""]
[null,null,null,null,null,null,null,null,null,null,null,null,""]
[null,null,null,null,null,null,null,null,null,null,null,null,""]
[null,null,null,null,null,null,null,null,null,null,null,null,""]
[null,null,null,null,null,null,null,null,null,null,null,null,""]
[null,null,null,null,null,null,null,null,null,null,null,null,""]
[null,null,null,null,null,null,null,null,null,null,null,null,""]
[null,null,null,null,null,null,null,null,null,null,null,null,""]
[null,null,null,null,null,null,null,null,null,null,null,null,""]
[null,null,null,null,null,null,null,null,null,null,null,null,""]
[null,null,null,null,null,null,null,null,null,null,null,null,""]
[null,null,null,null,null,null,null,null,null,null,null,null,""]
[null,null,null,null,null,null,null,null,null,null,null,null,""]
[null,null,null,null,null,null,null,null,null,null,null,null,""]
[null,null,null,null,null,null,null,null,null,null,null,null,""]
[null,null,null,null,null,null,null,null,null,null,null,null,""]
[null,null,null,null,null,null,null,null,null,null,null,null,""]
[null,null,null,null,null,null,null,null,null,null,null,null,""]
[null,null,null,null,null,null,null,null,null,null,null,null,""]
[null,null,null,null,null,null,null,null,null,null,null,null,""]
[null,null,null,null,null,null,null,null,null,null,null,null,""]
[null,null,null,null,null,null,null,null,null,null,null,null,""]
[null,null,null,null,null,null,null,null,null,null,null,null,""]
[null,null,null,null,null,null,null,null,null,null,null,null,""]
[null,null,null,null,null,null,null,null,null,null,null,null,""]
[null,null,null,null,null,null,null,null,null,null,null,null,""]
[null,null,null,null,null,null,null,null,null,null,null,null,""]
[null,null,null,null,null,null,null,null,null,null,null,null,""]
[null,null,null,null,null,null,null,null,null,null,null,null,""]
[null,null,null,null,null,null,null,null,null,null,null,null,""]
[null,null,null,null,null,null,null,null,null,null,null,null,""]
[null,null,null,null,null,null,null,null,null,null,null,null,""]
[null,null,null,null,null,null,null,null,null,null,null,null,""]
[null,null,null,null,null,null,null,null,null,null,null,null,""]
[null,null,null,null,null,null,null,null,null,null,null,null,""]
[null,null,null,null,null,null,null,null,null,null,null,null,""]
[null,null,null,null,null,null,null,null,null,null,null,null,""]
[null,null,null,null,null,null,null,null,null,null,null,null,""]
[null,null,null,null,null,null,null,null,null,null,null,null,""]
[null,null,null,null,null,null,null,null,null,null,null,null,""]
[null,null,null,null,null,null,null,null,null,null,null,null,""]
[null,null,null,null,null,null,null,null,null,null,null,null,""]
[null,null,null,null,null,null,null,null,null,null,null,null,""]
[null,null,null,null,null,null,null,null,null,null,null,null,""]
[null,null,null,null,null,null,null,null,null,null,null,null,""]
[null,null,null,null,null,null,null,null,null,null,null,null,""]
[null,null,null,null,null,null,null,null,null,null,null,null,""]
[null,null,null,null,null,null,null,null,null,null,null,null,""]
[null,null,null,null,null,null,null,null,null,null,null,null,""]
[null,null,null,null,null,null,null,null,null,null,null,null,""]
[null,null,null,null,null,null,null,null,null,null,null,null,{"$f":"IF(H2429=\"\",\"\",IF(J2429=\"Annulée\",\"Annulée\",IF(K2429<>\"\",\"Ok\",IF(J2429<>\"\",IF(J2429<TODAY(),\"Retard\",\"En cours\"),IF(I2429<>\"\",\"A planifier\",\"A Lancer\")))))","v":""}]
[null,null,null,null,null,null,null,null,null,null,null,null,""]
[null,null,null,null,null,null,null,null,null,null,null,null,""]
[null,null,null,null,null,null,null,null,null,null,null,null,""]
[null,null,null,null,null,null,null,null,null,null,null,null,""]
[null,null,null,null,null,null,null,null,null,null,null,null,""]
[null,null,null,null,null,null,null,null,null,null,null,null,""]
[null,null,null,null,null,null,null,null,null,null,null,null,""]
[null,null,null,null,null,null,null,null,null,null,null,null,""]
[null,null,null,null,null,null,null,null,null,null,null,null,""]
[null,null,null,null,null,null,null,null,null,null,null,null,""]
[null,null,null,null,null,null,null,null,null,null,null,null,""]
[null,null,null,null,null,null,null,null,null,null,null,null,""]
[null,null,null,null,null,null,null,null,null,null,null,null,""]
[null,null,null,null,null,null,null,null,null,null,null,null,""]
[null,null,null,null,null,null,null,null,null,null,null,null,""]
[null,null,null,null,null,null,null,null,null,null,null,null,""]
[null,null,null,null,null,null,null,null,null,null,null,null,""]
[null,null,null,null,null,null,null,null,null,null,null,null,""]
[null,null,null,null,null,null,null,null,null,null,null,null,""]
[null,null,null,null,null,null,null,null,null,null,null,null,""]
[null,null,null,null,null,null,null,null,null,null,null,null,""]
[null,null,null,null,null,null,null,null,null,null,null,null,""]
[null,null,null,null,null,null,null,null,null,null,null,null,""]
[null,null,null,null,null,null,null,null,null,null,null,null,""]
[null,null,null,null,null,null,null,null,null,null,null,null,""]
[null,null,null,null,null,null,null,null,null,null,null,null,""]
[null,null,null,null,null,null,null,null,null,null,null,null,""]
[null,null,null,null,null,null,null,null,null,null,null,null,""]
[null,null,null,null,null,null,null,null,null,null,null,null,""]
[null,null,null,null,null,null,null,null,null,null,null,null,""]
[null,null,null,null,null,null,null,null,null,null,null,null,""]
[null,null,null,null,null,null,null,null,null,null,null,null,""]
[null,null,null,null,null,null,null,null,null,null,null,null,""]
[null,null,null,null,null,null,null,null,null,null,null,null,""]
[null,null,null,null,null,null,null,null,null,null,null,null,""]
[null,null,null,null,null,null,null,null,null,null,null,null,""]
[null,null,null,null,null,null,null,null,null,null,null,null,""]
[null,null,null,null,null,null,null,null,null,null,null,null,""]
[null,null,null,null,null,null,null,null,null,null,null,null,""]
[null,null,null,null,null,null,null,null,null,null,null,null,""]
[null,null,null,null,null,null,null,null,null,null,null,null,""]
[null,null,null,null,null,null,null,null,null,null,null,null,""]
[null,null,null,null,null,null,null,null,null,null,null,null,""]
[null,null,null,null,null,null,null,null,null,null,null,null,""]
[null,null,null,null,null,null,null,null,null,null,null,null,""]
[null,null,null,null,null,null,null,null,null,null,null,null,""]
[null,null,null,null,null,null,null,null,null,null,null,null,""]
[null,null,null,null,null,null,null,null,null,null,null,null,""]
[null,null,null,null,null,null,null,null,null,null,null,null,""]
[null,null,null,null,null,null,null,null,null,null,null,null,""]
[null,null,null,null,null,null,null,null,null,null,null,null,""]
[null,null,null,null,null,null,null,null,null,null,null,null,""]
[null,null,null,null,null,null,null,null,null,null,null,null,""]
[null,null,null,null,null,null,null,null,null,null,null,null,""]
[null,null,null,null,null,null,null,null,null,null,null,null,""]
[null,null,null,null,null,null,null,null,null,null,null,null,""]
[null,null,null,null,null,null,null,null,null,null,null,null,""]
[null,null,null,null,null,null,null,null,null,null,null,null,""]
[null,null,null,null,null,null,null,null,null,null,null,null,""]
[null,null,null,null,null,null,null,null,null,null,null,null,""]
[null,null,null,null,null,null,null,null,null,null,null,null,""]
[null,null,null,null,null,null,null,null,null,null,null,null,""]
[null,null,null,null,null,null,null,null,null,null,null,null,""]
[null,null,null,null,null,null,null,null,null,null,null,null,{"$f":"IF(H2493=\"\",\"\",IF(J2493=\"Annulée\",\"Annulée\",IF(K2493<>\"\",\"Ok\",IF(J2493<>\"\",IF(J2493<TODAY(),\"Retard\",\"En cours\"),IF(I2493<>\"\",\"A planifier\",\"A Lancer\")))))","v":""}]
[null,null,null,null,null,null,null,null,null,null,null,null,""]
[null,null,null,null,null,null,null,null,null,null,null,null,""]
[null,null,null,null,null,null,null,null,null,null,null,null,""]
[null,null,null,null,null,null,null,null,null,null,null,null,""]
[null,null,null,null,null,null,null,null,null,null,null,null,""]
[null,null,null,null,null,null,null,null,null,null,null,null,""]
[null,null,null,null,null,null,null,null,null,null,null,null,""]
[null,null,null,null,null,null,null,null,null,null,null,null,""]
[null,null,null,null,null,null,null,null,null,null,null,null,""]
[null,null,null,null,null,null,null,null,null,null,null,null,""]
[null,null,null,null,null,null,null,null,null,null,null,null,""]
[null,null,null,null,null,null,null,null,null,null,null,null,""]
[null,null,null,null,null,null,null,null,null,null,null,null,""]
[null,null,null,null,null,null,null,null,null,null,null,null,""]
[null,null,null,null,null,null,null,null,null,null,null,null,""]
[null,null,null,null,null,null,null,null,null,null,null,null,""]
[null,null,null,null,null,null,null,null,null,null,null,null,""]
[null,null,null,null,null,null,null,null,null,null,null,null,""]
[null,null,null,null,null,null,null,null,null,null,null,null,""]
[null,null,null,null,null,null,null,null,null,null,null,null,""]
[null,null,null,null,null,null,null,null,null,null,null,null,""]
[null,null,null,null,null,null,null,null,null,null,null,null,""]
[null,null,null,null,null,null,null,null,null,null,null,null,""]
[null,null,null,null,null,null,null,null,null,null,null,null,""]
[null,null,null,null,null,null,null,null,null,null,null,null,""]
[null,null,null,null,null,null,null,null,null,null,null,null,""]
[null,null,null,null,null,null,null,null,null,null,null,null,""]
[null,null,null,null,null,null,null,null,null,null,null,null,""]
[null,null,null,null,null,null,null,null,null,null,null,null,""]
[null,null,null,null,null,null,null,null,null,null,null,null,""]
[null,null,null,null,null,null,null,null,null,null,null,null,""]
[null,null,null,null,null,null,null,null,null,null,null,null,""]
[null,null,null,null,null,null,null,null,null,null,null,null,""]
[null,null,null,null,null,null,null,null,null,null,null,null,""]
[null,null,null,null,null,null,null,null,null,null,null,null,""]
[null,null,null,null,null,null,null,null,null,null,null,null,""]
[null,null,null,null,null,null,null,null,null,null,null,null,""]
[null,null,null,null,null,null,null,null,null,null,null,null,""]
[null,null,null,null,null,null,null,null,null,null,null,null,""]
[null,null,null,null,null,null,null,null,null,null,null,null,""]
[null,null,null,null,null,null,null,null,null,null,null,null,""]
[null,null,null,null,null,null,null,null,null,null,null,null,""]
[null,null,null,null,null,null,null,null,null,null,null,null,""]
[null,null,null,null,null,null,null,null,null,null,null,null,""]
[null,null,null,null,null,null,null,null,null,null,null,null,""]
[null,null,null,null,null,null,null,null,null,null,null,null,""]
[null,null,null,null,null,null,null,null,null,null,null,null,""]
[null,null,null,null,null,null,null,null,null,null,null,null,""]
[null,null,null,null,null,null,null,null,null,null,null,null,""]
[null,null,null,null,null,null,null,null,null,null,null,null,""]
[null,null,null,null,null,null,null,null,null,null,null,null,""]
[null,null,null,null,null,null,null,null,null,null,null,null,""]
[null,null,null,null,null,null,null,null,null,null,null,null,""]
[null,null,null,null,null,null,null,null,null,null,null,null,""]
[null,null,null,null,null,null,null,null,null,null,null,null,""]
[null,null,null,null,null,null,null,null,null,null,null,null,""]
[null,null,null,null,null,null,null,null,null,null,null,null,""]
[null,null,null,null,null,null,null,null,null,null,null,null,""]
[null,null,null,null,null,null,null,null,null,null,null,null,""]
[null,null,null,null,null,null,null,null,null,null,null,null,""]
[null,null,null,null,null,null,null,null,null,null,null,null,""]
[null,null,null,null,null,null,null,null,null,null,null,null,""]
[null,null,null,null,null,null,null,null,null,null,null,null,""]
[null,null,null,null,null,null,null,null,null,null,null,null,{"$f":"IF(H2557=\"\",\"\",IF(J2557=\"Annulée\",\"Annulée\",IF(K2557<>\"\",\"Ok\",IF(J2557<>\"\",IF(J2557<TODAY(),\"Retard\",\"En cours\"),IF(I2557<>\"\",\"A planifier\",\"A Lancer\")))))","v":""}]
[null,null,null,null,null,null,null,null,null,null,null,null,""]
[null,null,null,null,null,null,null,null,null,null,null,null,""]
[null,null,null,null,null,null,null,null,null,null,null,null,""]
[null,null,null,null,null,null,null,null,null,null,null,null,""]
[null,null,null,null,null,null,null,null,null,null,null,null,""]
[null,null,null,null,null,null,null,null,null,null,null,null,""]
[null,null,null,null,null,null,null,null,null,null,null,null,""]
[null,null,null,null,null,null,null,null,null,null,null,null,""]
[null,null,null,null,null,null,null,null,null,null,null,null,""]
[null,null,null,null,null,null,null,null,null,null,null,null,""]
[null,null,null,null,null,null,null,null,null,null,null,null,""]
[null,null,null,null,null,null,null,null,null,null,null,null,""]
[null,null,null,null,null,null,null,null,null,null,null,null,""]
[null,null,null,null,null,null,null,null,null,null,null,null,""]
[null,null,null,null,null,null,null,null,null,null,null,null,""]
[null,null,null,null,null,null,null,null,null,null,null,null,""]
[null,null,null,null,null,null,null,null,null,null,null,null,""]
[null,null,null,null,null,null,null,null,null,null,null,null,""]
[null,null,null,null,null,null,null,null,null,null,null,null,""]
[null,null,null,null,null,null,null,null,null,null,null,null,""]
[null,null,null,null,null,null,null,null,null,null,null,null,""]
[null,null,null,null,null,null,null,null,null,null,null,null,""]
[null,null,null,null,null,null,null,null,null,null,null,null,""]
[null,null,null,null,null,null,null,null,null,null,null,null,""]
[null,null,null,null,null,null,null,null,null,null,null,null,""]
[null,null,null,null,null,null,null,null,null,null,null,null,""]
[null,null,null,null,null,null,null,null,null,null,null,null,""]
[null,null,null,null,null,null,null,null,null,null,null,null,""]
[null,null,null,null,null,null,null,null,null,null,null,null,""]
[null,null,null,null,null,null,null,null,null,null,null,null,""]
[null,null,null,null,null,null,null,null,null,null,null,null,""]
[null,null,null,null,null,null,null,null,null,null,null,null,""]
[null,null,null,null,null,null,null,null,null,null,null,null,""]
[null,null,null,null,null,null,null,null,null,null,null,null,""]
[null,null,null,null,null,null,null,null,null,null,null,null,""]
[null,null,null,null,null,null,null,null,null,null,null,null,""]
[null,null,null,null,null,null,null,null,null,null,null,null,""]
[null,null,null,null,null,null,null,null,null,null,null,null,""]
[null,null,null,null,null,null,null,null,null,null,null,null,""]
[null,null,null,null,null,null,null,null,null,null,null,null,""]
[null,null,null,null,null,null,null,null,null,null,null,null,""]
[null,null,null,null,null,null,null,null,null,null,null,null,""]
[null,null,null,null,null,null,null,null,null,null,null,null,""]
[null,null,null,null,null,null,null,null,null,null,null,null,""]
[null,null,null,null,null,null,null,null,null,null,null,null,""]
[null,null,null,null,null,null,null,null,null,null,null,null,""]
[null,null,null,null,null,null,null,null,null,null,null,null,""]
[null,null,null,null,null,null,null,null,null,null,null,null,""]
[null,null,null,null,null,null,null,null,null,null,null,null,""]
[null,null,null,null,null,null,null,null,null,null,null,null,""]
[null,null,null,null,null,null,null,null,null,null,null,null,""]
[null,null,null,null,null,null,null,null,null,null,null,null,""]
[null,null,null,null,null,null,null,null,null,null,null,null,""]
[null,null,null,null,null,null,null,null,null,null,null,null,""]
[null,null,null,null,null,null,null,null,null,null,null,null,""]
[null,null,null,null,null,null,null,null,null,null,null,null,""]
[null,null,null,null,null,null,null,null,null,null,null,null,""]
[null,null,null,null,null,null,null,null,null,null,null,null,""]
[null,null,null,null,null,null,null,null,null,null,null,null,""]
[null,null,null,null,null,null,null,null,null,null,null,null,""]
[null,null,null,null,null,null,null,null,null,null,null,null,""]
[null,null,null,null,null,null,null,null,null,null,null,null,""]
[null,null,null,null,null,null,null,null,null,null,null,null,""]
[null,null,null,null,null,null,null,null,null,null,null,null,{"$f":"IF(H2621=\"\",\"\",IF(J2621=\"Annulée\",\"Annulée\",IF(K2621<>\"\",\"Ok\",IF(J2621<>\"\",IF(J2621<TODAY(),\"Retard\",\"En cours\"),IF(I2621<>\"\",\"A planifier\",\"A Lancer\")))))","v":""}]
[null,null,null,null,null,null,null,null,null,null,null,null,""]
[null,null,null,null,null,null,null,null,null,null,null,null,""]
[null,null,null,null,null,null,null,null,null,null,null,null,""]
[null,null,null,null,null,null,null,null,null,null,null,null,""]
[null,null,null,null,null,null,null,null,null,null,null,null,""]
[null,null,null,null,null,null,null,null,null,null,null,null,""]
[null,null,null,null,null,null,null,null,null,null,null,null,""]
[null,null,null,null,null,null,null,null,null,null,null,null,""]
[null,null,null,null,null,null,null,null,null,null,null,null,""]
[null,null,null,null,null,null,null,null,null,null,null,null,""]
[null,null,null,null,null,null,null,null,null,null,null,null,""]
[null,null,null,null,null,null,null,null,null,null,null,null,""]
[null,null,null,null,null,null,null,null,null,null,null,null,""]
[null,null,null,null,null,null,null,null,null,null,null,null,""]
[null,null,null,null,null,null,null,null,null,null,null,null,""]
[null,null,null,null,null,null,null,null,null,null,null,null,""]
[null,null,null,null,null,null,null,null,null,null,null,null,""]
[null,null,null,null,null,null,null,null,null,null,null,null,""]
[null,null,null,null,null,null,null,null,null,null,null,null,""]
[null,null,null,null,null,null,null,null,null,null,null,null,""]
[null,null,null,null,null,null,null,null,null,null,null,null,""]
[null,null,null,null,null,null,null,null,null,null,null,null,""]
[null,null,null,null,null,null,null,null,null,null,null,null,""]
[null,null,null,null,null,null,null,null,null,null,null,null,""]
[null,null,null,null,null,null,null,null,null,null,null,null,""]
[null,null,null,null,null,null,null,null,null,null,null,null,""]
[null,null,null,null,null,null,null,null,null,null,null,null,""]
[null,null,null,null,null,null,null,null,null,null,null,null,""]
[null,null,null,null,null,null,null,null,null,null,null,null,""]
[null,null,null,null,null,null,null,null,null,null,null,null,""]
[null,null,null,null,null,null,null,null,null,null,null,null,""]
[null,null,null,null,null,null,null,null,null,null,null,null,""]
[null,null,null,null,null,null,null,null,null,null,null,null,""]
[null,null,null,null,null,null,null,null,null,null,null,null,""]
[null,null,null,null,null,null,null,null,null,null,null,null,""]
[null,null,null,null,null,null,null,null,null,null,null,null,""]
[null,null,null,null,null,null,null,null,null,null,null,null,""]
[null,null,null,null,null,null,null,null,null,null,null,null,""]
[null,null,null,null,null,null,null,null,null,null,null,null,""]
[null,null,null,null,null,null,null,null,null,null,null,null,""]
[null,null,null,null,null,null,null,null,null,null,null,null,""]
[null,null,null,null,null,null,null,null,null,null,null,null,""]
[null,null,null,null,null,null,null,null,null,null,null,null,""]
[null,null,null,null,null,null,null,null,null,null,null,null,""]
[null,null,null,null,null,null,null,null,null,null,null,null,""]
[null,null,null,null,null,null,null,null,null,null,null,null,""]
[null,null,null,null,null,null,null,null,null,null,null,null,""]
[null,null,null,null,null,null,null,null,null,null,null,null,""]
[null,null,null,null,null,null,null,null,null,null,null,null,""]
[null,null,null,null,null,null,null,null,null,null,null,null,""]
[null,null,null,null,null,null,null,null,null,null,null,null,""]
[null,null,null,null,null,null,null,null,null,null,null,null,""]
[null,null,null,null,null,null,null,null,null,null,null,null,""]
[null,null,null,null,null,null,null,null,null,null,null,null,""]
[null,null,null,null,null,null,null,null,null,null,null,null,""]
[null,null,null,null,null,null,null,null,null,null,null,null,""]
[null,null,null,null,null,null,null,null,null,null,null,null,""]
[null,null,null,null,null,null,null,null,null,null,null,null,""]
[null,null,null,null,null,null,null,null,null,null,null,null,""]
[null,null,null,null,null,null,null,null,null,null,null,null,""]
[null,null,null,null,null,null,null,null,null,null,null,null,""]
[null,null,null,null,null,null,null,null,null,null,null,null,""]
[null,null,null,null,null,null,null,null,null,null,null,null,""]
[null,null,null,null,null,null,null,null,null,null,null,null,{"$f":"IF(H2685=\"\",\"\",IF(J2685=\"Annulée\",\"Annulée\",IF(K2685<>\"\",\"Ok\",IF(J2685<>\"\",IF(J2685<TODAY(),\"Retard\",\"En cours\"),IF(I2685<>\"\",\"A planifier\",\"A Lancer\")))))","v":""}]
[null,null,null,null,null,null,null,null,null,null,null,null,""]
[null,null,null,null,null,null,null,null,null,null,null,null,""]
[null,null,null,null,null,null,null,null,null,null,null,null,""]
[null,null,null,null,null,null,null,null,null,null,null,null,""]
[null,null,null,null,null,null,null,null,null,null,null,null,""]
[null,null,null,null,null,null,null,null,null,null,null,null,""]
[null,null,null,null,null,null,null,null,null,null,null,null,""]
[null,null,null,null,null,null,null,null,null,null,null,null,""]
[null,null,null,null,null,null,null,null,null,null,null,null,""]
[null,null,null,null,null,null,null,null,null,null,null,null,""]
[null,null,null,null,null,null,null,null,null,null,null,null,""]
[null,null,null,null,null,null,null,null,null,null,null,null,""]
[null,null,null,null,null,null,null,null,null,null,null,null,""]
[null,null,null,null,null,null,null,null,null,null,null,null,""]
[null,null,null,null,null,null,null,null,null,null,null,null,""]
[null,null,null,null,null,null,null,null,null,null,null,null,""]
[null,null,null,null,null,null,null,null,null,null,null,null,""]
[null,null,null,null,null,null,null,null,null,null,null,null,""]
[null,null,null,null,null,null,null,null,null,null,null,null,""]
[null,null,null,null,null,null,null,null,null,null,null,null,""]
[null,null,null,null,null,null,null,null,null,null,null,null,""]
[null,null,null,null,null,null,null,null,null,null,null,null,""]
[null,null,null,null,null,null,null,null,null,null,null,null,""]
[null,null,null,null,null,null,null,null,null,null,null,null,""]
[null,null,null,null,null,null,null,null,null,null,null,null,""]
[null,null,null,null,null,null,null,null,null,null,null,null,""]
[null,null,null,null,null,null,null,null,null,null,null,null,""]
[null,null,null,null,null,null,null,null,null,null,null,null,""]
[null,null,null,null,null,null,null,null,null,null,null,null,""]
[null,null,null,null,null,null,null,null,null,null,null,null,""]
[null,null,null,null,null,null,null,null,null,null,null,null,""]
[null,null,null,null,null,null,null,null,null,null,null,null,""]
[null,null,null,null,null,null,null,null,null,null,null,null,""]
[null,null,null,null,null,null,null,null,null,null,null,null,""]
[null,null,null,null,null,null,null,null,null,null,null,null,""]
[null,null,null,null,null,null,null,null,null,null,null,null,""]
[null,null,null,null,null,null,null,null,null,null,null,null,""]
[null,null,null,null,null,null,null,null,null,null,null,null,""]
[null,null,null,null,null,null,null,null,null,null,null,null,""]
[null,null,null,null,null,null,null,null,null,null,null,null,""]
[null,null,null,null,null,null,null,null,null,null,null,null,""]
[null,null,null,null,null,null,null,null,null,null,null,null,""]
[null,null,null,null,null,null,null,null,null,null,null,null,""]
[null,null,null,null,null,null,null,null,null,null,null,null,""]
[null,null,null,null,null,null,null,null,null,null,null,null,""]
[null,null,null,null,null,null,null,null,null,null,null,null,""]
[null,null,null,null,null,null,null,null,null,null,null,null,""]
[null,null,null,null,null,null,null,null,null,null,null,null,""]
[null,null,null,null,null,null,null,null,null,null,null,null,""]
[null,null,null,null,null,null,null,null,null,null,null,null,""]
[null,null,null,null,null,null,null,null,null,null,null,null,""]
[null,null,null,null,null,null,null,null,null,null,null,null,""]
[null,null,null,null,null,null,null,null,null,null,null,null,""]
[null,null,null,null,null,null,null,null,null,null,null,null,""]
[null,null,null,null,null,null,null,null,null,null,null,null,""]
[null,null,null,null,null,null,null,null,null,null,null,null,""]
[null,null,null,null,null,null,null,null,null,null,null,null,""]
[null,null,null,null,null,null,null,null,null,null,null,null,""]
[null,null,null,null,null,null,null,null,null,null,null,null,""]
[null,null,null,null,null,null,null,null,null,null,null,null,""]
[null,null,null,null,null,null,null,null,null,null,null,null,""]
[null,null,null,null,null,null,null,null,null,null,null,null,""]
[null,null,null,null,null,null,null,null,null,null,null,null,""]
[null,null,null,null,null,null,null,null,null,null,null,null,{"$f":"IF(H2749=\"\",\"\",IF(J2749=\"Annulée\",\"Annulée\",IF(K2749<>\"\",\"Ok\",IF(J2749<>\"\",IF(J2749<TODAY(),\"Retard\",\"En cours\"),IF(I2749<>\"\",\"A planifier\",\"A Lancer\")))))","v":""}]
[null,null,null,null,null,null,null,null,null,null,null,null,""]
[null,null,null,null,null,null,null,null,null,null,null,null,""]
[null,null,null,null,null,null,null,null,null,null,null,null,""]
[null,null,null,null,null,null,null,null,null,null,null,null,""]
[null,null,null,null,null,null,null,null,null,null,null,null,""]
[null,null,null,null,null,null,null,null,null,null,null,null,""]
[null,null,null,null,null,null,null,null,null,null,null,null,""]
[null,null,null,null,null,null,null,null,null,null,null,null,""]
[null,null,null,null,null,null,null,null,null,null,null,null,""]
[null,null,null,null,null,null,null,null,null,null,null,null,""]
[null,null,null,null,null,null,null,null,null,null,null,null,""]
[null,null,null,null,null,null,null,null,null,null,null,null,""]
[null,null,null,null,null,null,null,null,null,null,null,null,""]
[null,null,null,null,null,null,null,null,null,null,null,null,""]
[null,null,null,null,null,null,null,null,null,null,null,null,""]
[null,null,null,null,null,null,null,null,null,null,null,null,""]
[null,null,null,null,null,null,null,null,null,null,null,null,""]
[null,null,null,null,null,null,null,null,null,null,null,null,""]
[null,null,null,null,null,null,null,null,null,null,null,null,""]
[null,null,null,null,null,null,null,null,null,null,null,null,""]
[null,null,null,null,null,null,null,null,null,null,null,null,""]
[null,null,null,null,null,null,null,null,null,null,null,null,""]
[null,null,null,null,null,null,null,null,null,null,null,null,""]
[null,null,null,null,null,null,null,null,null,null,null,null,""]
[null,null,null,null,null,null,null,null,null,null,null,null,""]
[null,null,null,null,null,null,null,null,null,null,null,null,""]
[null,null,null,null,null,null,null,null,null,null,null,null,""]
[null,null,null,null,null,null,null,null,null,null,null,null,""]
[null,null,null,null,null,null,null,null,null,null,null,null,""]
[null,null,null,null,null,null,null,null,null,null,null,null,""]
[null,null,null,null,null,null,null,null,null,null,null,null,""]
[null,null,null,null,null,null,null,null,null,null,null,null,""]
[null,null,null,null,null,null,null,null,null,null,null,null,""]
[null,null,null,null,null,null,null,null,null,null,null,null,""]
[null,null,null,null,null,null,null,null,null,null,null,null,""]
[null,null,null,null,null,null,null,null,null,null,null,null,""]
[null,null,null,null,null,null,null,null,null,null,null,null,""]
[null,null,null,null,null,null,null,null,null,null,null,null,""]
[null,null,null,null,null,null,null,null,null,null,null,null,""]
[null,null,null,null,null,null,null,null,null,null,null,null,""]
[null,null,null,null,null,null,null,null,null,null,null,null,""]
[null,null,null,null,null,null,null,null,null,null,null,null,""]
[null,null,null,null,null,null,null,null,null,null,null,null,""]
[null,null,null,null,null,null,null,null,null,null,null,null,""]
[null,null,null,null,null,null,null,null,null,null,null,null,""]
[null,null,null,null,null,null,null,null,null,null,null,null,""]
[null,null,null,null,null,null,null,null,null,null,null,null,""]
[null,null,null,null,null,null,null,null,null,null,null,null,""]
[null,null,null,null,null,null,null,null,null,null,null,null,""]
[null,null,null,null,null,null,null,null,null,null,null,null,""]
[null,null,null,null,null,null,null,null,null,null,null,null,""]
[null,null,null,null,null,null,null,null,null,null,null,null,""]
[null,null,null,null,null,null,null,null,null,null,null,null,""]
[null,null,null,null,null,null,null,null,null,null,null,null,""]
[null,null,null,null,null,null,null,null,null,null,null,null,""]
[null,null,null,null,null,null,null,null,null,null,null,null,""]
[null,null,null,null,null,null,null,null,null,null,null,null,""]
[null,null,null,null,null,null,null,null,null,null,null,null,""]
[null,null,null,null,null,null,null,null,null,null,null,null,""]
[null,null,null,null,null,null,null,null,null,null,null,null,""]
[null,null,null,null,null,null,null,null,null,null,null,null,""]
[null,null,null,null,null,null,null,null,null,null,null,null,""]
[null,null,null,null,null,null,null,null,null,null,null,null,""]
[null,null,null,null,null,null,null,null,null,null,null,null,{"$f":"IF(H2813=\"\",\"\",IF(J2813=\"Annulée\",\"Annulée\",IF(K2813<>\"\",\"Ok\",IF(J2813<>\"\",IF(J2813<TODAY(),\"Retard\",\"En cours\"),IF(I2813<>\"\",\"A planifier\",\"A Lancer\")))))","v":""}]
[null,null,null,null,null,null,null,null,null,null,null,null,""]
[null,null,null,null,null,null,null,null,null,null,null,null,""]
[null,null,null,null,null,null,null,null,null,null,null,null,""]
[null,null,null,null,null,null,null,null,null,null,null,null,""]
[null,null,null,null,null,null,null,null,null,null,null,null,""]
[null,null,null,null,null,null,null,null,null,null,null,null,""]
[null,null,null,null,null,null,null,null,null,null,null,null,""]
[null,null,null,null,null,null,null,null,null,null,null,null,""]
[null,null,null,null,null,null,null,null,null,null,null,null,""]
[null,null,null,null,null,null,null,null,null,null,null,null,""]
[null,null,null,null,null,null,null,null,null,null,null,null,""]
[null,null,null,null,null,null,null,null,null,null,null,null,""]
[null,null,null,null,null,null,null,null,null,null,null,null,""]
[null,null,null,null,null,null,null,null,null,null,null,null,""]
[null,null,null,null,null,null,null,null,null,null,null,null,""]
[null,null,null,null,null,null,null,null,null,null,null,null,""]
[null,null,null,null,null,null,null,null,null,null,null,null,""]
[null,null,null,null,null,null,null,null,null,null,null,null,""]
[null,null,null,null,null,null,null,null,null,null,null,null,""]
[null,null,null,null,null,null,null,null,null,null,null,null,""]
[null,null,null,null,null,null,null,null,null,null,null,null,""]
[null,null,null,null,null,null,null,null,null,null,null,null,""]
[null,null,null,null,null,null,null,null,null,null,null,null,""]
[null,null,null,null,null,null,null,null,null,null,null,null,""]
[null,null,null,null,null,null,null,null,null,null,null,null,""]
[null,null,null,null,null,null,null,null,null,null,null,null,""]
[null,null,null,null,null,null,null,null,null,null,null,null,""]
[null,null,null,null,null,null,null,null,null,null,null,null,""]
[null,null,null,null,null,null,null,null,null,null,null,null,""]
[null,null,null,null,null,null,null,null,null,null,null,null,""]
[null,null,null,null,null,null,null,null,null,null,null,null,""]
[null,null,null,null,null,null,null,null,null,null,null,null,""]
[null,null,null,null,null,null,null,null,null,null,null,null,""]
[null,null,null,null,null,null,null,null,null,null,null,null,""]
[null,null,null,null,null,null,null,null,null,null,null,null,""]
[null,null,null,null,null,null,null,null,null,null,null,null,""]
[null,null,null,null,null,null,null,null,null,null,null,null,""]
[null,null,null,null,null,null,null,null,null,null,null,null,""]
[null,null,null,null,null,null,null,null,null,null,null,null,""]
[null,null,null,null,null,null,null,null,null,null,null,null,""]
[null,null,null,null,null,null,null,null,null,null,null,null,""]
[null,null,null,null,null,null,null,null,null,null,null,null,""]
[null,null,null,null,null,null,null,null,null,null,null,null,""]
[null,null,null,null,null,null,null,null,null,null,null,null,""]
[null,null,null,null,null,null,null,null,null,null,null,null,""]
[null,null,null,null,null,null,null,null,null,null,null,null,""]
[null,null,null,null,null,null,null,null,null,null,null,null,""]
[null,null,null,null,null,null,null,null,null,null,null,null,""]
[null,null,null,null,null,null,null,null,null,null,null,null,""]
[null,null,null,null,null,null,null,null,null,null,null,null,""]
[null,null,null,null,null,null,null,null,null,null,null,null,""]
[null,null,null,null,null,null,null,null,null,null,null,null,""]
[null,null,null,null,null,null,null,null,null,null,null,null,""]
[null,null,null,null,null,null,null,null,null,null,null,null,""]
[null,null,null,null,null,null,null,null,null,null,null,null,""]
[null,null,null,null,null,null,null,null,null,null,null,null,""]
[null,null,null,null,null,null,null,null,null,null,null,null,""]
[null,null,null,null,null,null,null,null,null,null,null,null,""]
[null,null,null,null,null,null,null,null,null,null,null,null,""]
[null,null,null,null,null,null,null,null,null,null,null,null,""]
[null,null,null,null,null,null,null,null,null,null,null,null,""]
[null,null,null,null,null,null,null,null,null,null,null,null,""]
[null,null,null,null,null,null,null,null,null,null,null,null,""]
[null,null,null,null,null,null,null,null,null,null,null,null,{"$f":"IF(H2877=\"\",\"\",IF(J2877=\"Annulée\",\"Annulée\",IF(K2877<>\"\",\"Ok\",IF(J2877<>\"\",IF(J2877<TODAY(),\"Retard\",\"En cours\"),IF(I2877<>\"\",\"A planifier\",\"A Lancer\")))))","v":""}]
[null,null,null,null,null,null,null,null,null,null,null,null,""]
[null,null,null,null,null,null,null,null,null,null,null,null,""]
[null,null,null,null,null,null,null,null,null,null,null,null,""]
[null,null,null,null,null,null,null,null,null,null,null,null,""]
[null,null,null,null,null,null,null,null,null,null,null,null,""]
[null,null,null,null,null,null,null,null,null,null,null,null,""]
[null,null,null,null,null,null,null,null,null,null,null,null,""]
[null,null,null,null,null,null,null,null,null,null,null,null,""]
[null,null,null,null,null,null,null,null,null,null,null,null,""]
[null,null,null,null,null,null,null,null,null,null,null,null,""]
[null,null,null,null,null,null,null,null,null,null,null,null,""]
[null,null,null,null,null,null,null,null,null,null,null,null,""]
[null,null,null,null,null,null,null,null,null,null,null,null,""]
[null,null,null,null,null,null,null,null,null,null,null,null,""]
[null,null,null,null,null,null,null,null,null,null,null,null,""]
[null,null,null,null,null,null,null,null,null,null,null,null,""]
[null,null,null,null,null,null,null,null,null,null,null,null,""]
[null,null,null,null,null,null,null,null,null,null,null,null,""]
[null,null,null,null,null,null,null,null,null,null,null,null,""]
[null,null,null,null,null,null,null,null,null,null,null,null,""]
[null,null,null,null,null,null,null,null,null,null,null,null,""]
[null,null,null,null,null,null,null,null,null,null,null,null,""]
[null,null,null,null,null,null,null,null,null,null,null,null,""]
[null,null,null,null,null,null,null,null,null,null,null,null,""]
[null,null,null,null,null,null,null,null,null,null,null,null,""]
[null,null,null,null,null,null,null,null,null,null,null,null,""]
[null,null,null,null,null,null,null,null,null,null,null,null,""]
[null,null,null,null,null,null,null,null,null,null,null,null,""]
[null,null,null,null,null,null,null,null,null,null,null,null,""]
[null,null,null,null,null,null,null,null,null,null,null,null,""]
[null,null,null,null,null,null,null,null,null,null,null,null,""]
[null,null,null,null,null,null,null,null,null,null,null,null,""]
[null,null,null,null,null,null,null,null,null,null,null,null,""]
[null,null,null,null,null,null,null,null,null,null,null,null,""]
[null,null,null,null,null,null,null,null,null,null,null,null,""]
[null,null,null,null,null,null,null,null,null,null,null,null,""]
[null,null,null,null,null,null,null,null,null,null,null,null,""]
[null,null,null,null,null,null,null,null,null,null,null,null,""]
[null,null,null,null,null,null,null,null,null,null,null,null,""]
[null,null,null,null,null,null,null,null,null,null,null,null,""]
[null,null,null,null,null,null,null,null,null,null,null,null,""]
[null,null,null,null,null,null,null,null,null,null,null,null,""]
[null,null,null,null,null,null,null,null,null,null,null,null,""]
[null,null,null,null,null,null,null,null,null,null,null,null,""]
[null,null,null,null,null,null,null,null,null,null,null,null,""]
[null,null,null,null,null,null,null,null,null,null,null,null,""]
[null,null,null,null,null,null,null,null,null,null,null,null,""]
[null,null,null,null,null,null,null,null,null,null,null,null,""]
[null,null,null,null,null,null,null,null,null,null,null,null,""]
[null,null,null,null,null,null,null,null,null,null,null,null,""]
[null,null,null,null,null,null,null,null,null,null,null,null,""]
[null,null,null,null,null,null,null,null,null,null,null,null,""]
[null,null,null,null,null,null,null,null,null,null,null,null,""]
[null,null,null,null,null,null,null,null,null,null,null,null,""]
[null,null,null,null,null,null,null,null,null,null,null,null,""]
[null,null,null,null,null,null,null,null,null,null,null,null,""]
[null,null,null,null,null,null,null,null,null,null,null,null,""]
[null,null,null,null,null,null,null,null,null,null,null,null,""]
[null,null,null,null,null,null,null,null,null,null,null,null,""]
[null,null,null,null,null,null,null,null,null,null,null,null,""]
[null,null,null,null,null,null,null,null,null,null,null,null,""]
[null,null,null,null,null,null,null,null,null,null,null,null,""]
[null,null,null,null,null,null,null,null,null,null,null,null,""]
[null,null,null,null,null,null,null,null,null,null,null,null,{"$f":"IF(H2941=\"\",\"\",IF(J2941=\"Annulée\",\"Annulée\",IF(K2941<>\"\",\"Ok\",IF(J2941<>\"\",IF(J2941<TODAY(),\"Retard\",\"En cours\"),IF(I2941<>\"\",\"A planifier\",\"A Lancer\")))))","v":""}]
[null,null,null,null,null,null,null,null,null,null,null,null,""]
[null,null,null,null,null,null,null,null,null,null,null,null,""]
[null,null,null,null,null,null,null,null,null,null,null,null,""]
[null,null,null,null,null,null,null,null,null,null,null,null,""]
[null,null,null,null,null,null,null,null,null,null,null,null,""]
[null,null,null,null,null,null,null,null,null,null,null,null,""]
[null,null,null,null,null,null,null,null,null,null,null,null,""]
[null,null,null,null,null,null,null,null,null,null,null,null,""]
[null,null,null,null,null,null,null,null,null,null,null,null,""]
[null,null,null,null,null,null,null,null,null,null,null,null,""]
[null,null,null,null,null,null,null,null,null,null,null,null,""]
[null,null,null,null,null,null,null,null,null,null,null,null,""]
[null,null,null,null,null,null,null,null,null,null,null,null,""]
[null,null,null,null,null,null,null,null,null,null,null,null,""]
[null,null,null,null,null,null,null,null,null,null,null,null,""]
[null,null,null,null,null,null,null,null,null,null,null,null,""]
[null,null,null,null,null,null,null,null,null,null,null,null,""]
[null,null,null,null,null,null,null,null,null,null,null,null,""]
[null,null,null,null,null,null,null,null,null,null,null,null,""]
[null,null,null,null,null,null,null,null,null,null,null,null,""]
[null,null,null,null,null,null,null,null,null,null,null,null,""]
[null,null,null,null,null,null,null,null,null,null,null,null,""]
[null,null,null,null,null,null,null,null,null,null,null,null,""]
[null,null,null,null,null,null,null,null,null,null,null,null,""]
[null,null,null,null,null,null,null,null,null,null,null,null,""]
[null,null,null,null,null,null,null,null,null,null,null,null,""]
[null,null,null,null,null,null,null,null,null,null,null,null,""]
[null,null,null,null,null,null,null,null,null,null,null,null,""]
[null,null,null,null,null,null,null,null,null,null,null,null,""]
[null,null,null,null,null,null,null,null,null,null,null,null,""]
[null,null,null,null,null,null,null,null,null,null,null,null,""]
[null,null,null,null,null,null,null,null,null,null,null,null,""]
[null,null,null,null,null,null,null,null,null,null,null,null,""]
[null,null,null,null,null,null,null,null,null,null,null,null,""]
[null,null,null,null,null,null,null,null,null,null,null,null,""]
[null,null,null,null,null,null,null,null,null,null,null,null,""]
[null,null,null,null,null,null,null,null,null,null,null,null,""]
[null,null,null,null,null,null,null,null,null,null,null,null,""]
[null,null,null,null,null,null,null,null,null,null,null,null,""]
[null,null,null,null,null,null,null,null,null,null,null,null,""]
[null,null,null,null,null,null,null,null,null,null,null,null,""]
[null,null,null,null,null,null,null,null,null,null,null,null,""]
[null,null,null,null,null,null,null,null,null,null,null,null,""]
[null,null,null,null,null,null,null,null,null,null,null,null,""]
[null,null,null,null,null,null,null,null,null,null,null,null,""]
[null,null,null,null,null,null,null,null,null,null,null,null,""]
[null,null,null,null,null,null,null,null,null,null,null,null,""]
[null,null,null,null,null,null,null,null,null,null,null,null,""]
[null,null,null,null,null,null,null,null,null,null,null,null,""]
[null,null,null,null,null,null,null,null,null,null,null,null,""]
[null,null,null,null,null,null,null,null,null,null,null,null,""]
[null,null,null,null,null,null,null,null,null,null,null,null,""]
[null,null,null,null,null,null,null,null,null,null,null,null,""]
[null,null,null,null,null,null,null,null,null,null,null,null,""]
[null,null,null,null,null,null,null,null,null,null,null,null,""]
[null,null,null,null,null,null,null,null,null,null,null,null,""]
[null,null,null,null,null,null,null,null,null,null,null,null,""]
[null,null,null,null,null,null,null,null,null,null,null,null,""]
[null,null,null,null,null,null,null,null,null,null,null,null,""]
[null,null,null,null,null,null,null,null,null,null,null,null,""]
[null,null,null,null,null,null,null,null,null,null,null,null,""]
[null,null,null,null,null,null,null,null,null,null,null,null,""]
[null,null,null,null,null,null,null,null,null,null,null,null,""]
[null,null,null,null,null,null,null,null,null,null,null,null,{"$f":"IF(H3005=\"\",\"\",IF(J3005=\"Annulée\",\"Annulée\",IF(K3005<>\"\",\"Ok\",IF(J3005<>\"\",IF(J3005<TODAY(),\"Retard\",\"En cours\"),IF(I3005<>\"\",\"A planifier\",\"A Lancer\")))))","v":""}]
[null,null,null,null,null,null,null,null,null,null,null,null,""]
[null,null,null,null,null,null,null,null,null,null,null,null,""]
[null,null,null,null,null,null,null,null,null,null,null,null,""]
[null,null,null,null,null,null,null,null,null,null,null,null,""]
[null,null,null,null,null,null,null,null,null,null,null,null,""]
[null,null,null,null,null,null,null,null,null,null,null,null,""]
[null,null,null,null,null,null,null,null,null,null,null,null,""]
[null,null,null,null,null,null,null,null,null,null,null,null,""]
[null,null,null,null,null,null,null,null,null,null,null,null,""]
[null,null,null,null,null,null,null,null,null,null,null,null,""]
[null,null,null,null,null,null,null,null,null,null,null,null,""]
[null,null,null,null,null,null,null,null,null,null,null,null,""]
[null,null,null,null,null,null,null,null,null,null,null,null,""]
[null,null,null,null,null,null,null,null,null,null,null,null,""]
[null,null,null,null,null,null,null,null,null,null,null,null,""]
[null,null,null,null,null,null,null,null,null,null,null,null,""]
[null,null,null,null,null,null,null,null,null,null,null,null,""]
[null,null,null,null,null,null,null,null,null,null,null,null,""]
[null,null,null,null,null,null,null,null,null,null,null,null,""]
[null,null,null,null,null,null,null,null,null,null,null,null,""]
[null,null,null,null,null,null,null,null,null,null,null,null,""]
[null,null,null,null,null,null,null,null,null,null,null,null,""]
[null,null,null,null,null,null,null,null,null,null,null,null,""]
[null,null,null,null,null,null,null,null,null,null,null,null,""]
[null,null,null,null,null,null,null,null,null,null,null,null,""]
[null,null,null,null,null,null,null,null,null,null,null,null,""]
[null,null,null,null,null,null,null,null,null,null,null,null,""]
[null,null,null,null,null,null,null,null,null,null,null,null,""]
[null,null,null,null,null,null,null,null,null,null,null,null,""]
[null,null,null,null,null,null,null,null,null,null,null,null,""]
[null,null,null,null,null,null,null,null,null,null,null,null,""]
[null,null,null,null,null,null,null,null,null,null,null,null,""]
[null,null,null,null,null,null,null,null,null,null,null,null,""]
[null,null,null,null,null,null,null,null,null,null,null,null,""]
[null,null,null,null,null,null,null,null,null,null,null,null,""]
[null,null,null,null,null,null,null,null,null,null,null,null,""]
[null,null,null,null,null,null,null,null,null,null,null,null,""]
[null,null,null,null,null,null,null,null,null,null,null,null,""]
[null,null,null,null,null,null,null,null,null,null,null,null,""]
[null,null,null,null,null,null,null,null,null,null,null,null,""]
[null,null,null,null,null,null,null,null,null,null,null,null,""]
[null,null,null,null,null,null,null,null,null,null,null,null,""]
[null,null,null,null,null,null,null,null,null,null,null,null,""]
[null,null,null,null,null,null,null,null,null,null,null,null,""]
[null,null,null,null,null,null,null,null,null,null,null,null,""]
[null,null,null,null,null,null,null,null,null,null,null,null,""]
[null,null,null,null,null,null,null,null,null,null,null,null,""]
[null,null,null,null,null,null,null,null,null,null,null,null,""]
[null,null,null,null,null,null,null,null,null,null,null,null,""]
[null,null,null,null,null,null,null,null,null,null,null,null,""]
[null,null,null,null,null,null,null,null,null,null,null,null,""]
[null,null,null,null,null,null,null,null,null,null,null,null,""]
[null,null,null,null,null,null,null,null,null,null,null,null,""]
[null,null,null,null,null,null,null,null,null,null,null,null,""]
[null,null,null,null,null,null,null,null,null,null,null,null,""]
[null,null,null,null,null,null,null,null,null,null,null,null,""]
[null,null,null,null,null,null,null,null,null,null,null,null,""]
[null,null,null,null,null,null,null,null,null,null,null,null,""]
[null,null,null,null,null,null,null,null,null,null,null,null,""]
[null,null,null,null,null,null,null,null,null,null,null,null,""]
[null,null,null,null,null,null,null,null,null,null,null,null,""]
[null,null,null,null,null,null,null,null,null,null,null,null,""]
[null,null,null,null,null,null,null,null,null,null,null,null,""]
[null,null,null,null,null,null,null,null,null,null,null,null,{"$f":"IF(H3069=\"\",\"\",IF(J3069=\"Annulée\",\"Annulée\",IF(K3069<>\"\",\"Ok\",IF(J3069<>\"\",IF(J3069<TODAY(),\"Retard\",\"En cours\"),IF(I3069<>\"\",\"A planifier\",\"A Lancer\")))))","v":""}]
[null,null,null,null,null,null,null,null,null,null,null,null,""]
[null,null,null,null,null,null,null,null,null,null,null,null,""]
[null,null,null,null,null,null,null,null,null,null,null,null,""]
[null,null,null,null,null,null,null,null,null,null,null,null,""]
[null,null,null,null,null,null,null,null,null,null,null,null,""]

{"sheet":"Parc","index":1,"n_rows":23,"n_cols":3,"rows_kept":23,"cut":false,"hidden":false,"merged":[]}
["Service","Machine","Sous enssemble"]
["Fabrication","Doseuse"]
["Fabrication","Sertisseuse","Entrée"]
["Fabrication","Sertisseuse","Sortie"]
["LV 1","Leve Personne","Pompe"]
["LV 2","Machinerie Piscine"]
["LV 3","Machinerie Spa"]
["LV 4","Lit Médicalisé"]
["LV 5","Fauteuil"]
["Directeur ","Seche Linge"]
["Secretaire","Lave Linge"]
["Comptabilite"]
["Chef de Service"]
["Ergotherapeute"]
["Kiné"]
["Lingerie"]
["Cuisine"]
["Salle Snoezelen"]
["Coordinatrice"]
["Chaufferie"]
["Infirmerie"]
["Piscine"]
["Atelier Musique"]

{"sheet":"Menu","index":2,"n_rows":0,"n_cols":0,"rows_kept":0,"cut":false,"hidden":false,"merged":[[6,23,7,23],[6,24,7,24]]}

{"sheet":"GestionLISTE","index":3,"n_rows":75,"n_cols":46,"rows_kept":75,"cut":false,"hidden":false,"merged":[[5,17,5,18],[1,0,1,3]]}
[]
["Paramètre GMAO",null,null,null,null,"Liste Type maintenance",null,"Liste Service",null,"Délais",null,"Lieux stockage",null,"Liste intervenant",null,null,"Chemin pour sauvegarde auto",null,null,null,null,null,null,"RechercheFournisseur","Ncol","Liste",null,"RecherchePieces","Ncol","Liste",null,"RechercheEntreSortie","Ncol","Liste",null,"Recherche Preventif P","Ncol","Liste",null,"RechercheCommande","Ncol","Liste",null,"Recherche Interventions","Ncol","Liste"]
["Couleur de fond des userform Valeurs RGB",96,138,195,null,"Maintenance Corrective (En Panne)",null,"Atelier Musique",null,"Dispo permanent en stock",null,"lieux1",null,"xx",null,null,null,null,null,null,null,null,null,"Entreprise",1,1,null,"Référence Interne",1,1,null,"Référence interne",1,1,null,"N°MP",1,1,null,"N°Commande",1,5,null,"N° action",1,1]
[null,null,null,null,null,"Maintenance Preventive (Avant panne)",null,"Atelier Théatre",null,"1J",null,"lieux2",null,"3A",null,null,"Z:\\partage plan de maintenance\\Reception des  Interventions des Lieux de vie",null,null,null,null,null,null,"activités",2,1,null,"Lieux",2,6,null,"Désignation",2,1,null,"Catégorie",2,"GestionLISTE.H3",null,"Référence Interne",2,5,null,"Nom du salarié",2,1]
["Sauvegarde pour multi utilisateur 1=Yes 2=No",1,null,null,null,"Déchetterie",null,"Chef de service",null,"2J",null,"lieux3",null,"rr",null,null,null,null,null,null,null,null,null,"Adresse",3,3,null,"Désignation",3,1,null,"Type",3,1,null,"Lieux",3,6,null,"Désignation",3,1,null,"Service",3,"GestionLISTE.H3"]
[null,null,null,null,null,"Travaux Neuf",null,"Comptable",null,"3J",null,"lieux4",null,null,null,null,null,"Permet de définir les type de recherche (col N3)",null,null,null,null,null,"Code postal",4,1,null,"Descriptif",4,3,null,"Date E/S",4,4,null,"Intervenant",4,1,null,"Déscriptif",4,3,null,"Type Maintenance",4,1]
["Liste intervenant",2,null,null,null,"Informatique",null,"Coordinatrice",null,"4J",null,"lieux5",null,null,null,null,null,"N°","Liste Recherche",null,null,null,null,"Boite postale",5,1,null,"Fournisseur 1",5,1,null,"Qté",5,5,null,"Tache",5,3,null,"Fournisseur",5,1,null,"Lieux",5,6]
[null,null,null,null,null,"Laboratoire",null,"Cuisine",null,"5J",null,"lieux6",null,null,null,null,null,1,"Liste suivant feuille",null,null,null,null,"Ville",6,1,null,"Reference F1",6,3,null,null,null,null,null,"En prod",6,1,null,"Réf fournisseur",6,1,null,"Intervenant",6,1]
["blocage des touches 1= ok , autres = noOk","No",null,null,null,"Pharmacie",null,"Directeur",null,">5J",null,"lieux7",null,null,null,null,null,2,"ListeRange",null,null,null,null,"Pays",7,1,null,"Delais F1",7,1,null,null,null,null,null,"Temps",7,1,null,"Prix unitaire",7,5,null,"Priorité",7,1]
[null,null,null,null,null,"Siège fondation Opteo",null,"Entretien",null,"Sur commande",null,"lieux8",null,null,null,null,null,3,"SansListe",null,null,null,null,"Contact",8,3,null,"Prix unitaire F1",8,5,null,null,null,null,null,"Freq (J)",8,5,null,"Qté",8,5,null,"Travaux à effectuer",8,3]
[null,null,null,null,null,"Entretien Divers",null,"Ergothérapeute",null,null,null,"lieux9",null,null,null,null,null,4,"Date",null,null,null,null,"Email",9,3,null,"Fournisseur 2",9,1,null,null,null,null,null,"Dernière date réalisation",9,4,null,"Date de commande",9,4,null,"Date Demande",9,4]
[null,null,null,null,null,"Commande Internet",null,"Infirmerie",null,null,null,"lieux10",null,null,null,null,null,5,"Numerique",null,null,null,null,"Tel.",10,3,null,"Reference F2",10,3,null,null,null,null,null,"Date plannifier",10,4,null,"Date livraison prévue",10,4,null,"Date Prévue",10,4]
[null,null,null,null,null,"Activité / Atelier Résidents",null,"Kiné",null,null,null,null,null,null,null,null,null,6,"Lieux",null,null,null,null,"Fax",11,3,null,"Delais F2",11,1,null,null,null,null,null,"Semaine plannifier",11,5,null,"Date réception",11,4,null,"Date Réalisation",11,4]
[null,null,null,null,null,"Manutention matériel",null,"Lingerie",null,null,null,null,null,null,null,null,null,null,null,null,null,null,null,"Site",12,3,null,"Prix unitaire F2",12,5,null,null,null,null,null,"Etat",12,1,null,"Reçue",12,1,null,"Délais Réalisation",12,5]
[null,null,null,null,null,"Formation Personnel",null,"LV 1",null,null,null,null,null,null,null,null,null,"MEMO VBAListe de recherche définit :",null,null,null,null,null,"Nom C1",13,3,null,"Stock",13,5,null,null,null,null,null,null,null,null,null,null,null,null,null,"Suivi",13,1]
[null,null,null,null,null,"Secrétariat",null,"LV 2",null,null,null,null,null,null,null,null,null,"RechercheFournisseur X2",null,null,null,null,null,"Fonction C1",14,3,null,"Stock Min",14,5,null,null,null,null,null,null,null,null,null,null,null,null,null,"Commentaires",14,1]
[null,null,null,null,null,"Séjour",null,"LV 3",null,null,null,null,null,null,null,null,null,"RecherchePieces AB2",null,null,null,null,null,"Tel C1",15,3,null,"Coût stock",15,5,null,null,null,null,null,null,null,null,null,null,null,null,null,"Temps interventions(h)",15,5]
[null,null,null,null,null,"Intervention Esat Ceignac",null,"LV 4",null,null,null,null,null,null,null,null,null,"RechercheEntreSortie AF2",null,null,null,null,null,"Email C1",16,3,null,"Lieux stockage",16,"GestionLISTE.L3",null,null,null,null,null,null,null,null,null,null,null,null,null,null,15,5]
[null,null,null,null,null,"Administratif",null,"LV 5"]
[null,null,null,null,null,"Véhicules",null,"Ménage"]
[null,null,null,null,null,null,null,"Piscine",null,null,null,null,null,null,null,null,null,"Recherche Preventif P AJ2",null,null,null,null,null,"Nom C2",17,3,null,"Coût stock à commande",18,5]
[null,null,null,null,null,null,null,"Psychologue",null,null,null,null,null,null,null,null,null,"RechercheCommande AN2",null,null,null,null,null,"Fonction C2",18,3,null,"Nb pièces à commander",19,1]
[null,null,null,null,null,null,null,"Secrétariat",null,null,null,null,null,null,null,null,null,"Recherche Interventions AR3",null,null,null,null,null,"Tel C2",19,3]
[null,null,null,null,null,null,null,"Snoezelen",null,null,null,null,null,null,null,null,null,null,null,null,null,null,null,"Email C2",20,3]
[null,null,null,null,null,"xx",null,"Accompagnant de nuit"]
[null,null,null,null,null,"yy",null,"Informatique"]
[null,null,null,null,null,"yy"]
[null,null,null,null,null,"yy"]
[null,null,null,null,null,"yy"]
[null,null,null,null,null,"yy"]
[null,null,null,null,null,"yy"]
[null,null,null,null,null,"yy"]
[null,null,null,null,null,"yy"]
[null,null,null,null,null,"yy"]
[null,null,null,null,null,"yy"]
[null,null,null,null,null,"yy"]
[null,null,null,null,null,"yy"]
[null,null,null,null,null,"yy"]
[null,null,null,null,null,"yy"]
[null,null,null,null,null,"yy"]
[null,null,null,null,null,"yy"]
[null,null,null,null,null,"yy"]
[null,null,null,null,null,"yy"]
[null,null,null,null,null,"yy"]
[null,null,null,null,null,"yy"]
[null,null,null,null,null,"yy"]
[null,null,null,null,null,"yy"]
[null,null,null,null,null,"yy"]
[null,null,null,null,null,"yy"]
[null,null,null,null,null,"yy"]
[null,null,null,null,null,"yy"]
[null,null,null,null,null,"yy"]
[null,null,null,null,null,"yy"]
[null,null,null,null,null,"yy"]
[null,null,null,null,null,"yy"]
[null,null,null,null,null,"yy"]
[null,null,null,null,null,"yy"]
[null,null,null,null,null,"yy"]
[null,null,null,null,null,"yy"]
[null,null,null,null,null,"yy"]
[null,null,null,null,null,"yy"]
[null,null,null,null,null,"yy"]
[null,null,null,null,null,"yy"]
[null,null,null,null,null,"yy"]
[null,null,null,null,null,"yy"]
[null,null,null,null,null,"yy"]
[null,null,null,null,null,"yy"]
[null,null,null,null,null,"yy"]
[null,null,null,null,null,"yy"]
[null,null,null,null,null,"yy"]
[null,null,null,null,null,"yy"]
[null,null,null,null,null,"yy"]
[null,null,null,null,null,"yy"]
[null,null,null,null,null,"yy"]
[null,null,null,null,null,"yy"]

{"sheet":"Feuil1","index":4,"n_rows":154,"n_cols":2,"rows_kept":154,"cut":false,"hidden":false,"merged":[]}
[130,1]
[131,2]
[132,3]
[133,4]
[134,5]
[135,6]
[136,7]
[137,8]
[138,9]
[139,10]
[140,11]
[141,12]
[142,13]
[143,14]
[144,15]
[145,16]
[146,17]
[147,18]
[148,19]
[149,20]
[150,21]
[151,22]
[152,23]
[153,24]
[154,25]
[155,26]
[156,27]
[157,28]
[158,29]
[159,30]
[160,31]
[161,32]
[162,33]
[163,34]
[164,35]
[165,36]
[166,37]
[167,38]
[168,39]
[169,40]
[170,41]
[171,42]
[172,43]
[173,44]
[174,45]
[175,46]
[176,47]
[177,48]
[178,49]
[179,50]
[180,51]
[181,52]
[182,53]
[183,54]
[184,55]
[185,56]
[186,57]
[187,58]
[188,59]
[189,60]
[190,61]
[191,62]
[192,63]
[193,64]
[194,65]
[195,66]
[196,67]
[197,68]
[198,69]
[199,70]
[200,71]
[201,72]
[202,73]
[203,74]
[204,75]
[205,76]
[206,77]
[207,78]
[208,79]
[209,80]
[210,81]
[211,82]
[212,83]
[213,84]
[214,85]
[215,86]
[216,87]
[217,88]
[218,89]
[219,90]
[220,91]
[221,92]
[222,93]
[223,94]
[224,95]
[225,96]
[226,97]
[227,98]
[228,99]
[229,100]
[230,101]
[231,102]
[232,103]
[233,104]
[234,105]
[235,106]
[236,107]
[237,108]
[238,109]
[239,110]
[240,111]
[241,112]
[242,113]
[243,114]
[244,115]
[245,116]
[246,117]
[247,118]
[248,119]
[249,120]
[250,121]
[251,122]
[252,123]
[253,124]
[254,125]
[255,126]
[256,127]
[257,128]
[258,129]
[259]
[260]
[261]
[262]
[263]
[264]
[265]
[266]
[267]
[268]
[269]
[270]
[271]
[272]
[273]
[274]
[275]
[276]
[277]
[278]
[279]
[280]
[281]
[282]
[283]